{"text_format":"3","workbook":"xlsx","n_sheets":8,"sheets":["Notice","Volet_general","Echeancier_fin_previsionnel","Part1-Coord","Part2","Part3","Partenaire vide","ListesDeroulantes"],"not_rendered":{"charts":1,"images":12,"macros":1,"defined_names":15,"comments":1},"read":"whole","date_system":"1900"}

{"sheet":"Notice","index":0,"n_rows":85,"n_cols":9,"rows_kept":85,"merged":[[0,2,3,6],[0,7,3,7],[4,2,4,6],[6,0,6,7],[8,0,8,7],[9,1,9,7],[10,1,10,7],[11,1,11,7],[12,1,12,7],[13,0,13,7],[14,1,14,2],[14,4,14,7],[15,1,15,3],[15,4,15,7],[16,1,16,3],[16,4,16,7],[17,1,17,3],[17,4,17,7],[18,1,18,3],[18,4,18,7],[19,4,19,7],[20,0,20,7],[21,1,21,7],[22,1,22,7],[23,1,23,7],[24,1,24,7],[25,1,25,7],[26,1,26,7],[27,0,27,7],[28,1,28,7],[29,1,29,7],[30,1,30,7],[31,1,31,7],[32,1,32,7],[33,0,33,7],[34,0,34,7],[35,1,35,7],[36,1,36,7],[37,1,37,7],[38,1,38,7],[39,1,39,7],[40,1,40,7],[41,1,41,5],[41,6,41,7],[42,1,42,7],[45,1,45,7],[46,1,46,7],[48,1,48,7],[49,1,49,7],[50,1,50,7],[51,1,51,7],[52,1,52,7],[54,1,54,7],[56,1,56,7],[57,1,57,7],[58,1,58,7],[60,1,60,7],[61,1,61,7],[62,1,62,7],[63,1,63,7],[64,1,64,7],[65,1,65,7],[66,1,66,7],[67,1,67,7],[69,1,69,7],[71,1,71,7],[72,1,72,7],[75,1,75,7],[76,1,76,7],[77,1,77,7],[78,1,78,7],[79,1,79,7],[81,1,81,7],[82,1,82,7],[83,1,83,7],[84,1,84,7],[85,1,85,7]]}
[null,null,"Appel à projets RHU",{"$nulls":4},"Edition 2023-vague6"]
[{"$nulls":8},2016]
[]
[{"$nulls":8},"DPM"]
[null,"VERSION Vague6","Document administratif et financier - Notice",{"$nulls":5},"XX"]
[]
["Notice d'utilisation du \"document de soumission Administratif et Financier\""]
[]
["RECOMMANDATIONS IMPORTANTES"]
[null,"Ce document est prévu pour recueillir les informations liées au projet, le remplissage des totaux se faisant automatiquement (cellules non colorées)."]
[null,"Cependant, si vous avez besoin de modifier le document, notamment pour ajouter des partenaires, il vous faut activer les macros."]
[null,"Vous pouvez insérer des lignes dans les tableaux de chaque fiche partenaire afin d'ajouter des postes de dépense et des lignes dans le tableau \"Participation au projet et autres soutiens financiers\" en activant le bouton situé à gauche de chaque début de tableau."]
[null,"PENSER A VERIFIER QUE VOUS AVEZ ACTIVE LE CONTENU DE VOTRE FICHIER (version 2010) AFIN QUE LES MACROS SOIENT ACTIVEES !"]
["Si aucun message d'avertissement concernant les macros ne s'affiche à l'ouverture du classeur, veuillez suivre la procédure suivante :"]
[null,"Version Microsoft Office 2003-2007 :",null,null,"Version Microsoft Office 2010 :"]
[null,"- Ouvrez le Menu Outils/Option",null,null,"- Ouvrez le Menu Fichier"]
[null,"- Sélectionnez l'onglet Sécurité",null,null,"- Cliquer sur l'icône Options"]
[null,"- Cliquez sur le bouton Sécurité des macros...\n- Dans l'onglet Niveau de sécurité, choisissez Niveau de sécurité moyen",null,null,"- Sélectionnez Centre de gestion de la confidentialité et cliquer sur Paramètres du centre de gestion de la confidentialité"]
[null,"- Faites Ok et ouvrez le classeur à nouveau",null,null,"- Sélectionner Paramètres des macros…"]
[{"$nulls":4},"- Cocher Désactiver toutes les macros avec notification"]
["Recommandations générales"]
[null,"- Seuls les cellules sur fond vert des onglets \"Volet_general\", \"Part1-Coord\", \"Part2\", \"Part3\", … (en fonction du nombre de partenaires) sont à renseigner.\nLes tableaux récapitulatifs du \"Volet général\" sont remplis automatiquement à partir des données fournies dans les autres onglets."]
[null,"L'ajout d'onglets partenaires supplémentaires est possible à partir du Volet général."]
[null,"- Afin de garantir l'intégrité de l'ensemble des données calculées automatiquement, il est indispensable de ne pas modifier la structure de ce tableau.\nDe plus, il est demandé de ne pas modifier les noms des onglets, car cela pourrait perturber l'exploitation ultérieure du document administratif et financier."]
[null,"- Important : Il est demandé de définir une numérotation dans le partenariat de façon à ce que le partenaire n°i soit le même dans les documents de soumission administratif & financier et scientifique.  Le partenaire coordinateur doit être identifié comme le partenaire n°1 et les suivants en gardant la même cohérence."]
[null,"- Tous les montants financiers sont en € et hors taxes (HT) majorés, le cas échéant, de la TVA non récupérable."]
[null,"- Dans le cas de partenaires anglophones, il est possible de choisir la langue du document Administratif et financier dans l'onglet \"Volet_general\". L'option choisir une langue Français/French or Anglais/English étant proposée sous forme d'un menu déroulant Fr/En.\n"]
["1 - Onglet \"Volet_general\""]
[null,"1-1 Renseigner les cellules sur fond vert (lignes 11 à 21). Les deux tableaux récapitulatifs suivant de cet onglet se remplissent automatiquement à la saisie des onglets de chaque partenaire (\"Part1-Coord\", \"Part2, Part3\",…)."]
[null,"1-2 L'acronyme doit permettre d'identifier rapidement le projet, il est repris sur toutes les pages du présent document."]
[null,"1-3 La Catégorie de recherche doit impérativement être renseignée dans cet onglet car elle conditionne le mode de calcul des données dédiées à l'(aux) Entreprise(s) partenaire(s). Cette donnée se trouve reprise dans les onglets de chaque partenaire."]
[null,"1-4 Date de démarrage souhaitée: cette information pourra être amenée a été révisée, ainsi que le calendrier de réalisation du projet en fonction de la date de décision définitive de contractualisation en cas de sélection pour financement par décision du premier ministre. "]
[null,"1-5 Vérifier l'exactitude des informations présentes sur cet onglet. Elles ont vocation à être publiées si le projet est financé."]
["Cet onglet \"Volet Général\" est à faire signer par le Responsable Scientifique et Technique et la personne habilitée à engager l'Etablissement Coordinateur du projet.\nUn exemplaire scanné en PDF sera à déposer en ligne sur le site de soumission et constituera la 1ere page du document administratif et financier signé, scanné."]
["2 - Onglets \"Part1-Coord\", \"Part2\", \"part3\"…"]
[null," Chaque établissement et partenaire renseigne l'onglet qui lui correspond, fait signer le responsable ou correspondant scientifique et technique et la personne habilitée à engager chaque établissement partenaire de la proposition déposée."]
[null,"2-1 Identification du partenaire :"]
[null,"Les renseignements d'identité du responsable/et des correspondants scientifiques & techniques ainsi que de les personnes habilitées à engager le partenaire sont demandés directement en ligne sur le site de soumission. Seul les noms, prénoms sont demandés dans ce document.\nLes signatures des responsable/correspondants scientifique et technique seront nécessaires uniquement sur les versions finales imprimées de ce tableur. L'ensemble complété, finalisé et scanné est attendu en ligne sur le site de soumission aux dates indiquées dans l'appel à projets de préférence sous la forme d'un pdf unique.\nRenseigner dans cette partie :\n- le nom complet de l'établissement et le sigle du partenaire. Ces informations seront reprises automatiquement dans certains tableaux récapitulatifs et devront être identique à celle saisi sur le site de soumission (merci de respecter l'ordre de renseignement en ligne, sur le présent document et sur le document scientifique),\n- préciser le n° de SIRET de la tutelle gestionnaire,\nPour un laboratoire d'organisme public de recherche : Préciser le type d'unité et le numéro de l'unité au niveau du nom complet du partenaire (si applicable).\nPour une entreprise : Préciser (si applicable) la filiale, une succursale, le site ou le département concerné par la proposition.\n\n- la catégorie de partenaire (menu déroulant). Les définitions des termes figurent dans le texte de l'appel à projets (AAP) et dans le règlement financier spécifique de l'action RHU. \n- l'assiette de l'aide est par définition, l'ensemble des dépenses imputables au projet qui sont éligibles à l'aide de l'ANR (le montant de l'aide est calculé par l'application à l'assiette du taux de l'aide)."]
[null," • Base de calcul de coût marginal : Organismes de recherche (EPST, université, ES,…)"]
[null," • Base de calcul de coût complet : Entreprises, établissements publics à caractère industriel et commercial (EPIC)\nL’aide apportée aux laboratoires des EPIC est normalement calculée de manière à financer les moyens complémentaires nécessaires à la réalisation de l’opération. Toutefois, dans le cadre des recherches menées en consortium avec au moins une entreprise, l’ANR finance une partie du coût complet de l’opération."]
[null,"Pour toutes les catégories de partenaires : Renseigner la personne habilitée à représenter juridiquement l'établissement gestionnaire du partenaire."]
[null,"En cas de doute, il est conseillé de faire appel aux contacts figurant dans l'appel à projets ou via le courriel : ",{"$nulls":4},"rhu@agencerecherche.fr"]
[null,"Cet onglet \"Volet Général\" finalisé est à faire signer par le Responsable Scientifique et Technique (RST) et la personne habilitée à engager l'Etablissement Coordinateur (EC-visa également requis pour ce dernier) de la proposition déposée."]
[]
[null,"2-2 Demande financière :"]
[null,"Renseigner les tableaux par nature de demande. La justification de ces dernières sera à effectuer dans le document de soumission scientifique. Les calculs s'effectuent automatiquement : les cellules sur fond blanc comportant des formules sont verrouillées. Si besoin, vous pouvez insérer des lignes à chaque tableau après activation de la macro correspondante : suivre les indications spécifiées au début de cette notice."]
[null,"Indiquer le montant total des dépenses dans la colonne \" coût total\" et les montants demandés au titre de l'aide dans la colonne \"Assiette de l'aide\". La différence constituera les apports du partenaire pour l'ensemble des natures de dépenses. Nous vous rappelons que les apports doivent être autres que des subventions PIA (consulter la foire aux questions)."]
[null,"2-2-1 Equipements"]
[null,"Le choix de ces matériels doit faire l'objet de justification scientifique et technique dans le document de soumission scientifique.\nSont considérées comme dépenses d'équipement, les matériels dont la valeur unitaire est supérieur à 4000€ HT."]
[null,"A titre d'information, pour les établissements de santé, cette catégorie de dépenses correspond partiellement au TITRE IV des charges d'exploitation de l'Etat Prévisionnel des Recettes et des Dépenses (EPRD) des Etablissements de santé (Charges d'amortissements, de provisions et dépréciations, financières et exceptionnelles)."]
[null,"- Pour les organismes publics de recherche (sauf les EPIC dans le cadre d'un projet partenarial organisme de recherche / entreprise\n- Confer règlement financier spécifique à l'action RHU, il s'agit du coût total de ces matériels.\n- Pour les établissements publics, il s’agit du coût de l’équipement. Si le matériel est non–réutilisable après le projet, on considère le coût d'achat."]
[null,"- Pour les autres catégories de partenaires (entreprises, EPIC dans le cadre d'un projet partenarial organisme de recherche/entreprise, Confer règlement financier spécifique à l'action RHU), si les matériels acquis sont réutilisables après la réalisation de l'opération et sauf dérogation exceptionnelle accordée par l'ANR, celle-ci prendra en compte dans l'assiette de l'aide la part des amortissements calculée au prorata de la durée d'utilisation (% utilisation); pour un matériel non réutilisable après le projet, il s'agit du coût total.\nPour les partenaires Entreprises, si les matériels sont réutilisables après la réalisation de l'opération et sauf dérogation exceptionnelle, il s'agit de la partie des amortissements calculée au prorata de la durée d'utilisation. Pour un matériel non réutilisable après le projet, il s'agit du coût total."]
[null,"Les montants sont à renseigner hors taxes (HT) augmentés éventuellement de la TVA non récupérable. En conséquence, les montants indiqués doivent prendre en compte la proportion x de TVA non récupérable de l'organisme. [coût = coût HT * (1+ x *0.20)].  "]
[null,"2-2-2 Personnels"]
[null,"A titre d'information, pour les établissements de santé, cette catégorie de dépenses correspond au TITRE I des charges d'exploitation de l'Etat Prévisionnel des Recettes et des Dépenses (EPRD) des Etablissements de santé (Charges de personnels affectées à la réalisation du projet)."]
[null,"2-2-2-1 Personnel statutaire"]
[null,"Renseigner le coût mensuel qui est le coût total correspondant (salaires bruts, primes diverses, et charges patronales, y compris la taxe sur les salaires), et le nombre total de Personne.mois par WP & tâche (une personne à temps plein pendant un an = 12 Personne.mois). Le coût total sur la totalité de la durée s'effectue alors automatiquement. Les personnes titulaires ou identifiées pour les besoins du projet sont à nommer dans la fiche partenaire correspondante."]
[null,"Important : Pour un enseignant chercheur, ne compter que la partie du coût salarial correspondant à la part consacrée au projet dans son activité de recherche (50% du salaire et des charges salariales pour 100% du temps de recherche consacré au projet)."]
[null,"Dans le cas d'une base de calcul de l'assiette sur le coût marginal, le coût  du personnel statutaire n'est pas pris en compte dans le calcul du montant de l'assiette de l'aide, mais il l'est dans le calcul du coût complet du projet."]
[null,"2-2-2-2 Personnel NON statutaire:                                                                                                                        "]
[null,"Il s'agit des personnels ne pouvant être qualifiés de statutaire : personnels en CDD, CDI, stagiaires, doctorants, post-doctorants, etc."]
[null,"Renseigner le coût mensuel = coût total correspondant (salaires bruts, primes diverses, et charges patronales, y compris la taxe sur les salaires), et le nombre total de Personne.mois par tâche (une personne à temps plein pendant un an = 12 Personne.mois) ; le coût total sur la durée s'effectue alors automatiquement."]
[null,"Les personnels non statutaires avec financement ANR demandé (CDD et CDI) sont pris en compte pour le calcul de l'assiette de l'aide et pour le calcul du coût complet du projet. Les personnels \"à recruter\" doivent être indiqués comme tel dans le tableau correspondant (mention A recruter), afin de permettre à l'établissement coordinateur ou partenaire en question de signer en accord la lettre d'engagement."]
[null,"Les personnels non statutaires sans financement ANR demandé (par exemple, les doctorants titulaires d'une convention CIFRE) ne sont pas pris en compte pour le calcul de l'assiette de l'aide, mais ils le sont pour le calcul du coût complet du projet."]
[null,"Pour les personnels avec financement ANR  indiquer dans la colonne \"Assiette de l'aide\" les montants demandés au titre de l'aide . La différence constituera les apports du partenaire. Nous vous rappelons que les apports doivent être autres que des subventions PIA (consulter la foire aux questions)."]
[null,"2-2-3 Prestations de service, missions, dépenses sur facturation interne, autres dépenses :"]
[null,"A titre d'exemple pour les établissements de santé, cette catégorie de dépenses correspond au TITRE II et III des charges d'exploitation de l'Etat Prévisionnel des Recettes et des Dépenses (EPRD) des Etablissements de santé (Dépenses de sous-traitances, charges à caractère médical ou hôtelier et général)."]
[null,"Les montants sont à renseigner hors taxes (HT) augmenté éventuellement de la TVA non récupérable. En conséquence, les montants indiqués doivent prendre en compte la proportion x de TVA non récupérable fonction de l'organisme [coût = coût HT * (1+ x *0.20)]. "]
[null,"2-2-4 Frais de gestion /frais de structure"]
[null,"Pour les partenaires financés en coût marginal, les frais de gestion sont pris en compte pour le calcul du coût complet du projet . Pour le calcul de l'assiette, leur montant est pris en compte dans la limite d'un montant maximum. Le montant maximum des frais de gestion est calculé automatiquement.\nPour les partenaires financés en coût complet, les frais de structure sont pris en compte pour le calcul du coût complet du projet . Pour le calcul de l'assiette, leur montant est pris en compte dans la limite d'un montant maximum.  Renseigner le taux de frais de structure en respectant les plafonds indiqués (Part assise sur les dépenses de personnel (Max 68% des dépenses de personnel) et Part assise sur les autres dépenses (Max 7% des autres coûts hors facturation interne))."]
[null,"2-2-5 Frais d'environnement "]
[null,"Ceci concerne exclusivement les organismes de recherche financés sur la base du coût marginal. "]
[null,"Pour le calcul du coût complet, il faut ajouter aux coûts salariaux totaux des personnels leurs frais d'environnement (ex coûts d'infrastructures). Les frais d'environnement sont égaux au produit de ces coûts salariaux totaux par le taux d'environnement propre à l'organisme. Les frais d'environnement sont calculés automatiquement.\nex : pour un institut dont le taux d'environnement est à l'heure actuelle de 80 % : vous devez alors renseigner la valeur du taux d'environnement (ex: inscrire 80 pour un taux de 80 %) de l'organisme assurant la tutelle de gestion du partenaire pour le projet. Le taux étant propre à l'organisme, vous devez le consulter pour connaitre le taux applicable."]
[null,"2-2-6 Coût complet, assiette de l'aide"]
[null,"Calculés automatiquement."]
[null,"Le coût complet correspondant à la participation du partenaire est calculé automatiquement à partir de l'ensemble des données rentrées dans les tableaux, du montant des frais de gestion/frais de structure déclaré et, pour les organismes publics financés sur la base du coût marginal et des frais d'environnement."]
[null,"L'assiette de l'aide est calculée automatiquement à partir de certaines données rentrées dans le tableau, du montant des frais de gestion/frais de structure dans la limite d'un montant maximum."]
[null,"2-2-7 Taux d'aide demandé, aide demandée"]
[null,"Renseigner la valeur du taux d'aide demandé (ex. : inscrire 45 pour 45 %)."]
[null,"Pour les organismes publics financés sur la base du coût marginal et les fondations, le taux maximum est de 100 %.\nPour les EPIC financés sur la base du coût complet dans le cadre d'un projet partenarial organisme de recherche / entreprise le taux est de 50 %. \nPour les entreprises, le taux maximum qui peut être demandé dépend de la catégorie de recherche mise en œuvre dans la proposition RHU et de la Catégorie d'entreprise définie par l'encadrement communautaire (Confer règlement financier spécifique à l'action RHU). \nDans tous les cas, la valeur du taux d'aide demandé est à l'appréciation du partenaire concerné, dans la limite des taux maximum mentionnés ci-dessus ou précisés par le règlement financier spécifique de l'action RHU."]
[null,"2-3 Participation au projet et autres soutiens financiers"]
[null,"Le tableau \"Participation au projet et autres soutiens financiers\" doit faire l'objet d'une attention particulière : en effet, ce tableau doit indiquer tous les cofinancements au projet qu'ils soient obtenus ou sollicités. L'identification du financeur, la nature du financement et son implication pour le(s) WP(s) et tâche(s) doivent être clairement précisés."]
[null,"2-4 Engagement du partenaire"]
[null,"Le nom et le prénom des responsable/correspondants scientifiques et techniques renseignés ici doivent être identiques à ceux indiqués sur le site de soumission et dans le document scientifique.Les données de la personne habilitée à engager le partenaire sont renseignées automatiquement à partir des informations déjà fournies plus haut dans l'onglet en question cf§3-1."]
[null,"La version excel de ce document est à télécharger à l'emplacement dédié sur le site de soumission en ligne. Deux signatures du volet général du document administratif et financier sont nécessaires : celle du responsable/correspondant scientifique & technique et celle de la personne habilitée à engager l'établissement coordinateur (Dans ce dernier cas un visa est également demandé). Le volet général signé est également à télécharger sous format PDF sur le site de soumission à l'emplcament dédié à cet effet.\n\nUne version signée des lettres d'engagement par les établissements coordinateur et partenaires portant la mention \"- m’engager à respecter les engagements financiers tels que détaillés dans le document administratif et financier du document de soumission déposé\" est également à déposer en ligne sur le site de soumission au format PDF.\nLes courriers d'engagement des collectivités territoriales et pôles de compétitivité impliqués dans la proposition seront à déposer dans l'espace dédié en ligne.\n\nEn cas de sélection et financement: un exemplaire signé original de l'ensemble des onglets du document administratif et financier ainsi que des lettres d'engagement sera demandé pour la constitution du dossier de financement. En cad de non révision, il sera possible de transmettre directement à l'ANR l'exemplaire déposé sur le site sans révision. Pensez-y dès maintenant dans le cas de partenaires dont les signatures sont à obtenir avec des délais importants."]

{"sheet":"Volet_general","index":1,"n_rows":69,"n_cols":30,"rows_kept":69,"merged":[[0,0,6,1],[0,2,4,10],[0,11,0,15],[0,16,4,16],[1,11,1,12],[1,13,1,15],[2,11,2,12],[2,13,2,15],[3,11,3,12],[3,13,3,15],[4,11,4,12],[4,13,4,14],[5,2,6,13],[5,14,6,16],[8,0,8,9],[9,0,9,9],[11,0,11,2],[11,3,11,5],[11,10,11,16],[12,0,13,1],[12,3,12,9],[13,3,13,9],[15,0,16,2],[15,3,16,4],[18,0,18,2],[18,3,18,4],[18,5,18,7],[18,8,18,9],[23,0,23,26],[25,0,30,1],[25,2,30,2],[25,3,30,3],[25,4,26,15],[25,16,26,25],[25,26,29,26],[27,4,30,4],[27,5,30,5],[27,6,30,6],[27,7,30,7],[27,8,30,8],[27,9,30,9],[27,10,30,10],[27,11,30,11],[27,12,30,12],[27,13,30,13],[27,14,30,14],[27,15,30,15],[27,16,30,16],[27,17,30,17],[27,18,30,18],[27,19,30,19],[27,20,30,20],[27,21,30,21],[27,22,30,22],[27,23,30,23],[27,24,30,24],[27,25,30,25],[31,0,31,1],[32,0,32,1],[33,0,33,1],[34,0,34,1],[35,0,35,1],[38,1,38,3],[38,4,38,5],[38,7,40,8],[38,9,40,9],[39,2,39,3],[39,4,39,5],[40,1,40,3],[40,4,40,5],[41,2,41,3],[42,0,42,1],[42,4,42,6],[42,14,42,16],[43,0,43,1],[43,4,43,6],[43,14,43,16],[44,0,44,1],[44,4,44,6],[44,14,44,16],[45,0,45,1],[45,4,45,6],[45,14,45,16],[46,0,46,1],[46,4,46,6],[46,14,46,16],[47,14,47,16],[48,0,49,14],[50,0,51,14],[53,1,53,4],[53,12,53,16],[55,1,55,2],[55,3,55,4],[55,12,55,13],[55,14,55,16],[56,1,56,2],[56,3,56,4],[56,12,56,13],[56,14,56,16],[57,12,57,16],[58,12,58,16],[60,1,60,4],[60,12,60,16],[61,1,64,4],[61,12,64,16],[68,1,68,16]]}
[null,null,{"$f":"ListesDeroulantes!A4","v":"Appel à projets RHU"},{"$nulls":8},{"$f":"ListesDeroulantes!A5","v":"Réservé à l'organisme gestionnaire du programme"},{"$nulls":4},{"$f":"IF(N4=1,\"\",IF(SUM(AD1:AD31,AD33:AD201)<>0,SUM(AD1:AD31,AD33:AD201)&\" \"&ListesDeroulantes!A188&IF(SUM(AD1:AD31,AD33:AD201)>1,\"s\",\"\"),\"\"))","v":""}]
[{"$nulls":11},{"$f":"ListesDeroulantes!A6","v":"N° de partenaire"},null,{"$f":"Notice!H5","v":0}]
[{"$nulls":11},{"$f":"ListesDeroulantes!A7","v":"Acronyme"},null,{"$f":"D12","v":0}]
[{"$nulls":11},{"$f":"ListesDeroulantes!A8","v":"Nb de partenaires"},null,{"$f":"COUNTIF(C45:C47,\"*\")","v":1}]
[{"$nulls":11},{"$f":"ListesDeroulantes!A9","v":"Choisir une langue : Fr ou En ?"},null,"Fr"]
[null,null,{"$f":"ListesDeroulantes!A12","v":"Document administratif et financier"},{"$nulls":11},{"$f":"Notice!H1","v":"Edition 2023-vague6"}]
[]
[]
[{"$f":"ListesDeroulantes!A13","v":"Volet général"}]
[{"$f":"ListesDeroulantes!A14","v":"Fiche d'identité du projet"}]
[]
[{"$f":"ListesDeroulantes!A15","v":"Acronyme du projet"},{"$nulls":9},{"$f":"IF(OR(D12=\"\",D13=\"\",D14=\"\",D16=\"\",D19=\"\",I19=\"\"),ListesDeroulantes!A186,\"\")","v":"Erreur :\nles données concernant le projet ne sont pas toutes renseignées."},{"$nulls":6},{"$f":"IF(K12<>\"\",1,0)","v":1}]
[{"$f":"ListesDeroulantes!A16","v":"Titre du projet"},null,{"$f":"ListesDeroulantes!A17","v":"en francais"}]
[null,null,{"$f":"ListesDeroulantes!A18","v":"en anglais"}]
[]
[{"$f":"ListesDeroulantes!A19","v":"Catégorie de recherche R&D"},{"$nulls":10},"Equipements / Equipment",{"$f":"IF(G36<>\"- €\",G36/E36,0)","v":{"v":0,"d":"0%"}}]
[{"$nulls":11},"PS / Outsourcing",{"$f":"IF(H36<>\"- €\",H36/E36,0)","v":{"v":0,"d":"0%"}}]
[{"$nulls":11},"CDD & CDI / Fixed-term & permanent",{"$f":"IF(L36<>\"- €\",L36/E36,0)","v":{"v":0,"d":"0%"}}]
[{"$f":"ListesDeroulantes!A23","v":"Durée du projet (en mois)"},{"$nulls":4},{"$f":"ListesDeroulantes!A24","v":"Date de démarrage souhaitée"},{"$nulls":5},"Missions / Travel",{"$f":"IF(M36<>\"- €\",M36/E36,0)","v":{"v":0,"d":"0%"}}]
[{"$nulls":11},"DepExternes / consumables",{"$f":"IF(N36<>\"- €\",N36/E36,0)","v":{"v":0,"d":"0%"}}]
[{"$nulls":5},{"$f":"ListesDeroulantes!A28","v":"Acronyme de la structure coordinatrice"},{"$nulls":5},"Facturation interne / Internal billing",{"$f":"IF(O36<>\"- €\",O36/E36,0)","v":{"v":0,"d":"0%"}}]
[{"$nulls":11},"Frais de gestion / overhead & fees",{"$f":"IF(P36<>\"- €\",P36/E36,0)","v":{"v":0,"d":"0%"}}]
[]
[{"$f":"ListesDeroulantes!A29","v":"Récapitulatif des demandes financières des partenaires"}]
[]
[null,null,{"$f":"ListesDeroulantes!A31","v":"Etablissement partenaire"},{"$f":"ListesDeroulantes!A32","v":"Coût complet\n(en €)"},{"$f":"ListesDeroulantes!A34","v":"Aide demandée\n(en €)"},{"$nulls":11},{"$f":"ListesDeroulantes!A35","v":"Apports\n(en €)"},{"$nulls":9},{"$f":"ListesDeroulantes!A44","v":"Cofinancements & participations\n(en €)"}]
[]
[{"$nulls":4},{"$f":"ListesDeroulantes!A160","v":"Total aide demandée (€)"},{"$f":"ListesDeroulantes!A158","v":"Total assiette de l'aide (en €)"},{"$f":"ListesDeroulantes!A105","v":"Equipements ou amortissement d'équipements de R&D (supérieur à 4 000 € HT)"},{"$f":"ListesDeroulantes!A140","v":"Prestations de service externes"},{"$f":"\"% \"&ListesDeroulantes!A140&\"/\"&\"\n\"&RIGHT(ListesDeroulantes!A157,25)","v":"% Prestations de service externes/\nassiette de l'aide (en €)"},{"$f":"ListesDeroulantes!A41","v":"Personnel financé CDD & CDI (personne.mois)"},"CDD\n(Homme.Mois)",{"$f":"ListesDeroulantes!A42","v":"Budget total\nPersonnel AVEC financement demandé (€)"},{"$f":"ListesDeroulantes!A141","v":"Missions"},{"$f":"ListesDeroulantes!A142","v":"Autres dépenses externes (consommables, petits matériels …)"},{"$f":"ListesDeroulantes!A143","v":"Autres dépenses justifiées par une procédure de facturation interne"},{"$f":"ListesDeroulantes!A153","v":"Frais de gestion/structure"},{"$f":"\"Total - \"&ListesDeroulantes!A35","v":"Total - Apports\n(en €)"},{"$f":"ListesDeroulantes!A105","v":"Equipements ou amortissement d'équipements de R&D (supérieur à 4 000 € HT)"},{"$f":"ListesDeroulantes!A140","v":"Prestations de service externes"},{"$f":"ListesDeroulantes!A41","v":"Personnel financé CDD & CDI (personne.mois)"},{"$f":"ListesDeroulantes!A43","v":"Apport Personnel\nCDD & CDI (€)"},{"$f":"ListesDeroulantes!A38","v":"Apport\nAutre personnel  (personne.mois)"},{"$f":"ListesDeroulantes!A40","v":"Apport\nAutre personnel  (€)"},{"$f":"ListesDeroulantes!A141","v":"Missions"},{"$f":"ListesDeroulantes!A142","v":"Autres dépenses externes (consommables, petits matériels …)"},{"$f":"ListesDeroulantes!A143","v":"Autres dépenses justifiées par une procédure de facturation interne"}]
[]
[]
[{"$nulls":26},{"$f":"ListesDeroulantes!A169","v":"Montant obtenu"}]
["Partenaire vide",null,{"$f":"'Partenaire vide'!$D$10","v":0},{"$f":"IF(ISNUMBER('Partenaire vide'!$G$112),'Partenaire vide'!$G$112,\"- €\")","v":"- €"},{"$f":"IF(ISNUMBER('Partenaire vide'!$I$118),'Partenaire vide'!$I$118,\"- €\")","v":"- €"},{"$f":"IF('Partenaire vide'!$I$114<>0,SUM($G32,$H32,$L32,$M32,$N32,$O32,$P32),\"- €\")","v":{"v":0,"d":"0 €"}},{"$f":"IF(ISNUMBER('Partenaire vide'!$J$36),'Partenaire vide'!$J$36,\"- €\")","v":"- €"},{"$f":"IF(ISNUMBER('Partenaire vide'!$J$72),'Partenaire vide'!$J$72,\"- €\")","v":"- €"},{"$f":"IF(H32=\"- €\",\"\",IF(F32=0,\"\",H32/F32))","v":""},{"$f":"IF(ISNUMBER(SUM('Partenaire vide'!$L$54,'Partenaire vide'!$L$63)),SUM('Partenaire vide'!$L$54,'Partenaire vide'!$L$63),\"-\")","v":{"v":0,"d":"0.0"}},{"$f":"IF(ISNUMBER('Partenaire vide'!$L$54),'Partenaire vide'!$L$54,\"-\")","v":"-"},{"$f":"IF(ISNUMBER(SUM('Partenaire vide'!$J$54,'Partenaire vide'!$J$63)),SUM('Partenaire vide'!$J$54,'Partenaire vide'!$J$63),\"- €\")","v":{"v":0,"d":"0 €"}},{"$f":"IF(ISNUMBER('Partenaire vide'!$J$81),'Partenaire vide'!$J$81,\"- €\")","v":"- €"},{"$f":"IF(ISNUMBER('Partenaire vide'!$J$90),'Partenaire vide'!$J$90,\"- €\")","v":"- €"},{"$f":"IF(ISNUMBER('Partenaire vide'!$J$99),'Partenaire vide'!$J$99,\"- €\")","v":"- €"},{"$f":"IF(AND(ISNUMBER('Partenaire vide'!$J$109),ISNUMBER('Partenaire vide'!$I$109)),'Partenaire vide'!$J$109,\"- €\")","v":"- €"},{"$f":"IF(ISNUMBER($D32),$D32-IF(ISNUMBER($E32),$E32,0),\"- €\")","v":"- €"},{"$f":"IF(ISNUMBER('Partenaire vide'!$I$36),'Partenaire vide'!$I$36-IF(ISNUMBER($G32),$G32,0),\"- €\")","v":"- €"},{"$f":"IF(ISNUMBER('Partenaire vide'!$I$72),'Partenaire vide'!$I$72-IF(ISNUMBER($H32),$H32,0),\"- €\")","v":"- €"},{"$f":"IF(ISNUMBER(SUM('Partenaire vide'!$H$54,'Partenaire vide'!$H$63)),SUM('Partenaire vide'!$H$54,'Partenaire vide'!$H$63)-IF(ISNUMBER($J32),$J32,0),\"- \")","v":{"v":0,"d":"0.0"}},{"$f":"IF(ISNUMBER(SUM('Partenaire vide'!$I$54,'Partenaire vide'!$I$63)),SUM('Partenaire vide'!$I$54,'Partenaire vide'!$I$63)-IF(ISNUMBER($L32),$L32,0),\"- \")","v":{"v":0,"d":"0 €"}},{"$f":"IF(AND(OR('Partenaire vide'!$F$10=\"Marginal cost\",'Partenaire vide'!$F$10=\"Coût marginal\"),ISNUMBER('Partenaire vide'!$H$45)),'Partenaire vide'!$H$45,\"-\")","v":"-"},{"$f":"IF(AND(OR('Partenaire vide'!$F$10=\"Marginal cost\",'Partenaire vide'!$F$10=\"Coût marginal\"),ISNUMBER('Partenaire vide'!$I$45)),'Partenaire vide'!$I$45,\"- €\")","v":"- €"},{"$f":"IF(ISNUMBER('Partenaire vide'!$I$81),'Partenaire vide'!$I$81-IF(ISNUMBER($M32),$M32,0),\"- €\")","v":"- €"},{"$f":"IF(ISNUMBER('Partenaire vide'!$I$90),'Partenaire vide'!$I$90-IF(ISNUMBER($N32),$N32,0),\"- €\")","v":"- €"},{"$f":"IF(ISNUMBER('Partenaire vide'!$I$99),'Partenaire vide'!$I$99-IF(ISNUMBER($O32),$O32,0),\"- €\")","v":"- €"},{"$f":"'Partenaire vide'!$H$132","v":"- €"},null,{"$f":"IF('Partenaire vide'!M$1<>\"\",'Partenaire vide'!M$1,\"\")","v":"10 erreurs"},{"$f":"IF(AC32<>\"\",LEFT(AC32,SEARCH(\" \",AC32)-1)*1,\"\")","v":10}]
["Part1-Coord",null,{"$f":"'Part1-Coord'!$D$10","v":0},{"$f":"IF(ISNUMBER('Part1-Coord'!$G$112),'Part1-Coord'!$G$112,\"- €\")","v":"- €"},{"$f":"IF(ISNUMBER('Part1-Coord'!$I$118),'Part1-Coord'!$I$118,\"- €\")","v":"- €"},{"$f":"IF('Part1-Coord'!$I$114<>0,SUM($G33,$H33,$L33,$M33,$N33,$O33,$P33),\"- €\")","v":{"v":0,"d":"0 €"}},{"$f":"IF(ISNUMBER('Part1-Coord'!$J$36),'Part1-Coord'!$J$36,\"- €\")","v":"- €"},{"$f":"IF(ISNUMBER('Part1-Coord'!$J$72),'Part1-Coord'!$J$72,\"- €\")","v":"- €"},{"$f":"IF(H33=\"- €\",\"\",IF(F33=0,\"\",H33/F33))","v":""},{"$f":"IF(ISNUMBER(SUM('Part1-Coord'!$L$54,'Part1-Coord'!$L$63)),SUM('Part1-Coord'!$L$54,'Part1-Coord'!$L$63),\"-\")","v":{"v":0,"d":"0.0"}},{"$f":"IF(ISNUMBER('Part1-Coord'!$L$54),'Part1-Coord'!$L$54,\"-\")","v":"-"},{"$f":"IF(ISNUMBER(SUM('Part1-Coord'!$J$54,'Part1-Coord'!$J$63)),SUM('Part1-Coord'!$J$54,'Part1-Coord'!$J$63),\"- €\")","v":{"v":0,"d":"0 €"}},{"$f":"IF(ISNUMBER('Part1-Coord'!$J$81),'Part1-Coord'!$J$81,\"- €\")","v":"- €"},{"$f":"IF(ISNUMBER('Part1-Coord'!$J$90),'Part1-Coord'!$J$90,\"- €\")","v":"- €"},{"$f":"IF(ISNUMBER('Part1-Coord'!$J$99),'Part1-Coord'!$J$99,\"- €\")","v":"- €"},{"$f":"IF(AND(ISNUMBER('Part1-Coord'!$J$109),ISNUMBER('Part1-Coord'!$I$109)),'Part1-Coord'!$J$109,\"- €\")","v":"- €"},{"$f":"IF(ISNUMBER($D33),$D33-IF(ISNUMBER($E33),$E33,0),\"- €\")","v":"- €"},{"$f":"IF(ISNUMBER('Part1-Coord'!$I$36),'Part1-Coord'!$I$36-IF(ISNUMBER($G33),$G33,0),\"- €\")","v":"- €"},{"$f":"IF(ISNUMBER('Part1-Coord'!$I$72),'Part1-Coord'!$I$72-IF(ISNUMBER($H33),$H33,0),\"- €\")","v":"- €"},{"$f":"IF(ISNUMBER(SUM('Part1-Coord'!$H$54,'Part1-Coord'!$H$63)),SUM('Part1-Coord'!$H$54,'Part1-Coord'!$H$63)-IF(ISNUMBER($J33),$J33,0),\"- \")","v":{"v":0,"d":"0.0"}},{"$f":"IF(ISNUMBER(SUM('Part1-Coord'!$I$54,'Part1-Coord'!$I$63)),SUM('Part1-Coord'!$I$54,'Part1-Coord'!$I$63)-IF(ISNUMBER($L33),$L33,0),\"- \")","v":{"v":0,"d":"0 €"}},{"$f":"IF(AND(OR('Part1-Coord'!$F$10=\"Marginal cost\",'Part1-Coord'!$F$10=\"Coût marginal\"),ISNUMBER('Part1-Coord'!$H$45)),'Part1-Coord'!$H$45,\"-\")","v":"-"},{"$f":"IF(AND(OR('Part1-Coord'!$F$10=\"Marginal cost\",'Part1-Coord'!$F$10=\"Coût marginal\"),ISNUMBER('Part1-Coord'!$I$45)),'Part1-Coord'!$I$45,\"- €\")","v":"- €"},{"$f":"IF(ISNUMBER('Part1-Coord'!$I$81),'Part1-Coord'!$I$81-IF(ISNUMBER($M33),$M33,0),\"- €\")","v":"- €"},{"$f":"IF(ISNUMBER('Part1-Coord'!$I$90),'Part1-Coord'!$I$90-IF(ISNUMBER($N33),$N33,0),\"- €\")","v":"- €"},{"$f":"IF(ISNUMBER('Part1-Coord'!$I$99),'Part1-Coord'!$I$99-IF(ISNUMBER($O33),$O33,0),\"- €\")","v":"- €"},{"$f":"'Part1-Coord'!$H$132","v":"- €"},null,{"$f":"IF('Part1-Coord'!L$1<>\"\",'Part1-Coord'!L$1,\"\")","v":"8 erreurs"},{"$f":"IF(AC33<>\"\",LEFT(AC33,SEARCH(\" \",AC33)-1)*1,\"\")","v":8}]
["Part2",null,{"$f":"Part2!$D$10","v":0},{"$f":"IF(ISNUMBER(Part2!$G$112),Part2!$G$112,\"- €\")","v":"- €"},{"$f":"IF(ISNUMBER(Part2!$I$118),Part2!$I$118,\"- €\")","v":"- €"},{"$f":"IF(Part2!$I$114<>0,SUM($G34,$H34,$L34,$M34,$N34,$O34,$P34),\"- €\")","v":{"v":0,"d":"0 €"}},{"$f":"IF(ISNUMBER(Part2!$J$36),Part2!$J$36,\"- €\")","v":"- €"},{"$f":"IF(ISNUMBER(Part2!$J$72),Part2!$J$72,\"- €\")","v":"- €"},{"$f":"IF(H34=\"- €\",\"\",IF(F34=0,\"\",H34/F34))","v":""},{"$f":"IF(ISNUMBER(SUM(Part2!$L$54,Part2!$L$63)),SUM(Part2!$L$54,Part2!$L$63),\"-\")","v":{"v":0,"d":"0.0"}},{"$f":"IF(ISNUMBER(Part2!$L$54),Part2!$L$54,\"-\")","v":"-"},{"$f":"IF(ISNUMBER(SUM(Part2!$J$54,Part2!$J$63)),SUM(Part2!$J$54,Part2!$J$63),\"- €\")","v":{"v":0,"d":"0 €"}},{"$f":"IF(ISNUMBER(Part2!$J$81),Part2!$J$81,\"- €\")","v":"- €"},{"$f":"IF(ISNUMBER(Part2!$J$90),Part2!$J$90,\"- €\")","v":"- €"},{"$f":"IF(ISNUMBER(Part2!$J$99),Part2!$J$99,\"- €\")","v":"- €"},{"$f":"IF(AND(ISNUMBER(Part2!$J$109),ISNUMBER(Part2!$I$109)),Part2!$J$109,\"- €\")","v":"- €"},{"$f":"IF(ISNUMBER($D34),$D34-IF(ISNUMBER($E34),$E34,0),\"- €\")","v":"- €"},{"$f":"IF(ISNUMBER(Part2!$I$36),Part2!$I$36-IF(ISNUMBER($G34),$G34,0),\"- €\")","v":"- €"},{"$f":"IF(ISNUMBER(Part2!$I$72),Part2!$I$72-IF(ISNUMBER($H34),$H34,0),\"- €\")","v":"- €"},{"$f":"IF(ISNUMBER(SUM(Part2!$H$54,Part2!$H$63)),SUM(Part2!$H$54,Part2!$H$63)-IF(ISNUMBER($J34),$J34,0),\"- \")","v":{"v":0,"d":"0.0"}},{"$f":"IF(ISNUMBER(SUM(Part2!$I$54,Part2!$I$63)),SUM(Part2!$I$54,Part2!$I$63)-IF(ISNUMBER($L34),$L34,0),\"- \")","v":{"v":0,"d":"0 €"}},{"$f":"IF(AND(OR(Part2!$F$10=\"Marginal cost\",Part2!$F$10=\"Coût marginal\"),ISNUMBER(Part2!$H$45)),Part2!$H$45,\"-\")","v":"-"},{"$f":"IF(AND(OR(Part2!$F$10=\"Marginal cost\",Part2!$F$10=\"Coût marginal\"),ISNUMBER(Part2!$I$45)),Part2!$I$45,\"- €\")","v":"- €"},{"$f":"IF(ISNUMBER(Part2!$I$81),Part2!$I$81-IF(ISNUMBER($M34),$M34,0),\"- €\")","v":"- €"},{"$f":"IF(ISNUMBER(Part2!$I$90),Part2!$I$90-IF(ISNUMBER($N34),$N34,0),\"- €\")","v":"- €"},{"$f":"IF(ISNUMBER(Part2!$I$99),Part2!$I$99-IF(ISNUMBER($O34),$O34,0),\"- €\")","v":"- €"},{"$f":"Part2!$H$132","v":"- €"},null,{"$f":"IF(Part2!M$1<>\"\",Part2!M$1,\"\")","v":"10 erreurs"},{"$f":"IF(AC34<>\"\",LEFT(AC34,SEARCH(\" \",AC34)-1)*1,\"\")","v":10}]
["Part3",null,{"$f":"Part3!$D$10","v":0},{"$f":"IF(ISNUMBER(Part3!$G$112),Part3!$G$112,\"- €\")","v":"- €"},{"$f":"IF(ISNUMBER(Part3!$I$118),Part3!$I$118,\"- €\")","v":"- €"},{"$f":"IF(Part3!$I$114<>0,SUM($G35,$H35,$L35,$M35,$N35,$O35,$P35),\"- €\")","v":{"v":0,"d":"0 €"}},{"$f":"IF(ISNUMBER(Part3!$J$36),Part3!$J$36,\"- €\")","v":"- €"},{"$f":"IF(ISNUMBER(Part3!$J$72),Part3!$J$72,\"- €\")","v":"- €"},{"$f":"IF(H35=\"- €\",\"\",IF(F35=0,\"\",H35/F35))","v":""},{"$f":"IF(ISNUMBER(SUM(Part3!$L$54,Part3!$L$63)),SUM(Part3!$L$54,Part3!$L$63),\"-\")","v":{"v":0,"d":"0.0"}},{"$f":"IF(ISNUMBER(Part3!$L$54),Part3!$L$54,\"-\")","v":"-"},{"$f":"IF(ISNUMBER(SUM(Part3!$J$54,Part3!$J$63)),SUM(Part3!$J$54,Part3!$J$63),\"- €\")","v":{"v":0,"d":"0 €"}},{"$f":"IF(ISNUMBER(Part3!$J$81),Part3!$J$81,\"- €\")","v":"- €"},{"$f":"IF(ISNUMBER(Part3!$J$90),Part3!$J$90,\"- €\")","v":"- €"},{"$f":"IF(ISNUMBER(Part3!$J$99),Part3!$J$99,\"- €\")","v":"- €"},{"$f":"IF(AND(ISNUMBER(Part3!$J$109),ISNUMBER(Part3!$I$109)),Part3!$J$109,\"- €\")","v":"- €"},{"$f":"IF(ISNUMBER($D35),$D35-IF(ISNUMBER($E35),$E35,0),\"- €\")","v":"- €"},{"$f":"IF(ISNUMBER(Part3!$I$36),Part3!$I$36-IF(ISNUMBER($G35),$G35,0),\"- €\")","v":"- €"},{"$f":"IF(ISNUMBER(Part3!$I$72),Part3!$I$72-IF(ISNUMBER($H35),$H35,0),\"- €\")","v":"- €"},{"$f":"IF(ISNUMBER(SUM(Part3!$H$54,Part3!$H$63)),SUM(Part3!$H$54,Part3!$H$63)-IF(ISNUMBER($J35),$J35,0),\"- \")","v":{"v":0,"d":"0.0"}},{"$f":"IF(ISNUMBER(SUM(Part3!$I$54,Part3!$I$63)),SUM(Part3!$I$54,Part3!$I$63)-IF(ISNUMBER($L35),$L35,0),\"- \")","v":{"v":0,"d":"0 €"}},{"$f":"IF(AND(OR(Part3!$F$10=\"Marginal cost\",Part3!$F$10=\"Coût marginal\"),ISNUMBER(Part3!$H$45)),Part3!$H$45,\"-\")","v":"-"},{"$f":"IF(AND(OR(Part3!$F$10=\"Marginal cost\",Part3!$F$10=\"Coût marginal\"),ISNUMBER(Part3!$I$45)),Part3!$I$45,\"- €\")","v":"- €"},{"$f":"IF(ISNUMBER(Part3!$I$81),Part3!$I$81-IF(ISNUMBER($M35),$M35,0),\"- €\")","v":"- €"},{"$f":"IF(ISNUMBER(Part3!$I$90),Part3!$I$90-IF(ISNUMBER($N35),$N35,0),\"- €\")","v":"- €"},{"$f":"IF(ISNUMBER(Part3!$I$99),Part3!$I$99-IF(ISNUMBER($O35),$O35,0),\"- €\")","v":"- €"},{"$f":"Part3!$H$132","v":"- €"},null,{"$f":"IF(Part3!M$1<>\"\",Part3!M$1,\"\")","v":"10 erreurs"},{"$f":"IF(AC35<>\"\",LEFT(AC35,SEARCH(\" \",AC35)-1)*1,\"\")","v":10}]
[{"$f":"ListesDeroulantes!A49","v":"Totaux"},null,null,{"$f":"IF(SUM(D33:D35)<>0,SUM(D33:D35),\"- €\")","v":"- €"},{"$f":"IF(SUM(E33:E35)<>0,SUM(E33:E35),\"- €\")","v":"- €"},{"$f":"IF(SUM(F33:F35)<>0,SUM(F33:F35),\"- €\")","v":"- €"},{"$f":"IF(SUM(G33:G35)<>0,SUM(G33:G35),\"- €\")","v":"- €"},{"$f":"IF(SUM(H33:H35)<>0,SUM(H33:H35),\"- €\")","v":"- €"},{"$f":"IF(H36=\"- €\",\"\",IF(F36=0,\"\",H36/F36))","v":""},{"$f":"IF(SUM(J33:J35)<>0,SUM(J33:J35),\"-\")","v":"-"},{"$f":"IF(SUM(K33:K35)<>0,SUM(K33:K35),\"-\")","v":"-"},{"$f":"IF(SUM(L33:L35)<>0,SUM(L33:L35),\"- €\")","v":"- €"},"- €","- €","- €","- €","- €","- €","- €",{"$f":"IF(SUM(T33:T35)<>0,SUM(T33:T35),\"-\")","v":"-"},{"$f":"IF(SUM(U33:U35)<>0,SUM(U33:U35),\"- €\")","v":"- €"},{"$f":"IF(SUM(V33:V35)<>0,SUM(V33:V35),\"-\")","v":"-"},{"$f":"IF(SUM(W33:W35)<>0,SUM(W33:W35),\"- €\")","v":"- €"},{"$f":"IF(SUM(X33:X35)<>0,SUM(X33:X35),\"- €\")","v":"- €"},{"$f":"IF(SUM(Y33:Y35)<>0,SUM(Y33:Y35),\"- €\")","v":"- €"},{"$f":"IF(SUM(Z33:Z35)<>0,SUM(Z33:Z35),\"- €\")","v":"- €"},{"$f":"IF(SUM(AA33:AA35)<>0,SUM(AA33:AA35),\"- €\")","v":"- €"}]
[{"$nulls":9},{"$f":"IF(SUM(J36,T36,V36)>0,K36/SUM(J36,T36,V36),\"-\")","v":"-"}]
[]
[null,{"$f":"ListesDeroulantes!A50","v":"Coût complet du projet (en k€)"},null,null,{"$f":"IF(ISNUMBER(D36),D36/1000,\"- k€\")","v":"- k€"},null,null,{"$f":"ListesDeroulantes!A33","v":"Ratio Coût complet/\nAide demandée"},null,{"$f":"IF(AND(ISNUMBER(E39),ISNUMBER(E41)),IF(E41<>0,E39/E41,\"-\"),\"-\")","v":"-"}]
[]
[null,{"$f":"ListesDeroulantes!A51","v":"Aide totale demandée (en k€)"},null,null,{"$f":"IF(ISNUMBER(E36),E36/1000,\"- k€\")","v":"- k€"}]
[]
[null,null,{"$f":"ListesDeroulantes!A30","v":"Mode de calcul des coûts"},{"$f":"ListesDeroulantes!A159","v":"Taux d'aide demandé (%)"},{"$f":"ListesDeroulantes!A52","v":"Sigle de l'établissement partenaire"},null,null,{"$f":"ListesDeroulantes!A53","v":"Nom complet de l'établissement partenaire"},{"$nulls":6},{"$f":"ListesDeroulantes!A94","v":"N° de SIRET"}]
["Partenaire vide",null,{"$f":"'Partenaire vide'!$F$10","v":0},{"$f":"'Partenaire vide'!$I$116","v":{"v":0,"d":"0.0 %"}},{"$f":"'Partenaire vide'!$D$10","v":0},null,null,{"$f":"'Partenaire vide'!$D$7","v":0},{"$nulls":6},{"$f":"IF('Partenaire vide'!$D$16<>0,'Partenaire vide'!$D$16,\"\")","v":""}]
["Part1-Coord",null,{"$f":"'Part1-Coord'!F$10","v":"Coût marginal"},{"$f":"'Part1-Coord'!$I$116","v":{"v":0,"d":"0.0 %"}},{"$f":"'Part1-Coord'!D$10","v":0},null,null,{"$f":"IF('Part1-Coord'!D$7=\"\",\" \",'Part1-Coord'!D$7)","v":" "},{"$nulls":6},{"$f":"IF('Part1-Coord'!$D$16<>0,'Part1-Coord'!$D$16,\"\")","v":""}]
["Part2",null,{"$f":"Part2!F$10","v":0},{"$f":"Part2!$I$116","v":{"v":0,"d":"0.0 %"}},{"$f":"Part2!D$10","v":0},null,null,{"$f":"Part2!$D$7","v":0},{"$nulls":6},{"$f":"IF(Part2!$D$16<>0,Part2!$D$16,\"\")","v":""}]
["Part3",null,{"$f":"Part3!F$10","v":0},{"$f":"Part3!$I$116","v":{"v":0,"d":"0.0 %"}},{"$f":"Part3!D$10","v":0},null,null,{"$f":"Part3!$D$7","v":0},{"$nulls":6},{"$f":"IF(Part3!$D$16<>0,Part3!$D$16,\"\")","v":""}]
[{"$nulls":14},{"$f":"SUMPRODUCT(1/COUNTIF($O$45:$O$47,$O$45:$O$47))+IF(COUNTIF($O$45:$O$47,\"*étr*\")>=2,\"1\",0)","v":1}]
[{"$f":"ListesDeroulantes!A54","v":"NOTA : Toutes les champs de cet onglet \"Volet général\" doivent être renseignés.\nIls seront utilisés par les membres du jury au cours du processus de sélection."}]
[]
[{"$f":"ListesDeroulantes!A55","v":"Remarque : toutes les informations figurant ci-dessus ont vocation à être publiées si le projet est financé.\nEn déposant un dossier, les partenaires ont accepté la publication de toutes ces informations."}]
[]
[]
[null,{"$f":"ListesDeroulantes!A56","v":"Responsable scientifique et technique (RST)"},{"$nulls":10},{"$f":"ListesDeroulantes!A57","v":"Personne habilitée à engager l'établissement coordinateur (EC)"}]
[]
[null,{"$f":"ListesDeroulantes!A58","v":"Prénom"},null,{"$f":"ListesDeroulantes!A59","v":"Nom"},{"$nulls":8},{"$f":"ListesDeroulantes!A58","v":"Prénom"},null,"Nom"]
[null,{"$f":"IF('Part1-Coord'!B182<>\"\",'Part1-Coord'!B182,\"\")","v":""},null,{"$f":"IF('Part1-Coord'!D182<>\"\",UPPER('Part1-Coord'!D182),\"\")","v":""},{"$nulls":8},{"$f":"IF('Part1-Coord'!D22<>\"\",'Part1-Coord'!D22,\"\")","v":""},null,{"$f":"IF('Part1-Coord'!D23<>\"\",UPPER('Part1-Coord'!D23),\"\")","v":""}]
[{"$nulls":12},{"$f":"ListesDeroulantes!A60","v":"Qualité"}]
[{"$nulls":12},{"$f":"IF('Part1-Coord'!D24<>\"\",'Part1-Coord'!D24,\"\")","v":""}]
[]
[null,"Signature",{"$nulls":10},"Signature & visa"]
{"$rows_empty":7}
[null,{"$f":"ListesDeroulantes!A204","v":"Recommandations : Une fois le document finalisé et imprimé, vérifier la présence de l'ensemble des signatures et visa demandés avant de déposer la copie scannée en ligne."}]

{"sheet":"Echeancier_fin_previsionnel","index":2,"n_rows":34,"n_cols":15,"rows_kept":34,"hidden":true,"merged":[[0,0,5,1],[0,2,3,5],[0,6,0,12],[0,13,3,13],[1,6,1,7],[1,8,1,12],[2,6,2,7],[2,8,2,12],[3,6,3,7],[3,8,3,12],[4,2,5,11],[4,12,5,13],[7,0,7,10],[9,0,9,2],[9,3,9,5],[10,0,11,1],[10,3,10,12],[11,3,11,12],[13,0,13,2],[13,3,13,5],[13,6,13,8],[13,9,13,11],[15,0,17,2],[15,3,17,3],[15,4,16,4],[15,5,17,5],[15,6,15,9],[15,10,17,10],[15,11,17,11],[15,12,17,13],[18,0,18,1],[18,12,18,13],[19,0,19,1],[19,12,19,13],[20,0,20,1],[20,12,20,13],[21,0,21,1],[21,12,21,13],[22,0,22,1],[22,12,22,13],[23,0,23,1],[23,12,23,13],[24,0,24,1],[24,12,24,13],[26,1,26,4],[26,9,26,12],[28,1,28,2],[28,3,28,4],[28,9,28,10],[28,11,28,12],[29,1,29,2],[29,3,29,4],[29,9,29,10],[29,11,29,12],[30,9,30,12],[31,9,31,12],[33,1,33,4],[33,9,33,12],[34,1,37,4],[34,9,37,12]]}
[null,null,{"$f":"ListesDeroulantes!A4","v":"Appel à projets RHU"},{"$nulls":3},{"$f":"ListesDeroulantes!A5","v":"Réservé à l'organisme gestionnaire du programme"},{"$nulls":6},{"$f":"IF(COUNTIF(O6:O1612,\"Err*\")>0,COUNTIF(O6:O1612,\"Err*\")&\" \"&ListesDeroulantes!B188&IF(COUNTIF(O6:O1612,\"Err*\")>1,\"s\",\"\"),\"\")","v":""}]
[{"$nulls":6},{"$f":"ListesDeroulantes!A6","v":"N° de partenaire"},null,{"$f":"Volet_general!$N$2","v":0}]
[{"$nulls":6},{"$f":"ListesDeroulantes!A7","v":"Acronyme"},null,{"$f":"IF(Volet_general!D12<>\"\",Volet_general!D12,\"\")","v":""}]
[{"$nulls":6},{"$f":"ListesDeroulantes!A8","v":"Nb de partenaires"},null,{"$f":"Volet_general!N4","v":1}]
[null,null,{"$f":"ListesDeroulantes!A12","v":"Document administratif et financier"},{"$nulls":9},{"$f":"Notice!H1","v":"Edition 2023-vague6"}]
[]
[]
[{"$f":"ListesDeroulantes!A62","v":"Echéancier financier prévisionnel"}]
[]
[{"$f":"ListesDeroulantes!A15","v":"Acronyme du projet"},null,null,{"$f":"IF(Volet_general!D12<>\"\",Volet_general!D12,\"\")","v":""}]
[{"$f":"ListesDeroulantes!A16","v":"Titre du projet"},null,{"$f":"ListesDeroulantes!A17","v":"en francais"},{"$f":"IF(Volet_general!D13<>\"\",Volet_general!D13,\"\")","v":""}]
[null,null,{"$f":"ListesDeroulantes!A18","v":"en anglais"},{"$f":"IF(Volet_general!D14<>\"\",Volet_general!D14,\"\")","v":""}]
[]
[{"$f":"ListesDeroulantes!A23","v":"Durée du projet (en mois)"},null,null,{"$f":"IF(Volet_general!D19<>\"\",Volet_general!D19,\"\")","v":""},null,null,{"$f":"ListesDeroulantes!A24","v":"Date de démarrage souhaitée"},null,null,{"$f":"IF(Volet_general!I19<>\"\",Volet_general!I19,\"\")","v":""}]
[]
[{"$f":"ListesDeroulantes!A31","v":"Etablissement partenaire"},null,null,{"$f":"ListesDeroulantes!A63","v":"WP(s) et tâche(s) concernés"},{"$f":"ListesDeroulantes!A34","v":"Aide demandée\n(en €)"},"Préfinancement",{"$f":"ListesDeroulantes!B64","v":"Echéanciers des besoins"},{"$nulls":3},"Solde","Total",{"$f":"ListesDeroulantes!A65","v":"Commentaires"}]
[{"$nulls":6},{"$f":"IF(J14<>\"\",YEAR(J14)+1,(Notice!I2+1))","v":2017},{"$f":"G$17+1","v":2018},{"$f":"H$17+1","v":2019},{"$f":"I$17+1","v":2020}]
[{"$nulls":4},"Rappel Volet_general",null,"T0+12","T0+24","T0+36","T0+48"]
["Partenaire vide",null,{"$f":"'Partenaire vide'!D$10","v":0},null,{"$f":"Volet_general!$E32","v":"- €"},{"$f":"IF(E19=\"- €\",\"0€\",10%*E19)","v":"0€"},{"$nulls":4},{"$f":"IF(E19=\"- €\",\"0€\",10%*E19)","v":"0€"},{"$f":"IF(ISNUMBER(SUM(F19:K19)),SUM(F19:K19),\"- €\")","v":{"v":0,"d":"0 €"}},null,null,{"$f":"IF(IF(ISNUMBER(L19),ROUND(L19,0),0)=IF(ISNUMBER('Partenaire vide'!I$118),ROUND('Partenaire vide'!I$118,0),0),\"\",ListesDeroulantes!A$203&A19&\")\")","v":""}]
["Part1-Coord",null,{"$f":"'Part1-Coord'!D$10","v":0},null,{"$f":"Volet_general!$E33","v":"- €"},{"$f":"IF(E20=\"- €\",\"0€\",10%*E20)","v":"0€"},{"$nulls":4},"0€",{"$f":"IF(ISNUMBER(SUM(F20:K20)),SUM(F20:K20),\"- €\")","v":{"v":0,"d":"0 €"}},null,null,{"$f":"IF(IF(ISNUMBER(L20),ROUND(L20,0),0)=IF(ISNUMBER('Part1-Coord'!I$118),ROUND('Part1-Coord'!I$118,0),0),\"\",ListesDeroulantes!A$203&A20&\")\")","v":""}]
["Part2",null,{"$f":"Part2!D$10","v":0},null,{"$f":"Volet_general!$E34","v":"- €"},{"$f":"IF(E21=\"- €\",\"0€\",10%*E21)","v":"0€"},{"$nulls":4},"0€",{"v":0,"d":"0 €"},null,null,{"$f":"IF(IF(ISNUMBER(L21),ROUND(L21,0),0)=IF(ISNUMBER(Part2!I$118),ROUND(Part2!I$118,0),0),\"\",ListesDeroulantes!A$203&A21&\")\")","v":""}]
["Part3",null,{"$f":"Part3!D$10","v":0},null,{"$f":"Volet_general!$E35","v":"- €"},{"$f":"IF(E22=\"- €\",\"0€\",10%*E22)","v":"0€"},{"$nulls":4},{"$f":"IF(E22=\"- €\",\"0€\",10%*E22)","v":"0€"},{"$f":"IF(ISNUMBER(SUM(F22:K22)),SUM(F22:K22),\"- €\")","v":{"v":0,"d":"0 €"}},null,null,{"$f":"IF(IF(ISNUMBER(L22),ROUND(L22,0),0)=IF(ISNUMBER(Part3!I$118),ROUND(Part3!I$118,0),0),\"\",ListesDeroulantes!A$203&A22&\")\")","v":""}]
["Part4",null,{"$f":"#REF!","v":{"$error":"#REF!"}},null,{"$f":"Volet_general!#REF!","v":{"$error":"#REF!"}},{"$f":"IF(E23=\"- €\",\"0€\",10%*E23)","v":{"$error":"#REF!"}},{"$nulls":4},{"$error":"#REF!"},{"$f":"IF(ISNUMBER(SUM(F23:K23)),SUM(F23:K23),\"- €\")","v":"- €"},null,null,{"$f":"IF(IF(ISNUMBER(L23),ROUND(L23,0),0)=IF(ISNUMBER(#REF!),ROUND(#REF!,0),0),\"\",ListesDeroulantes!A$203&A23&\")\")","v":""}]
["Part4",null,{"$f":"#REF!","v":{"$error":"#REF!"}},null,{"$f":"Volet_general!#REF!","v":{"$error":"#REF!"}},{"$f":"IF(E24=\"- €\",\"0€\",10%*E24)","v":{"$error":"#REF!"}},{"$nulls":4},{"$f":"IF(E24=\"- €\",\"0€\",10%*E24)","v":{"$error":"#REF!"}},{"$f":"IF(ISNUMBER(SUM(F24:K24)),SUM(F24:K24),\"- €\")","v":"- €"},null,null,{"$f":"IF(IF(ISNUMBER(L24),ROUND(L24,0),0)=IF(ISNUMBER(#REF!),ROUND(#REF!,0),0),\"\",ListesDeroulantes!A$203&A24&\")\")","v":""}]
[{"$f":"ListesDeroulantes!A49","v":"Totaux"},{"$nulls":3},{"$f":"IF(SUM(E20:E24)<>0,SUM(E20:E24),\"- €\")","v":{"$error":"#REF!"}},{"$error":"#REF!"},"- €","- €","- €","- €",{"$error":"#REF!"},"- €"]
[]
[null,{"$f":"ListesDeroulantes!A56","v":"Responsable scientifique et technique (RST)"},{"$nulls":7},{"$f":"ListesDeroulantes!A57","v":"Personne habilitée à engager l'établissement coordinateur (EC)"}]
[]
[null,{"$f":"ListesDeroulantes!A58","v":"Prénom"},null,{"$f":"ListesDeroulantes!A59","v":"Nom"},{"$nulls":5},{"$f":"ListesDeroulantes!A58","v":"Prénom"},null,{"$f":"ListesDeroulantes!A59","v":"Nom"}]
[null,{"$f":"Volet_general!B57","v":""},null,{"$f":"Volet_general!D57","v":""},{"$nulls":5},{"$f":"Volet_general!M57","v":""},null,{"$f":"Volet_general!O57","v":""}]
[{"$nulls":9},{"$f":"ListesDeroulantes!A60","v":"Qualité"}]
[{"$nulls":9},{"$f":"Volet_general!M59","v":""}]
[]
[null,"Signature",{"$nulls":7},"Signature & visa"]

{"sheet":"Part1-Coord","index":3,"n_rows":186,"n_cols":17,"rows_kept":186,"merged":[[0,0,2,4],[0,5,0,9],[0,11,4,13],[1,5,1,6],[1,7,1,9],[2,5,2,6],[2,7,2,9],[4,1,4,9],[6,0,7,2],[6,3,7,9],[6,12,6,13],[9,0,9,2],[9,5,9,9],[10,0,10,2],[11,0,12,2],[11,3,12,3],[11,5,12,9],[13,0,13,2],[14,0,15,2],[14,4,16,4],[14,5,16,9],[14,12,16,13],[16,0,16,2],[18,1,18,9],[20,0,20,2],[20,12,23,13],[21,0,21,2],[21,3,21,9],[22,0,22,2],[22,3,22,9],[23,0,23,2],[23,3,23,9],[25,1,25,9],[26,1,27,9],[28,1,31,1],[28,2,31,2],[28,3,31,3],[28,4,31,4],[28,5,31,5],[28,6,31,6],[28,7,31,7],[28,8,31,8],[28,9,31,9],[28,12,31,13],[32,12,32,13],[33,12,33,13],[34,12,34,13],[36,1,37,9],[38,1,40,1],[38,2,40,2],[38,3,40,3],[38,4,40,4],[38,5,40,5],[38,6,40,6],[38,7,40,7],[38,8,40,8],[38,9,40,9],[41,12,41,13],[42,12,42,13],[43,12,43,13],[45,1,46,9],[47,1,49,1],[47,2,49,2],[47,3,49,3],[47,4,49,4],[47,5,49,5],[47,6,49,6],[47,7,49,7],[47,8,49,8],[47,9,49,9],[47,11,49,11],[50,12,50,13],[51,12,51,13],[52,12,52,13],[54,1,55,9],[56,1,58,1],[56,2,58,2],[56,3,58,3],[56,4,58,4],[56,5,58,5],[56,6,58,6],[56,7,58,7],[56,8,58,8],[56,9,58,9],[56,11,58,11],[59,12,59,13],[60,12,60,13],[61,12,61,13],[63,1,64,9],[65,1,67,1],[65,2,67,2],[65,3,67,3],[65,4,67,4],[65,5,67,5],[65,6,67,6],[65,7,67,7],[65,8,67,8],[65,9,67,9],[68,12,68,13],[69,12,69,13],[70,12,70,13],[72,1,73,9],[74,1,76,1],[74,2,76,2],[74,3,76,3],[74,4,76,4],[74,5,76,5],[74,6,76,6],[74,7,76,7],[74,8,76,8],[74,9,76,9],[77,12,77,13],[78,12,78,13],[79,12,79,13],[81,1,82,9],[83,1,85,1],[83,2,85,2],[83,3,85,3],[83,4,85,4],[83,5,85,5],[83,6,85,6],[83,7,85,7],[83,8,85,8],[83,9,85,9],[86,12,86,13],[87,12,87,13],[88,12,88,13],[90,1,91,9],[92,1,94,1],[92,2,94,2],[92,3,94,3],[92,4,94,4],[92,5,94,5],[92,6,94,6],[92,7,94,7],[92,8,94,8],[92,9,94,9],[95,12,95,13],[96,12,96,13],[97,12,97,13],[99,1,100,9],[101,2,103,2],[101,3,103,3],[101,4,103,4],[101,5,103,5],[101,6,103,6],[101,7,103,7],[101,8,103,8],[101,9,103,9],[104,0,105,0],[104,1,105,1],[104,2,105,2],[104,3,105,3],[104,4,105,4],[104,5,105,5],[104,6,105,6],[104,7,105,7],[104,8,105,8],[104,9,105,9],[104,12,105,13],[106,0,107,0],[106,1,107,1],[106,2,107,2],[106,3,107,3],[106,4,107,4],[106,5,107,5],[106,6,107,6],[106,7,107,7],[106,8,107,8],[106,9,107,9],[106,12,107,13],[109,1,110,9],[111,4,112,5],[111,6,112,7],[111,8,112,9],[113,4,114,5],[113,6,114,7],[113,8,114,9],[115,4,116,5],[115,6,116,7],[115,8,116,9],[115,12,116,13],[117,4,118,5],[117,6,118,7],[117,8,118,9],[120,1,120,9],[121,1,121,9],[123,1,127,3],[123,4,127,4],[123,5,127,6],[123,7,127,8],[123,9,127,9],[128,1,128,3],[128,5,128,6],[128,7,128,8],[129,1,129,3],[129,5,129,6],[129,7,129,8],[130,1,130,3],[130,5,130,6],[130,7,130,8],[131,5,131,6],[131,7,131,8],[133,1,133,9],[135,1,138,9],[140,1,140,9],[141,1,141,6],[142,1,142,6],[143,1,143,6],[145,1,145,9],[147,1,147,9],[149,1,152,9],[154,1,156,9],[158,1,158,9],[160,0,160,9],[162,0,162,3],[162,5,162,9],[164,0,164,9],[165,0,165,9],[167,0,167,4],[167,5,167,9],[168,0,168,4],[168,5,168,9],[169,0,169,4],[169,5,169,9],[170,0,170,4],[170,5,170,9],[171,0,171,4],[171,5,171,9],[172,0,172,4],[172,5,172,9],[173,0,173,4],[173,5,173,9],[174,0,174,4],[174,5,174,9],[175,0,175,4],[175,5,175,9],[176,5,176,9],[177,0,177,9],[178,1,178,3],[178,5,178,8],[180,1,180,2],[180,5,180,6],[180,7,180,8],[180,12,183,13],[181,1,181,2],[181,5,181,6],[181,7,181,8],[182,5,182,8],[183,1,183,3],[183,5,183,8],[184,1,187,3],[185,5,185,8],[186,5,189,8]]}
[{"$f":"ListesDeroulantes!A68&1&ListesDeroulantes!A69","v":"Fiche partenaire n°1 : Identification et budget"},{"$nulls":4},{"$f":"ListesDeroulantes!A5","v":"Réservé à l'organisme gestionnaire du programme"},{"$nulls":5},{"$f":"IF(COUNTIF(M6:M1607,\"Err*\")>0,COUNTIF(M6:M1607,\"Err*\")&\" \"&ListesDeroulantes!A188&IF(COUNTIF(M6:M1607,\"Err*\")>1,\"s\",\"\"),\"\")","v":"8 erreurs"}]
[{"$nulls":5},{"$f":"ListesDeroulantes!A6","v":"N° de partenaire"},null,{"$f":"Volet_general!$N$2 & \"-01\"","v":"0-01"}]
[{"$nulls":5},{"$f":"ListesDeroulantes!A7","v":"Acronyme"},null,{"$f":"Volet_general!D12","v":0}]
[{"$nulls":14},{"$f":"IF(COUNTIF(ListesDeroulantes!B81:C81,D12)+COUNTIF(ListesDeroulantes!B83:C85,D12)>0,ListesDeroulantes!A75,ListesDeroulantes!A74)","v":"Coût complet"},{"$f":"IF(COUNTIF(ListesDeroulantes!B81:C81,D12)+COUNTIF(ListesDeroulantes!B83:C85,D12)>0,ListesDeroulantes!B75,ListesDeroulantes!B74)","v":"Coût complet"},{"$f":"IF(COUNTIF(ListesDeroulantes!B81:C81,D12)+COUNTIF(ListesDeroulantes!B83:C85,D12)>0,ListesDeroulantes!C75,ListesDeroulantes!C74)","v":"Full costs"}]
[null,{"$f":"ListesDeroulantes!A70","v":"Identification de l'établissement partenaire"},{"$nulls":12},{"$f":"IF(OR(D12=ListesDeroulantes!B86,D12=ListesDeroulantes!C86,D12=\"\"),ListesDeroulantes!A75,\"\")","v":"Coût marginal"},{"$f":"IF(OR(D12=ListesDeroulantes!B86,D12=ListesDeroulantes!C86,D12=\"\"),ListesDeroulantes!B75,\"\")","v":"Coût marginal"},{"$f":"IF(OR(D12=ListesDeroulantes!B86,D12=ListesDeroulantes!C86,D12=\"\"),ListesDeroulantes!C75,\"\")","v":"Marginal cost"}]
[]
[{"$f":"ListesDeroulantes!A71","v":"Nom complet du partenaire"},{"$nulls":11},{"$f":"IF(OR(D7=\"\",D10=\"\",D11=\"\",D12=\"\",D16=\"\",D17=\"\",F10=\"\"),ListesDeroulantes!A189,\"\")","v":"Erreur : les données concernant l'établissement partenaire ne sont pas toutes renseignées."},null,{"$f":"IF(D16=\"\",ListesDeroulantes!A96,IF(OR(D16=ListesDeroulantes!B96,D16=ListesDeroulantes!C96),ListesDeroulantes!A96,(IF(LEFT(D16,9)=356000000,356000000,(IF(LEN(D16)=9,MOD(MID(D16,1,1)+IF(MID(D16,2,1)*2<10,MID(D16,2,1)*2,MID(D16,2,1)*2-9)+MID(D16,3,1)+IF(MID(D16,4,1)*2<10,MID(D16,4,1)*2,MID(D16,4,1)*2-9)+MID(D16,5,1)+IF(MID(D16,6,1)*2<10,MID(D16,6,1)*2,MID(D16,6,1)*2-9)+MID(D16,7,1)+IF(MID(D16,8,1)*2<10,MID(D16,8,1)*2,MID(D16,8,1)*2-9)+MID(D16,9,1),10)=0,IF(LEN(D16)=14,IF(MOD(IF(MID(D16,1,1)*2<10,MID(D16,1,1)*2,MID(D16,1,1)*2-9)+MID(D16,2,1)+IF(MID(D16,3,1)*2<10,MID(D16,3,1)*2,MID(D16,3,1)*2-9)+MID(D16,4,1)+IF(MID(D16,5,1)*2<10,MID(D16,5,1)*2,MID(D16,5,1)*2-9)+MID(D16,6,1)+IF(MID(D16,7,1)*2<10,MID(D16,7,1)*2,MID(D16,7,1)*2-9)+MID(D16,8,1)+IF(MID(D16,9,1)*2<10,MID(D16,9,1)*2,MID(D16,9,1)*2-9)+MID(D16,10,1)+IF(MID(D16,11,1)*2<10,MID(D16,11,1)*2,MID(D16,11,1)*2-9)+MID(D16,12,1)+IF(MID(D16,13,1)*2<10,MID(D16,13,1)*2,MID(D16,13,1)*2-9)+MID(D16,14,1),10)=0,D16,FALSE),FALSE)))))))","v":"Entreprise étrangère"}]
[{"$nulls":14},{"$f":"IF(AND(O7<>ListesDeroulantes!B96,O7<>ListesDeroulantes!C96),ListesDeroulantes!A96,\"\")","v":""}]
[]
[{"$f":"ListesDeroulantes!A72","v":"Sigle du partenaire "},{"$nulls":3},{"$f":"ListesDeroulantes!A73","v":"Base de calcul de l'assiette de l'aide "},"Coût marginal",{"$nulls":6},{"$f":"IF(F10=\"\",ListesDeroulantes!A$190,IF(AND(F12=\"\",F10<>P4,F10<>Q4),ListesDeroulantes!A191,\"\"))","v":"Erreur : le mode de calcul des coûts ne correspond pas à la forme juridique choisie."}]
[{"$f":"ListesDeroulantes!A77","v":"Catégorie de partenaire"},null,null,"Organisme de recherche"]
[{"$f":"ListesDeroulantes!A80","v":"Forme juridique"},{"$nulls":4},{"$f":"IF(OR(D12=ListesDeroulantes!B86,D12=ListesDeroulantes!C86),ListesDeroulantes!A76,\"\")","v":""},{"$nulls":7},{"$f":"IF(OR(D11=ListesDeroulantes!B79,D11=ListesDeroulantes!C79),IF(COUNTIF(ListesDeroulantes!B81:C86,D12)>0,ListesDeroulantes!A192,\"\"),\"\")&IF(OR(D11=ListesDeroulantes!B78,D11=ListesDeroulantes!C78),IF(COUNTIF(ListesDeroulantes!B87:C91,D12)>0,ListesDeroulantes!A192,\"\"),\"\")","v":""},{"$f":"IF(OR(D$11=ListesDeroulantes!B$78,D$11=ListesDeroulantes!C$78),ListesDeroulantes!A81,IF(OR(D$11=ListesDeroulantes!B$79,D$11=ListesDeroulantes!C$79),ListesDeroulantes!A87,ListesDeroulantes!A81))","v":"EPST : Établissement public à caractère scientifique et technologique"}]
[{"$nulls":14},{"$f":"IF(OR(D$11=ListesDeroulantes!B$78,D$11=ListesDeroulantes!C$78),ListesDeroulantes!A82,IF(OR(D$11=ListesDeroulantes!B$79,D$11=ListesDeroulantes!C$79),ListesDeroulantes!A88,ListesDeroulantes!A82))","v":"EPIC : Établissement public à caractère industriel et commercial"}]
[{"$nulls":14},{"$f":"IF(OR(D$11=ListesDeroulantes!B$78,D$11=ListesDeroulantes!C$78),ListesDeroulantes!A83,IF(OR(D$11=ListesDeroulantes!B$79,D$11=ListesDeroulantes!C$79),ListesDeroulantes!A89,ListesDeroulantes!A83))","v":"Établissement de santé"}]
[{"$f":"ListesDeroulantes!A94","v":"N° de SIRET"},null,null,{"$f":"ListesDeroulantes!A95","v":"Saisir un n°SIRET de 14digits"},{"$f":"ListesDeroulantes!A92","v":"Catégorie de recherche R&D"},{"$f":"IF(Volet_general!D16<>\"\",Volet_general!D16,\"\")","v":""},{"$nulls":6},{"$f":"IF(F15=\"\",ListesDeroulantes!A198,\"\")","v":"Erreur : la catégorie de recherche R&D n'est pas renseignée. Merci de revenir au volet général pour le completer pour poursuivre."},null,{"$f":"IF(OR(D$11=ListesDeroulantes!B$78,D$11=ListesDeroulantes!C$78),ListesDeroulantes!A84,IF(OR(D$11=ListesDeroulantes!B$79,D$11=ListesDeroulantes!C$79),ListesDeroulantes!A90,ListesDeroulantes!A84))","v":"Fondation de recherche (FR)"}]
[{"$nulls":3},"",{"$nulls":10},{"$f":"IF(OR(D$11=ListesDeroulantes!B$78,D$11=ListesDeroulantes!C$78),ListesDeroulantes!A85,IF(OR(D$11=ListesDeroulantes!B$79,D$11=ListesDeroulantes!C$79),ListesDeroulantes!A91,ListesDeroulantes!A85))","v":"Université"}]
[{"$f":"ListesDeroulantes!A97","v":"Assujetti à la TVA "},{"$nulls":13},{"$f":"IF(OR(D$11=ListesDeroulantes!B$78,D$11=ListesDeroulantes!C$78),ListesDeroulantes!A86,IF(OR(D$11=ListesDeroulantes!B$79,D$11=ListesDeroulantes!C$79),\" \",ListesDeroulantes!A86))","v":"Autre public"}]
[{"$nulls":14},{"$f":"IF(OR(D$11=ListesDeroulantes!B$78,D$11=ListesDeroulantes!C$78),\" \",IF(OR(D$11=ListesDeroulantes!B$79,D$11=ListesDeroulantes!C$79),\" \",ListesDeroulantes!A87))","v":" "}]
[null,{"$f":"ListesDeroulantes!A100","v":"Personne habilitée à représenter juridiquement l'établissement partenaire (pour signature de la convention attributive d'aide ou de reversement)"},{"$nulls":12},{"$f":"IF(OR(D$11=ListesDeroulantes!B$78,D$11=ListesDeroulantes!C$78),\" \",IF(OR(D$11=ListesDeroulantes!B$79,D$11=ListesDeroulantes!C$79),\" \",ListesDeroulantes!A88))","v":" "}]
[{"$nulls":14},{"$f":"IF(OR(D$11=ListesDeroulantes!B$78,D$11=ListesDeroulantes!C$78),\" \",IF(OR(D$11=ListesDeroulantes!B$79,D$11=ListesDeroulantes!C$79),\" \",ListesDeroulantes!A89))","v":" "}]
[{"$f":"ListesDeroulantes!A101","v":"Genre"},{"$nulls":11},{"$f":"IF(OR(D21=\"\",D22=\"\",D23=\"\",D24=\"\"),ListesDeroulantes!A202,\"\")","v":"Erreur : les données concernant la personne habilitée à engager le partenaire ne sont pas toutes renseignées."},null,{"$f":"IF(OR(D$11=ListesDeroulantes!B$78,D$11=ListesDeroulantes!C$78),\" \",IF(OR(D$11=ListesDeroulantes!B$79,D$11=ListesDeroulantes!C$79),\" \",ListesDeroulantes!A90))","v":" "}]
[{"$f":"ListesDeroulantes!A58","v":"Prénom"},{"$nulls":13},{"$f":"IF(OR(D$11=ListesDeroulantes!B$78,D$11=ListesDeroulantes!C$78),\" \",IF(OR(D$11=ListesDeroulantes!B$79,D$11=ListesDeroulantes!C$79),\" \",ListesDeroulantes!A91))","v":" "}]
[{"$f":"ListesDeroulantes!A59","v":"Nom"}]
[{"$f":"ListesDeroulantes!A60","v":"Qualité"}]
[]
[null,{"$f":"ListesDeroulantes!A104","v":"Demande financière ANR détaillée du projet (montant HT en €, incluant la TVA non récupérable le cas échéant)"}]
[null,{"$f":"ListesDeroulantes!A105","v":"Equipements ou amortissement d'équipements de R&D (supérieur à 4 000 € HT)"}]
[]
[{"$nulls":4},{"$f":"ListesDeroulantes!A$106","v":"Descriptif"},{"$f":"ListesDeroulantes!A$107","v":"WP(s) ET tâche(s) concernés"},{"$f":"ListesDeroulantes!A$108","v":"Coût d'achat\n(en €)"},{"$f":"ListesDeroulantes!A$109","v":"Pourcentage d'utilisation (en %)"},{"$f":"ListesDeroulantes!A$110","v":"Coût total\n(en €)"},{"$f":"ListesDeroulantes!A$111","v":"Assiette de l'aide (en €) "},null,null,{"$f":"IF(F10=\"\",ListesDeroulantes!A199,\"\")","v":""}]
[]
[]
[]
[null,{"$f":"B32+1","v":1},{"$nulls":5},{"v":100,"d":"100.0 %"},{"$f":"IF(AND($F$10<>ListesDeroulantes!B$75,$F$10<>ListesDeroulantes!C$75,$F$10<>ListesDeroulantes!B$74,$F$10<>ListesDeroulantes!C$74),\"\",IF(OR($F$10=ListesDeroulantes!B$74,$F$10=ListesDeroulantes!C$74),IF(AND(G33<>0,H33<>0),G33*H33/100,\"\"),IF(ISNUMBER(G33),G33,\"\")))","v":""},{"$nulls":3},{"$f":"IF(AND(ISNUMBER(J33),ISNUMBER(I33)),IF(J33>I33,ListesDeroulantes!A$194,\"\"),IF(AND(ISNUMBER(J33),NOT(ISNUMBER(I33))),ListesDeroulantes!A$194,\"\"))","v":""}]
[null,{"$f":"B33+1","v":2},{"$nulls":5},{"v":100,"d":"100.0 %"},{"$f":"IF(AND($F$10<>ListesDeroulantes!B$75,$F$10<>ListesDeroulantes!C$75,$F$10<>ListesDeroulantes!B$74,$F$10<>ListesDeroulantes!C$74),\"\",IF(OR($F$10=ListesDeroulantes!B$74,$F$10=ListesDeroulantes!C$74),IF(AND(G34<>0,H34<>0),G34*H34/100,\"\"),IF(ISNUMBER(G34),G34,\"\")))","v":""},{"$nulls":3},{"$f":"IF(AND(ISNUMBER(J34),ISNUMBER(I34)),IF(J34>I34,ListesDeroulantes!A$194,\"\"),IF(AND(ISNUMBER(J34),NOT(ISNUMBER(I34))),ListesDeroulantes!A$194,\"\"))","v":""}]
[null,{"$f":"B34+1","v":3},{"$nulls":6},{"$f":"IF(AND($F$10<>ListesDeroulantes!B$75,$F$10<>ListesDeroulantes!C$75,$F$10<>ListesDeroulantes!B$74,$F$10<>ListesDeroulantes!C$74),\"\",IF(OR($F$10=ListesDeroulantes!B$74,$F$10=ListesDeroulantes!C$74),IF(AND(G35<>0,H35<>0),G35*H35/100,\"\"),IF(ISNUMBER(G35),G35,\"\")))","v":""},{"$nulls":3},{"$f":"IF(AND(ISNUMBER(J35),ISNUMBER(I35)),IF(J35>I35,ListesDeroulantes!A$194,\"\"),IF(AND(ISNUMBER(J35),NOT(ISNUMBER(I35))),ListesDeroulantes!A$194,\"\"))","v":""}]
[{"$nulls":4},"Total",{"$nulls":3},{"$f":"IF(SUM(I33:I35)<>0,SUM(I33:I35),\"- €\")","v":"- €"},{"$f":"IF(SUM(J33:J35)<>0,SUM(J33:J35),\"- €\")","v":"- €"}]
[null,{"$f":"ListesDeroulantes!A112","v":"Personnels sans financement ANR (uniquement pour les partenaires organismes de recherche)"}]
[]
[null,null,{"$f":"ListesDeroulantes!A$113","v":"OR/ES/\nMixte"},{"$f":"ListesDeroulantes!A$117","v":"Catégorie de personnel"},{"$f":"ListesDeroulantes!A$124","v":"Descriptif et commentaires éventuels"},{"$f":"ListesDeroulantes!A$107","v":"WP(s) ET tâche(s) concernés"},{"$f":"ListesDeroulantes!A$125","v":"Coût mensuel (en €)"},{"$f":"ListesDeroulantes!A$126","v":"Personne. Mois"},{"$f":"ListesDeroulantes!A$110","v":"Coût total\n(en €)"}]
[]
[]
[null,{"$f":"B41+1","v":1},{"$nulls":6},{"$f":"IF(G42*H42<>0,G42*H42,\"\")","v":""},{"$nulls":3},{"$f":"IF(AND(OR(C42<>\"\",D42<>\"\",E42<>\"\",F42<>\"\",G42<>\"\",H42<>\"\"),COUNTIF(ListesDeroulantes!$B$74:$C$74,$F$10)>0),ListesDeroulantes!A$193,\"\")","v":""}]
[null,2,{"$nulls":6},{"$f":"IF(G43*H43<>0,G43*H43,\"\")","v":""},{"$nulls":3},{"$f":"IF(AND(OR(C43<>\"\",D43<>\"\",E43<>\"\",F43<>\"\",G43<>\"\",H43<>\"\"),COUNTIF(ListesDeroulantes!$B$74:$C$74,$F$10)>0),ListesDeroulantes!A$193,\"\")","v":""}]
[null,3,{"$nulls":6},{"$f":"IF(G44*H44<>0,G44*H44,\"\")","v":""},{"$nulls":3},{"$f":"IF(AND(OR(C44<>\"\",D44<>\"\",E44<>\"\",F44<>\"\",G44<>\"\",H44<>\"\"),COUNTIF(ListesDeroulantes!$B$74:$C$74,$F$10)>0),ListesDeroulantes!A$193,\"\")","v":""}]
[{"$nulls":4},"Total",null,null,{"$f":"IF(COUNTIF(ListesDeroulantes!$B$74:$C$74,$F$10)>0,\"-\",IF(SUM(H42:H44)<>0,SUM(H42:H44),\"-\"))","v":"-"},{"$f":"IF(COUNTIF(ListesDeroulantes!$B$74:$C$74,$F$10)>0,\"- €\",IF(SUM(I42:I44)<>0,SUM(I42:I44),\"- €\"))","v":"- €"}]
[null,{"$f":"ListesDeroulantes!A127","v":"Personnels avec financement ANR en contrat à durée déterminée"}]
[]
[null,null,{"$f":"ListesDeroulantes!A$113","v":"OR/ES/\nMixte"},{"$f":"ListesDeroulantes!A$117","v":"Catégorie de personnel"},{"$f":"ListesDeroulantes!A$124","v":"Descriptif et commentaires éventuels"},{"$f":"ListesDeroulantes!A$107","v":"WP(s) ET tâche(s) concernés"},{"$f":"ListesDeroulantes!A$125","v":"Coût mensuel (en €)"},{"$f":"ListesDeroulantes!A$126","v":"Personne. Mois"},{"$f":"ListesDeroulantes!A$110","v":"Coût total\n(en €)"},{"$f":"ListesDeroulantes!A$111","v":"Assiette de l'aide (en €) "},null,{"$f":"H48&\" financés\"","v":"Personne. Mois financés"}]
[]
[]
[null,{"$f":"B50+1","v":1},{"$nulls":6},{"$f":"IF(G51*H51<>0,G51*H51,\"\")","v":""},null,null,{"$f":"IF(AND(H51>0,I51<>0,J51>0),J51/I51*H51,\"\")","v":""},{"$f":"IF(AND(ISNUMBER(J51),ISNUMBER(I51)),IF(J51>I51,ListesDeroulantes!A$194,\"\"),IF(AND(ISNUMBER(J51),NOT(ISNUMBER(I51))),ListesDeroulantes!A$194,\"\"))","v":""}]
[null,{"$f":"B51+1","v":2},{"$nulls":6},{"$f":"IF(G52*H52<>0,G52*H52,\"\")","v":""},null,null,{"$f":"IF(AND(H52>0,I52<>0,J52>0),J52/I52*H52,\"\")","v":""},{"$f":"IF(AND(ISNUMBER(J52),ISNUMBER(I52)),IF(J52>I52,ListesDeroulantes!A$194,\"\"),IF(AND(ISNUMBER(J52),NOT(ISNUMBER(I52))),ListesDeroulantes!A$194,\"\"))","v":""}]
[null,{"$f":"B52+1","v":3},{"$nulls":6},"",null,null,"",{"$f":"IF(AND(ISNUMBER(J53),ISNUMBER(I53)),IF(J53>I53,ListesDeroulantes!A$194,\"\"),IF(AND(ISNUMBER(J53),NOT(ISNUMBER(I53))),ListesDeroulantes!A$194,\"\"))","v":""}]
[{"$nulls":4},"Total",null,null,{"$f":"IF(SUM(H51:H53)<>0,SUM(H51:H53),\"-\")","v":"-"},{"$f":"IF(SUM(I51:I53)<>0,SUM(I51:I53),\"- €\")","v":"- €"},{"$f":"IF(SUM(J51:J53)<>0,SUM(J51:J53),\"- €\")","v":"- €"},null,{"$f":"IF(SUM(L51:L53)<>0,SUM(L51:L53),\"\")","v":""}]
[null,{"$f":"ListesDeroulantes!A139","v":"Personnels avec financement ANR en contrat à durée indéterminée"}]
[]
[null,null,{"$f":"ListesDeroulantes!A$113","v":"OR/ES/\nMixte"},{"$f":"ListesDeroulantes!A$117","v":"Catégorie de personnel"},{"$f":"ListesDeroulantes!A$124","v":"Descriptif et commentaires éventuels"},{"$f":"ListesDeroulantes!A$107","v":"WP(s) ET tâche(s) concernés"},{"$f":"ListesDeroulantes!A$125","v":"Coût mensuel (en €)"},{"$f":"ListesDeroulantes!A$126","v":"Personne. Mois"},{"$f":"ListesDeroulantes!A$110","v":"Coût total\n(en €)"},{"$f":"ListesDeroulantes!A$111","v":"Assiette de l'aide (en €) "},null,{"$f":"H57&\" financés\"","v":"Personne. Mois financés"}]
[]
[]
[null,{"$f":"B59+1","v":1},{"$nulls":6},{"$f":"IF(G60*H60<>0,G60*H60,\"\")","v":""},null,null,{"$f":"IF(AND(H60>0,I60<>0,J60>0),J60/I60*H60,\"\")","v":""},{"$f":"IF(AND(ISNUMBER(J60),ISNUMBER(I60)),IF(J60>I60,ListesDeroulantes!A$194,\"\"),IF(AND(ISNUMBER(J60),NOT(ISNUMBER(I60))),ListesDeroulantes!A$194,\"\"))","v":""}]
[null,{"$f":"B60+1","v":2},{"$nulls":6},{"$f":"IF(G61*H61<>0,G61*H61,\"\")","v":""},null,null,{"$f":"IF(AND(H61>0,I61<>0,J61>0),J61/I61*H61,\"\")","v":""},{"$f":"IF(AND(ISNUMBER(J61),ISNUMBER(I61)),IF(J61>I61,ListesDeroulantes!A$194,\"\"),IF(AND(ISNUMBER(J61),NOT(ISNUMBER(I61))),ListesDeroulantes!A$194,\"\"))","v":""}]
[null,{"$f":"B61+1","v":3},{"$nulls":6},{"$f":"IF(G62*H62<>0,G62*H62,\"\")","v":""},null,null,"",{"$f":"IF(AND(ISNUMBER(J62),ISNUMBER(I62)),IF(J62>I62,ListesDeroulantes!A$194,\"\"),IF(AND(ISNUMBER(J62),NOT(ISNUMBER(I62))),ListesDeroulantes!A$194,\"\"))","v":""}]
[{"$nulls":4},"Total",null,null,{"$f":"IF(SUM(H60:H62)<>0,SUM(H60:H62),\"-\")","v":"-"},{"$f":"IF(SUM(I60:I62)<>0,SUM(I60:I62),\"- €\")","v":"- €"},{"$f":"IF(SUM(J60:J62)<>0,SUM(J60:J62),\"- €\")","v":"- €"},null,{"$f":"IF(SUM(L60:L62)<>0,SUM(L60:L62),\"\")","v":""}]
[null,{"$f":"ListesDeroulantes!A140","v":"Prestations de service externes"}]
[]
[{"$nulls":4},{"$f":"ListesDeroulantes!A$106","v":"Descriptif"},{"$f":"ListesDeroulantes!A$107","v":"WP(s) ET tâche(s) concernés"},null,null,{"$f":"ListesDeroulantes!A$110","v":"Coût total\n(en €)"},{"$f":"ListesDeroulantes!A$111","v":"Assiette de l'aide (en €) "}]
[]
[]
[null,{"$f":"B68+1","v":1},{"$nulls":10},{"$f":"IF(AND(ISNUMBER(J69),ISNUMBER(I69)),IF(J69>I69,ListesDeroulantes!A$194,\"\"),IF(AND(ISNUMBER(J69),NOT(ISNUMBER(I69))),ListesDeroulantes!A$194,\"\"))","v":""}]
[null,{"$f":"B69+1","v":2},{"$nulls":10},{"$f":"IF(AND(ISNUMBER(J70),ISNUMBER(I70)),IF(J70>I70,ListesDeroulantes!A$194,\"\"),IF(AND(ISNUMBER(J70),NOT(ISNUMBER(I70))),ListesDeroulantes!A$194,\"\"))","v":""}]
[null,{"$f":"B70+1","v":3},{"$nulls":10},{"$f":"IF(AND(ISNUMBER(J71),ISNUMBER(I71)),IF(J71>I71,ListesDeroulantes!A$194,\"\"),IF(AND(ISNUMBER(J71),NOT(ISNUMBER(I71))),ListesDeroulantes!A$194,\"\"))","v":""}]
[{"$nulls":4},"Total",{"$nulls":3},{"$f":"IF(SUM(I69:I71)<>0,SUM(I69:I71),\"- €\")","v":"- €"},{"$f":"IF(SUM(J69:J71)<>0,SUM(J69:J71),\"- €\")","v":"- €"}]
[null,{"$f":"ListesDeroulantes!A141","v":"Missions"}]
[]
[{"$nulls":4},{"$f":"ListesDeroulantes!A$106","v":"Descriptif"},{"$f":"ListesDeroulantes!A$107","v":"WP(s) ET tâche(s) concernés"},null,null,{"$f":"ListesDeroulantes!A$110","v":"Coût total\n(en €)"},{"$f":"ListesDeroulantes!A$111","v":"Assiette de l'aide (en €) "}]
[]
[]
[null,{"$f":"B77+1","v":1},{"$nulls":10},{"$f":"IF(AND(ISNUMBER(J78),ISNUMBER(I78)),IF(J78>I78,ListesDeroulantes!A$194,\"\"),IF(AND(ISNUMBER(J78),NOT(ISNUMBER(I78))),ListesDeroulantes!A$194,\"\"))","v":""}]
[null,{"$f":"B78+1","v":2},{"$nulls":10},{"$f":"IF(AND(ISNUMBER(J79),ISNUMBER(I79)),IF(J79>I79,ListesDeroulantes!A$194,\"\"),IF(AND(ISNUMBER(J79),NOT(ISNUMBER(I79))),ListesDeroulantes!A$194,\"\"))","v":""}]
[null,{"$f":"B79+1","v":3},{"$nulls":10},{"$f":"IF(AND(ISNUMBER(J80),ISNUMBER(I80)),IF(J80>I80,ListesDeroulantes!A$194,\"\"),IF(AND(ISNUMBER(J80),NOT(ISNUMBER(I80))),ListesDeroulantes!A$194,\"\"))","v":""}]
[{"$nulls":4},"Total",{"$nulls":3},{"$f":"IF(SUM(I78:I80)<>0,SUM(I78:I80),\"- €\")","v":"- €"},{"$f":"IF(SUM(J78:J80)<>0,SUM(J78:J80),\"- €\")","v":"- €"}]
[null,{"$f":"ListesDeroulantes!A142","v":"Autres dépenses externes (consommables, petits matériels …)"}]
[]
[{"$nulls":4},{"$f":"ListesDeroulantes!A$106","v":"Descriptif"},{"$f":"ListesDeroulantes!A$107","v":"WP(s) ET tâche(s) concernés"},null,null,{"$f":"ListesDeroulantes!A$110","v":"Coût total\n(en €)"},{"$f":"ListesDeroulantes!A$111","v":"Assiette de l'aide (en €) "}]
[]
[]
[null,{"$f":"B86+1","v":1},{"$nulls":10},{"$f":"IF(AND(ISNUMBER(J87),ISNUMBER(I87)),IF(J87>I87,ListesDeroulantes!A$194,\"\"),IF(AND(ISNUMBER(J87),NOT(ISNUMBER(I87))),ListesDeroulantes!A$194,\"\"))","v":""}]
[null,{"$f":"B87+1","v":2},{"$nulls":10},{"$f":"IF(AND(ISNUMBER(J88),ISNUMBER(I88)),IF(J88>I88,ListesDeroulantes!A$194,\"\"),IF(AND(ISNUMBER(J88),NOT(ISNUMBER(I88))),ListesDeroulantes!A$194,\"\"))","v":""}]
[null,{"$f":"B88+1","v":3},{"$nulls":10},{"$f":"IF(AND(ISNUMBER(J89),ISNUMBER(I89)),IF(J89>I89,ListesDeroulantes!A$194,\"\"),IF(AND(ISNUMBER(J89),NOT(ISNUMBER(I89))),ListesDeroulantes!A$194,\"\"))","v":""}]
[{"$nulls":4},"Total",{"$nulls":3},{"$f":"IF(SUM(I87:I89)<>0,SUM(I87:I89),\"- €\")","v":"- €"},{"$f":"IF(SUM(J87:J89)<>0,SUM(J87:J89),\"- €\")","v":"- €"}]
[null,{"$f":"ListesDeroulantes!A143","v":"Autres dépenses justifiées par une procédure de facturation interne"}]
[]
[{"$nulls":4},{"$f":"ListesDeroulantes!A$106","v":"Descriptif"},{"$f":"ListesDeroulantes!A$107","v":"WP(s) ET tâche(s) concernés"},{"$f":"ListesDeroulantes!A144","v":"Coût unitaire (en €)"},{"$f":"ListesDeroulantes!A145","v":"Nombre"},{"$f":"ListesDeroulantes!A$110","v":"Coût total\n(en €)"},{"$f":"ListesDeroulantes!A$111","v":"Assiette de l'aide (en €) "}]
[]
[]
[null,{"$f":"B95+1","v":1},{"$nulls":6},{"$f":"IF(G96*H96<>0,G96*H96,\"\")","v":""},{"$nulls":3},{"$f":"IF(AND(ISNUMBER(J96),ISNUMBER(I96)),IF(J96>I96,ListesDeroulantes!A$194,\"\"),IF(AND(ISNUMBER(J96),NOT(ISNUMBER(I96))),ListesDeroulantes!A$194,\"\"))","v":""}]
[null,{"$f":"B96+1","v":2},{"$nulls":6},{"$f":"IF(G97*H97<>0,G97*H97,\"\")","v":""},{"$nulls":3},{"$f":"IF(AND(ISNUMBER(J97),ISNUMBER(I97)),IF(J97>I97,ListesDeroulantes!A$194,\"\"),IF(AND(ISNUMBER(J97),NOT(ISNUMBER(I97))),ListesDeroulantes!A$194,\"\"))","v":""}]
[null,{"$f":"B97+1","v":3},{"$nulls":6},{"$f":"IF(G98*H98<>0,G98*H98,\"\")","v":""},{"$nulls":3},{"$f":"IF(AND(ISNUMBER(J98),ISNUMBER(I98)),IF(J98>I98,ListesDeroulantes!A$194,\"\"),IF(AND(ISNUMBER(J98),NOT(ISNUMBER(I98))),ListesDeroulantes!A$194,\"\"))","v":""}]
[{"$nulls":4},"Total",{"$nulls":3},{"$f":"IF(SUM(I96:I98)<>0,SUM(I96:I98),\"- €\")","v":"- €"},{"$f":"IF(SUM(J96:J98)<>0,SUM(J96:J98),\"- €\")","v":"- €"}]
[null,{"$f":"IF(OR($F$10=ListesDeroulantes!$B$75,$F$10=ListesDeroulantes!$C$75),ListesDeroulantes!A149,IF(OR($F$10=ListesDeroulantes!$B$74,$F$10=ListesDeroulantes!$C$74),ListesDeroulantes!A152,ListesDeroulantes!A146))","v":"Frais de gestion et d'environnement (uniquement pour les organismes publics)"},{"$nulls":11},{"$f":"IF(F10=\"\",ListesDeroulantes!A199,\"\")","v":""}]
[]
[{"$nulls":4},{"$f":"ListesDeroulantes!A106","v":"Descriptif"},null,{"$f":"ListesDeroulantes!A148","v":"Taux (en %)"},null,{"$f":"ListesDeroulantes!A110","v":"Coût total\n(en €)"},{"$f":"ListesDeroulantes!A111","v":"Assiette de l'aide (en €) "}]
[]
[]
[{"$f":"IF(OR($F$10=ListesDeroulantes!$B$75,F$10=ListesDeroulantes!$C$75),100,IF(OR($F$10=ListesDeroulantes!$B$74,F$10=ListesDeroulantes!$C$74),68,0))","v":100},{"$f":"B104+1","v":1},null,null,{"$f":"IF(OR($F$10=ListesDeroulantes!$B$75,F$10=ListesDeroulantes!$C$75),ListesDeroulantes!A150,IF(OR($F$10=ListesDeroulantes!$B$74,F$10=ListesDeroulantes!$C$74),ListesDeroulantes!A154,\"\"))","v":"Taux d'environnement (compris entre 0 et 100 %)"},{"$nulls":3},{"$f":"IF(OR($F$10=ListesDeroulantes!$B$75,F$10=ListesDeroulantes!$C$75),IF(ISNUMBER(G105),MIN(A105,G105)*SUM(I45,I54,I63)/100,\"- €\"),IF(OR($F$10=ListesDeroulantes!$B$74,F$10=ListesDeroulantes!$C$74),IF(ISNUMBER($G105),MIN(A105,G105)*SUM(I45,I54,I63)/100,\"\"),\"- €\"))","v":"- €"},{"$f":"IF(OR($F$10=ListesDeroulantes!$B$75,F$10=ListesDeroulantes!$C$75),\"- €\",IF(OR($F$10=ListesDeroulantes!$B$74,F$10=ListesDeroulantes!$C$74),IF(ISNUMBER($G105),MIN(A105,G105)*SUM(J45,J54,J63)/100,\"- €\"),\"- €\"))","v":"- €"},null,null,{"$f":"IF(ISNUMBER(G105),IF(G105>A105,ListesDeroulantes!B$195&A105,\"\"),ListesDeroulantes!A196)","v":"Erreur : le taux n'est pas renseigné."}]
[]
[{"$f":"IF(OR($F$10=ListesDeroulantes!$B$75,F$10=ListesDeroulantes!$C$75),20,IF(OR($F$10=ListesDeroulantes!$B$74,F$10=ListesDeroulantes!$C$74),7,0))","v":20},{"$f":"B105+1","v":2},null,null,{"$f":"IF(OR($F$10=ListesDeroulantes!$B$75,F$10=ListesDeroulantes!$C$75),ListesDeroulantes!A151,IF(OR($F$10=ListesDeroulantes!$B$74,F$10=ListesDeroulantes!$C$74),ListesDeroulantes!A155,\"\"))","v":"Frais de gestion (Max. 20% des coûts entrant dans l'assiette de l'aide)"},{"$nulls":3},{"$f":"IF(OR($F$10=ListesDeroulantes!$B$75,F$10=ListesDeroulantes!$C$75),\"- €\",IF(OR($F$10=ListesDeroulantes!$B$74,F$10=ListesDeroulantes!$C$74),IF(ISNUMBER($G107),MIN(A107,G107)/100*SUM(I90,I81,I72,I36),\"- €\"),\"- €\"))","v":"- €"},{"$f":"IF(OR($F$10=ListesDeroulantes!$B$75,F$10=ListesDeroulantes!$C$75),IF(ISNUMBER($G107),MIN(A107,G107)/100*SUM(J99,J90,J81,J72,J63,J54,J36),\"- €\"),IF(OR($F$10=ListesDeroulantes!$B$74,F$10=ListesDeroulantes!$C$74),IF(ISNUMBER($G107),MIN(A107,G107)/100*SUM(J90,J81,J72,J36),\"- €\"),\"- €\"))","v":"- €"},null,null,{"$f":"IF(ISNUMBER(G107),IF(G107>A107,ListesDeroulantes!B$195&A107,\"\"),ListesDeroulantes!A196)","v":"Erreur : le taux n'est pas renseigné."}]
[]
[{"$nulls":4},"Total",{"$nulls":3},{"$f":"IF(SUM(I105:I108)<>0,SUM(I105:I108),\"- €\")","v":"- €"},{"$f":"IF(SUM(J105:J108)<>0,SUM(J105:J108),\"- €\")","v":"- €"}]
[]
[]
[{"$nulls":4},{"$f":"ListesDeroulantes!A156","v":"Coût complet, du projet (en €)"},null,{"$f":"IF(SUM(I109,I99,I90,I81,I72,I63,I54,I45,I36)+IF(AND(OR(F10=ListesDeroulantes!B75,F10=ListesDeroulantes!C75),ISNUMBER(J107)),J107,0)<>0,SUM(I109,I99,I90,I81,I72,I63,I54,I45,I36)+IF(AND(OR(F10=ListesDeroulantes!B75,F10=ListesDeroulantes!C75),ISNUMBER(J107)),J107,0),\"- €\")","v":"- €"}]
[]
[{"$nulls":4},{"$f":"ListesDeroulantes!A157","v":"Total coûts éligibles pour le calcul de l'aide : Total assiette de l'aide (en €)"},{"$nulls":3},{"$f":"IF(SUM(J36,J54,J63,J72,J81,J90,J99,J109)<>0,SUM(J36,J54,J63,J72,J81,J90,J99,J109),\"- €\")","v":"- €"}]
[]
[{"$nulls":3},{"$f":"IF(OR(F10=ListesDeroulantes!B75,F10=ListesDeroulantes!C75),100,IF(OR(F10=ListesDeroulantes!B74,F10=ListesDeroulantes!C74),50,0))","v":100},{"$f":"ListesDeroulantes!A159&IF(F10=ListesDeroulantes!A74,CHAR(10)&ListesDeroulantes!A161,\"\")&IF(F10=ListesDeroulantes!A75,CHAR(10)&ListesDeroulantes!A162,\"\")","v":"Taux d'aide demandé (%)\nTaux maximum de 100 %"},{"$nulls":7},{"$f":"IF(ISNUMBER(I116),\"\",ListesDeroulantes!A196)","v":"Erreur : le taux n'est pas renseigné."}]
[]
[{"$nulls":4},{"$f":"ListesDeroulantes!A163","v":"Aide demandée (en €)"},{"$nulls":3},{"$f":"IF(AND(ISNUMBER(I114),ISNUMBER(I116)),I114*I116/100,\"- €\")","v":"- €"}]
[]
[]
[null,{"$f":"ListesDeroulantes!A164","v":"Participations au projet et autres soutiens financiers (sollicités ou obtenus par le partenaire pour le projet)"}]
[null,{"$f":"ListesDeroulantes!A165","v":"Préciser les mises à disposition de locaux, équipements, personnels, etc. pour le projet et, le cas échéant, indiquer le(s) WP(s) et la(les) tâche(s) concernées"}]
[]
[null,{"$f":"ListesDeroulantes!A166","v":"Identification des financeurs (nom, adresse) (Obligatoire)"},null,null,{"$f":"ListesDeroulantes!A167","v":"Nature et objet du financement et, le cas échéant, WP(s) et tâche(s) concernés"},{"$f":"ListesDeroulantes!A168","v":"Montant sollicité"},null,{"$f":"ListesDeroulantes!A169","v":"Montant obtenu"},null,{"$f":"ListesDeroulantes!A170","v":"Date effective ou prévue du co-financement"}]
{"$rows_empty":7}
[{"$nulls":4},"Total",{"$f":"IF(SUM(F129:G131)<>0,SUM(F129:G131),\"- €\")","v":"- €"},null,{"$f":"IF(SUM(H129:I131)<>0,SUM(H129:I131),\"- €\")","v":"- €"}]
[]
[null,{"$f":"ListesDeroulantes!A171","v":"Publication d'informations relatives au projet"}]
[]
[null,{"$f":"ListesDeroulantes!A172","v":"Si le projet est retenu pour financement, l'ANR se réserve la possibilité de rendre publiques les informations suivantes : nom du correpondant scientifique et technique et adresse électronique, dénominations des partenaires qu'ils soient des entreprises ou qu'ils appartiennent à un organisme de recherche.\r\nToutefois, pour un projet de recherche partenariale organisme de recherche / entreprise retenu pour financement, l'ANR ne rendra pas publiques les informations sur les personnes ou les partenaires qui en auront fait le demande."}]
[]
[]
[]
[]
[null,{"$f":"ListesDeroulantes!A173","v":"En cas de refus de publication d'un ou de plusieurs de ces éléments, remplacer ci-dessous la mention \"Oui\" par \"Non\" : "}]
[null,{"$f":"ListesDeroulantes!A176","v":"Nom et prénom du correspondant scientifique :"},{"$nulls":5},{"$f":"ListesDeroulantes!A$174","v":"Oui"}]
[null,{"$f":"ListesDeroulantes!A177","v":"Adresse électronique du correspondant scientifique : "},{"$nulls":5},{"$f":"ListesDeroulantes!A$174","v":"Oui"}]
[null,{"$f":"ListesDeroulantes!A178","v":"Dénomination du partenaire (si \"Non\", celle-ci sera remplacée par la mention générique \"Entreprise\" ou \"Organisme de recherche\") : "},{"$nulls":5},{"$f":"ListesDeroulantes!A$174","v":"Oui"}]
[]
[null,{"$f":"ListesDeroulantes!A179","v":"Nota : en déposant un projet, les partenaires ont accepté que l'ANR publie l'acronyme, le titre, le résumé, l'aide accordée au projet, la date de début de projet et la durée."}]
[]
[null,{"$f":"ListesDeroulantes!A180","v":"Commentaires (le cas échéant)"}]
[]
[]
[]
[]
[]
[]
[null,{"$f":"ListesDeroulantes!A181","v":"Les informations personnelles transmises dans ces documents sont obligatoires et seront conservées en fichiers par l'ANR pour assurer la conduite opérationnelle de l'évaluation et l'administration des dossiers.\nConformément à la loi n° 78-17 du 6 janvier 1978 modifiée, relative à l'Informatique, aux Fichiers et aux Libertés, les personnes concernées disposent d'un droit d'accès et de rectification des données personnelles les concernant. Les personnes concernées peuvent exercer ce droit en s'adressant à l'ANR (voir coordonnées dans le texte de l’appel à projets)."}]
[]
[]
[]
[null,{"$f":"ListesDeroulantes!A182","v":"Engagement de l'établissement partenaire (les signatures sont à apposer obligatoirement sur le document papier) "}]
[]
["Lettre d’engagement / Commitment letter"]
[]
["Le présent engagement est à compléter, signer, viser par la personne habilitée à engager l’Etablissement Coordinateur ou l’Etablissement Partenaire impliqué  et à scanner/déposer avant le 13 avril 2023 à 11 heures (heure de Paris), sur le site de soumission ",{"$nulls":4},"This present commitment letter must be filled in, signed and stamped by a legal representative of the Leading Institution or Partner Institution1 and scanned/uploaded by  April, 13th 2023 at 11h (Paris time) on the submission website:"]
[]
["LIEN DU SITE DE SOUMISSION"]
["https://france2030.agencerecherche.fr/RHU-V6"]
[]
["Ayant le pouvoir d'engager juridiquement l'établissement ci-dessus, je déclare :",{"$nulls":4},"Having the authority to legally bind the abovementioned Partner Institution:"]
["▪ avoir pris connaissance du dossier complet de soumission (document scientifique, y compris son annexe, et document administratif et financier) tel que déposé sur le site de l’ANR et du règlement relatif aux modalités d'attribution des aides au titre de l’appel à projets « Recherche Hospitalo-Universitaire en santé » - RHU 6   ;",{"$nulls":4},"▪ I declare having taken notice of the complete project application (the scientific document, including its appendix, and the administrative and financial document) as submitted on the ANR website, as well as of the funding modalities relative to the call « Recherche Hospitalo-Universitaire en santé » - RHU 6 "]
["▪ m'engager à négocier et signer un accord de consortium (ou équivalent) et mettre en œuvre tous les moyens nécessaires pour finaliser ce document dans les conditions et délais prévus par le règlement relatif aux modalités d'attribution des aides précité ;",{"$nulls":4},"▪ I commit to negotiate and sign the consortium agreement (or equivalent), and to meet all the necessary requirements to finalise this document within the expected conditions and delays;"]
["▪ m'engager à mettre en œuvre tous les moyens nécessaires à la réalisation du projet tels que décrits dans le dossier de soumission, dans les conditions prévues par le règlement relatif aux modalités d'attribution des aides précité;",{"$nulls":4},"▪ I commit to provide all necessary means to ensure the realization of the project as described in the submitted application and according to the conditions of the call;"]
["▪ m'engager à respecter les engagements financiers tels que détaillés dans le document administratif et financier du document de soumission déposé;",{"$nulls":4},"▪ I commit to meet the financial commitments as detailed in the administrative and financial document of the uploaded submission document;"]
["▪ m’engager à mettre en œuvre les recrutements sur contrat des personnels nécessaires à la réalisation de la proposition déposée et cela en conformité avec tous les lois et règlements en vigueur applicables ; à mettre à disposition des personnels engagés dans la réalisation du projet les surfaces de travail nécessaires à l’accomplissement de leurs missions pendant la durée du projet;",{"$nulls":4},"▪ I commit to implement all fixed-term employment contracts necessary to the execution of the project, in accordance with all applicable laws and regulations, and to ensure the ability to provide the space needed to carry out their duties;"]
["▪ souscrire aux obligations qui découlent du financement du projet par l’ANR, notamment à des fins d'évaluation globale de l'action;",{"$nulls":4},"▪ I certify to be able to comply with all the obligations resulting from the funding of the project by ANR, in particular for evaluation purposes;"]
["▪ que le projet ne cause pas un préjudice important du point de vue de l’environnement (application du principe DNSH – Do No Significant Harm ou « absence de préjudice important ») au sens de l’article 17 du règlement européen sur la taxonomie.\n",{"$nulls":4},"▪ that the project does not cause significant harm to the environment (application of the DNSH principle - Do No Significant Harm) within the meaning of Article 17 of the European Taxonomy Regulation.\n"]
[]
[]
[]
[null,{"$f":"ListesDeroulantes!A56","v":"Responsable scientifique et technique (RST)"},{"$nulls":3},{"$f":"ListesDeroulantes!A57","v":"Personne habilitée à engager l'établissement coordinateur (EC)"}]
[]
[null,{"$f":"ListesDeroulantes!A58","v":"Prénom"},null,{"$f":"ListesDeroulantes!A59","v":"Nom"},null,{"$f":"ListesDeroulantes!A58","v":"Prénom"},null,{"$f":"ListesDeroulantes!A59","v":"Nom"},{"$nulls":4},{"$f":"IF(OR(B182=\"\",D182=\"\"),ListesDeroulantes!A200,\"\")","v":"Erreur : les données concernant le responsable scientifique et technique ne sont pas toutes renseignées."}]
[{"$nulls":5},{"$f":"IF(D22<>\"\",D22,\"\")","v":""},null,{"$f":"IF(D23<>\"\",UPPER(D23),\"\")","v":""}]
[{"$nulls":5},{"$f":"ListesDeroulantes!A60","v":"Qualité"}]
[null,"Signature",{"$nulls":3},{"$f":"IF(D24<>\"\",D24,\"\")","v":""}]
[]
[{"$nulls":5},"Signature & visa"]

{"sheet":"Part2","index":4,"n_rows":185,"n_cols":16,"rows_kept":185,"merged":[[0,0,2,4],[0,5,0,9],[0,12,4,12],[1,5,1,6],[1,7,1,9],[2,5,2,6],[2,7,2,9],[4,1,4,9],[6,0,7,2],[6,3,7,9],[6,12,7,12],[9,0,9,2],[9,5,9,9],[10,0,10,2],[11,0,12,2],[11,3,12,3],[11,5,12,9],[13,0,13,2],[14,0,15,2],[14,4,16,4],[14,5,16,9],[14,12,16,12],[16,0,16,2],[18,1,18,9],[20,0,20,2],[20,12,23,12],[21,0,21,2],[21,3,21,9],[22,0,22,2],[22,3,22,9],[23,0,23,2],[23,3,23,9],[25,1,25,9],[26,1,27,9],[28,1,31,1],[28,2,31,2],[28,3,31,3],[28,4,31,4],[28,5,31,5],[28,6,31,6],[28,7,31,7],[28,8,31,8],[28,9,31,9],[28,12,31,12],[36,1,37,9],[38,1,40,1],[38,2,40,2],[38,3,40,3],[38,4,40,4],[38,5,40,5],[38,6,40,6],[38,7,40,7],[38,8,40,8],[38,9,40,9],[45,1,46,9],[47,1,49,1],[47,2,49,2],[47,3,49,3],[47,4,49,4],[47,5,49,5],[47,6,49,6],[47,7,49,7],[47,8,49,8],[47,9,49,9],[47,11,49,11],[54,1,55,9],[56,1,58,1],[56,2,58,2],[56,3,58,3],[56,4,58,4],[56,5,58,5],[56,6,58,6],[56,7,58,7],[56,8,58,8],[56,9,58,9],[56,11,58,11],[63,1,64,9],[65,1,67,1],[65,2,67,2],[65,3,67,3],[65,4,67,4],[65,5,67,5],[65,6,67,6],[65,7,67,7],[65,8,67,8],[65,9,67,9],[72,1,73,9],[74,1,76,1],[74,2,76,2],[74,3,76,3],[74,4,76,4],[74,5,76,5],[74,6,76,6],[74,7,76,7],[74,8,76,8],[74,9,76,9],[81,1,82,9],[83,1,85,1],[83,2,85,2],[83,3,85,3],[83,4,85,4],[83,5,85,5],[83,6,85,6],[83,7,85,7],[83,8,85,8],[83,9,85,9],[90,1,91,9],[92,1,94,1],[92,2,94,2],[92,3,94,3],[92,4,94,4],[92,5,94,5],[92,6,94,6],[92,7,94,7],[92,8,94,8],[92,9,94,9],[99,1,100,9],[99,12,100,12],[101,2,103,2],[101,3,103,3],[101,4,103,4],[101,5,103,5],[101,6,103,6],[101,7,103,7],[101,8,103,8],[101,9,103,9],[104,0,105,0],[104,1,105,1],[104,2,105,2],[104,3,105,3],[104,4,105,4],[104,5,105,5],[104,6,105,6],[104,7,105,7],[104,8,105,8],[104,9,105,9],[104,12,105,12],[106,0,107,0],[106,1,107,1],[106,2,107,2],[106,3,107,3],[106,4,107,4],[106,5,107,5],[106,6,107,6],[106,7,107,7],[106,8,107,8],[106,9,107,9],[106,12,107,12],[109,1,110,9],[111,4,112,5],[111,6,112,7],[111,8,112,9],[113,4,114,5],[113,6,114,7],[113,8,114,9],[115,4,116,5],[115,6,116,7],[115,8,116,9],[115,12,116,12],[117,4,118,5],[117,6,118,7],[117,8,118,9],[120,1,120,9],[121,1,121,9],[123,1,127,3],[123,4,127,4],[123,5,127,6],[123,7,127,8],[123,9,127,9],[128,1,128,3],[128,5,128,6],[128,7,128,8],[129,1,129,3],[129,5,129,6],[129,7,129,8],[130,1,130,3],[130,5,130,6],[130,7,130,8],[131,5,131,6],[131,7,131,8],[133,1,133,9],[135,1,138,9],[140,1,140,9],[141,1,141,6],[142,1,142,6],[143,1,143,6],[145,1,145,9],[147,1,147,9],[149,1,152,9],[154,1,156,9],[158,1,158,9],[160,0,160,9],[162,0,162,3],[162,5,162,9],[164,0,164,9],[165,0,165,9],[167,0,167,4],[167,5,167,9],[168,0,168,4],[168,5,168,9],[169,0,169,4],[169,5,169,9],[170,0,170,4],[170,5,170,9],[171,0,171,4],[171,5,171,9],[172,0,172,4],[172,5,172,9],[173,0,173,4],[173,5,173,9],[174,0,174,4],[174,5,174,9],[175,0,175,4],[175,5,175,9],[177,1,177,3],[177,5,177,8],[179,1,179,2],[179,5,179,6],[179,7,179,8],[179,12,182,12],[180,1,180,2],[180,5,180,6],[180,7,180,8],[181,5,181,8],[182,1,182,3],[182,5,182,8],[183,1,186,3],[184,5,184,8],[185,5,188,8]]}
[{"$f":"ListesDeroulantes!A68&IF(ISNUMBER(RIGHT(CELL(\"filename\",$A$1),2)*1),RIGHT(CELL(\"filename\",$A$1),2)*1,IF(ISNUMBER(RIGHT(CELL(\"filename\",$A$1),1)*1),RIGHT(CELL(\"filename\",$A$1),1)*1,\"N/A\"))&ListesDeroulantes!A69","v":"Fiche partenaire n°2 : Identification et budget"},{"$nulls":4},{"$f":"ListesDeroulantes!A5","v":"Réservé à l'organisme gestionnaire du programme"},{"$nulls":6},{"$f":"IF(COUNTIF(M6:M1606,\"Err*\")>0,COUNTIF(M6:M1606,\"Err*\")&\" \"&ListesDeroulantes!A188&IF(COUNTIF(M6:M1606,\"Err*\")>1,\"s\",\"\"),\"\")","v":"10 erreurs"}]
[{"$nulls":5},{"$f":"ListesDeroulantes!A6","v":"N° de partenaire"},null,{"$f":"Volet_general!$N$2 & \"-\" &IF(IF(ISNUMBER(RIGHT(CELL(\"filename\",$A$1),2)*1),RIGHT(CELL(\"filename\",$A$1),2)*1,IF(ISNUMBER(RIGHT(CELL(\"filename\",$A$1),1)*1),RIGHT(CELL(\"filename\",$A$1),1)*1,\"#N/A\"))<10,\"0\",\"\")&IF(ISNUMBER(RIGHT(CELL(\"filename\",$A$1),2)*1),RIGHT(CELL(\"filename\",$A$1),2)*1,IF(ISNUMBER(RIGHT(CELL(\"filename\",$A$1),1)*1),RIGHT(CELL(\"filename\",$A$1),1)*1,\"#N/A\"))","v":"0-02"}]
[{"$nulls":5},{"$f":"ListesDeroulantes!A7","v":"Acronyme"},null,{"$f":"Volet_general!D12","v":0}]
[{"$nulls":13},{"$f":"IF(COUNTIF(ListesDeroulantes!B81:C81,D12)+COUNTIF(ListesDeroulantes!B83:C85,D12)>0,ListesDeroulantes!A75,ListesDeroulantes!A74)","v":"Coût complet"},{"$f":"IF(COUNTIF(ListesDeroulantes!B81:C81,D12)+COUNTIF(ListesDeroulantes!B83:C85,D12)>0,ListesDeroulantes!B75,ListesDeroulantes!B74)","v":"Coût complet"},{"$f":"IF(COUNTIF(ListesDeroulantes!B81:C81,D12)+COUNTIF(ListesDeroulantes!B83:C85,D12)>0,ListesDeroulantes!C75,ListesDeroulantes!C74)","v":"Full costs"}]
[null,{"$f":"ListesDeroulantes!A70","v":"Identification de l'établissement partenaire"},{"$nulls":11},{"$f":"IF(OR(D12=ListesDeroulantes!B86,D12=ListesDeroulantes!C86,D12=\"\"),ListesDeroulantes!A75,\"\")","v":"Coût marginal"},{"$f":"IF(OR(D12=ListesDeroulantes!B86,D12=ListesDeroulantes!C86,D12=\"\"),ListesDeroulantes!B75,\"\")","v":"Coût marginal"},{"$f":"IF(OR(D12=ListesDeroulantes!B86,D12=ListesDeroulantes!C86,D12=\"\"),ListesDeroulantes!C75,\"\")","v":"Marginal cost"}]
[]
[{"$f":"ListesDeroulantes!A71","v":"Nom complet du partenaire"},{"$nulls":11},{"$f":"IF(OR(D7=\"\",D10=\"\",D11=\"\",D12=\"\",D16=\"\",D17=\"\",F10=\"\"),ListesDeroulantes!A189,\"\")","v":"Erreur : les données concernant l'établissement partenaire ne sont pas toutes renseignées."},{"$f":"IF(D16=\"\",ListesDeroulantes!A96,IF(OR(D16=ListesDeroulantes!B96,D16=ListesDeroulantes!C96),ListesDeroulantes!A96,(IF(LEFT(D16,9)=356000000,356000000,(IF(LEN(D16)=9,MOD(MID(D16,1,1)+IF(MID(D16,2,1)*2<10,MID(D16,2,1)*2,MID(D16,2,1)*2-9)+MID(D16,3,1)+IF(MID(D16,4,1)*2<10,MID(D16,4,1)*2,MID(D16,4,1)*2-9)+MID(D16,5,1)+IF(MID(D16,6,1)*2<10,MID(D16,6,1)*2,MID(D16,6,1)*2-9)+MID(D16,7,1)+IF(MID(D16,8,1)*2<10,MID(D16,8,1)*2,MID(D16,8,1)*2-9)+MID(D16,9,1),10)=0,IF(LEN(D16)=14,IF(MOD(IF(MID(D16,1,1)*2<10,MID(D16,1,1)*2,MID(D16,1,1)*2-9)+MID(D16,2,1)+IF(MID(D16,3,1)*2<10,MID(D16,3,1)*2,MID(D16,3,1)*2-9)+MID(D16,4,1)+IF(MID(D16,5,1)*2<10,MID(D16,5,1)*2,MID(D16,5,1)*2-9)+MID(D16,6,1)+IF(MID(D16,7,1)*2<10,MID(D16,7,1)*2,MID(D16,7,1)*2-9)+MID(D16,8,1)+IF(MID(D16,9,1)*2<10,MID(D16,9,1)*2,MID(D16,9,1)*2-9)+MID(D16,10,1)+IF(MID(D16,11,1)*2<10,MID(D16,11,1)*2,MID(D16,11,1)*2-9)+MID(D16,12,1)+IF(MID(D16,13,1)*2<10,MID(D16,13,1)*2,MID(D16,13,1)*2-9)+MID(D16,14,1),10)=0,D16,FALSE),FALSE)))))))","v":"Entreprise étrangère"}]
[{"$nulls":13},{"$f":"IF(AND(N7<>ListesDeroulantes!B96,N7<>ListesDeroulantes!C96),ListesDeroulantes!A96,\"\")","v":""}]
[]
[{"$f":"ListesDeroulantes!A72","v":"Sigle du partenaire "},{"$nulls":3},{"$f":"ListesDeroulantes!A73","v":"Base de calcul de l'assiette de l'aide "},{"$nulls":7},{"$f":"IF(F10=\"\",ListesDeroulantes!A$190,IF(AND(F12=\"\",F10<>O4,F10<>P4),ListesDeroulantes!A191,\"\"))","v":"Erreur : veuillez choisir au préalable la méthode de calcul de l'assiette de l'aide (coût marginal ou coûts complets)."}]
[{"$f":"ListesDeroulantes!A77","v":"Catégorie de partenaire"},null,null,"Organisme de recherche"]
[{"$f":"ListesDeroulantes!A80","v":"Forme juridique"},{"$nulls":4},{"$f":"IF(OR(D12=ListesDeroulantes!B86,D12=ListesDeroulantes!C86),ListesDeroulantes!A76,\"\")","v":""},{"$nulls":6},{"$f":"IF(OR(D11=ListesDeroulantes!B79,D11=ListesDeroulantes!C79),IF(COUNTIF(ListesDeroulantes!B81:C86,D12)>0,ListesDeroulantes!A192,\"\"),\"\")&IF(OR(D11=ListesDeroulantes!B78,D11=ListesDeroulantes!C78),IF(COUNTIF(ListesDeroulantes!B87:C91,D12)>0,ListesDeroulantes!A192,\"\"),\"\")","v":""},{"$f":"IF(OR(D$11=ListesDeroulantes!B$78,D$11=ListesDeroulantes!C$78),ListesDeroulantes!A81,IF(OR(D$11=ListesDeroulantes!B$79,D$11=ListesDeroulantes!C$79),ListesDeroulantes!A87,ListesDeroulantes!A81))","v":"EPST : Établissement public à caractère scientifique et technologique"}]
[{"$nulls":13},{"$f":"IF(OR(D$11=ListesDeroulantes!B$78,D$11=ListesDeroulantes!C$78),ListesDeroulantes!A82,IF(OR(D$11=ListesDeroulantes!B$79,D$11=ListesDeroulantes!C$79),ListesDeroulantes!A88,ListesDeroulantes!A82))","v":"EPIC : Établissement public à caractère industriel et commercial"}]
[{"$nulls":13},{"$f":"IF(OR(D$11=ListesDeroulantes!B$78,D$11=ListesDeroulantes!C$78),ListesDeroulantes!A83,IF(OR(D$11=ListesDeroulantes!B$79,D$11=ListesDeroulantes!C$79),ListesDeroulantes!A89,ListesDeroulantes!A83))","v":"Établissement de santé"}]
[{"$f":"ListesDeroulantes!A94","v":"N° de SIRET"},null,null,{"$f":"ListesDeroulantes!A95","v":"Saisir un n°SIRET de 14digits"},{"$f":"ListesDeroulantes!A92","v":"Catégorie de recherche R&D"},{"$f":"IF(Volet_general!D16<>\"\",Volet_general!D16,\"\")","v":""},{"$nulls":6},{"$f":"IF(F15=\"\",ListesDeroulantes!A198,\"\")","v":"Erreur : la catégorie de recherche R&D n'est pas renseignée. Merci de revenir au volet général pour le completer pour poursuivre."},{"$f":"IF(OR(D$11=ListesDeroulantes!B$78,D$11=ListesDeroulantes!C$78),ListesDeroulantes!A84,IF(OR(D$11=ListesDeroulantes!B$79,D$11=ListesDeroulantes!C$79),ListesDeroulantes!A90,ListesDeroulantes!A84))","v":"Fondation de recherche (FR)"}]
[{"$nulls":3},"",{"$nulls":9},{"$f":"IF(OR(D$11=ListesDeroulantes!B$78,D$11=ListesDeroulantes!C$78),ListesDeroulantes!A85,IF(OR(D$11=ListesDeroulantes!B$79,D$11=ListesDeroulantes!C$79),ListesDeroulantes!A91,ListesDeroulantes!A85))","v":"Université"}]
[{"$f":"ListesDeroulantes!A97","v":"Assujetti à la TVA "},{"$nulls":12},{"$f":"IF(OR(D$11=ListesDeroulantes!B$78,D$11=ListesDeroulantes!C$78),ListesDeroulantes!A86,IF(OR(D$11=ListesDeroulantes!B$79,D$11=ListesDeroulantes!C$79),\" \",ListesDeroulantes!A86))","v":"Autre public"}]
[{"$nulls":13},{"$f":"IF(OR(D$11=ListesDeroulantes!B$78,D$11=ListesDeroulantes!C$78),\" \",IF(OR(D$11=ListesDeroulantes!B$79,D$11=ListesDeroulantes!C$79),\" \",ListesDeroulantes!A87))","v":" "}]
[null,{"$f":"ListesDeroulantes!A100","v":"Personne habilitée à représenter juridiquement l'établissement partenaire (pour signature de la convention attributive d'aide ou de reversement)"},{"$nulls":11},{"$f":"IF(OR(D$11=ListesDeroulantes!B$78,D$11=ListesDeroulantes!C$78),\" \",IF(OR(D$11=ListesDeroulantes!B$79,D$11=ListesDeroulantes!C$79),\" \",ListesDeroulantes!A88))","v":" "}]
[{"$nulls":13},{"$f":"IF(OR(D$11=ListesDeroulantes!B$78,D$11=ListesDeroulantes!C$78),\" \",IF(OR(D$11=ListesDeroulantes!B$79,D$11=ListesDeroulantes!C$79),\" \",ListesDeroulantes!A89))","v":" "}]
[{"$f":"ListesDeroulantes!A101","v":"Genre"},{"$nulls":11},{"$f":"IF(OR(D21=\"\",D22=\"\",D23=\"\",D24=\"\"),ListesDeroulantes!A202,\"\")","v":"Erreur : les données concernant la personne habilitée à engager le partenaire ne sont pas toutes renseignées."},{"$f":"IF(OR(D$11=ListesDeroulantes!B$78,D$11=ListesDeroulantes!C$78),\" \",IF(OR(D$11=ListesDeroulantes!B$79,D$11=ListesDeroulantes!C$79),\" \",ListesDeroulantes!A90))","v":" "}]
[{"$f":"ListesDeroulantes!A58","v":"Prénom"},{"$nulls":12},{"$f":"IF(OR(D$11=ListesDeroulantes!B$78,D$11=ListesDeroulantes!C$78),\" \",IF(OR(D$11=ListesDeroulantes!B$79,D$11=ListesDeroulantes!C$79),\" \",ListesDeroulantes!A91))","v":" "}]
[{"$f":"ListesDeroulantes!A59","v":"Nom"}]
[{"$f":"ListesDeroulantes!A60","v":"Qualité"}]
[]
[null,{"$f":"ListesDeroulantes!A104","v":"Demande financière ANR détaillée du projet (montant HT en €, incluant la TVA non récupérable le cas échéant)"}]
[null,{"$f":"ListesDeroulantes!A105","v":"Equipements ou amortissement d'équipements de R&D (supérieur à 4 000 € HT)"}]
[]
[{"$nulls":4},{"$f":"ListesDeroulantes!A$106","v":"Descriptif"},{"$f":"ListesDeroulantes!A$107","v":"WP(s) ET tâche(s) concernés"},{"$f":"ListesDeroulantes!A$108","v":"Coût d'achat\n(en €)"},{"$f":"ListesDeroulantes!A$109","v":"Pourcentage d'utilisation (en %)"},{"$f":"ListesDeroulantes!A$110","v":"Coût total\n(en €)"},{"$f":"ListesDeroulantes!A$111","v":"Assiette de l'aide (en €) "},null,null,{"$f":"IF(F10=\"\",ListesDeroulantes!A199,\"\")","v":"Erreur : la méthode de calcul de l'assiette de l'aide (coût marginal ou coûts complets) n'est pas renseignée. Merci de remonter en haut de cet onglet pour faire ce choix au préalable."}]
[]
[]
[]
[null,{"$f":"B32+1","v":1},{"$nulls":6},{"$f":"IF(AND($F$10<>ListesDeroulantes!B$75,$F$10<>ListesDeroulantes!C$75,$F$10<>ListesDeroulantes!B$74,$F$10<>ListesDeroulantes!C$74),\"\",IF(OR($F$10=ListesDeroulantes!B$74,$F$10=ListesDeroulantes!C$74),IF(AND(G33<>0,H33<>0),G33*H33/100,\"\"),IF(ISNUMBER(G33),G33,\"\")))","v":""},{"$nulls":3},{"$f":"IF(AND(ISNUMBER(J33),ISNUMBER(I33)),IF(J33>I33,ListesDeroulantes!A$194,\"\"),IF(AND(ISNUMBER(J33),NOT(ISNUMBER(I33))),ListesDeroulantes!A$194,\"\"))","v":""}]
[null,{"$f":"B33+1","v":2},{"$nulls":6},{"$f":"IF(AND($F$10<>ListesDeroulantes!B$75,$F$10<>ListesDeroulantes!C$75,$F$10<>ListesDeroulantes!B$74,$F$10<>ListesDeroulantes!C$74),\"\",IF(OR($F$10=ListesDeroulantes!B$74,$F$10=ListesDeroulantes!C$74),IF(AND(G34<>0,H34<>0),G34*H34/100,\"\"),IF(ISNUMBER(G34),G34,\"\")))","v":""},{"$nulls":3},{"$f":"IF(AND(ISNUMBER(J34),ISNUMBER(I34)),IF(J34>I34,ListesDeroulantes!A$194,\"\"),IF(AND(ISNUMBER(J34),NOT(ISNUMBER(I34))),ListesDeroulantes!A$194,\"\"))","v":""}]
[null,{"$f":"B34+1","v":3},{"$nulls":6},{"$f":"IF(AND($F$10<>ListesDeroulantes!B$75,$F$10<>ListesDeroulantes!C$75,$F$10<>ListesDeroulantes!B$74,$F$10<>ListesDeroulantes!C$74),\"\",IF(OR($F$10=ListesDeroulantes!B$74,$F$10=ListesDeroulantes!C$74),IF(AND(G35<>0,H35<>0),G35*H35/100,\"\"),IF(ISNUMBER(G35),G35,\"\")))","v":""},{"$nulls":3},{"$f":"IF(AND(ISNUMBER(J35),ISNUMBER(I35)),IF(J35>I35,ListesDeroulantes!A$194,\"\"),IF(AND(ISNUMBER(J35),NOT(ISNUMBER(I35))),ListesDeroulantes!A$194,\"\"))","v":""}]
[{"$nulls":4},"Total",{"$nulls":3},{"$f":"IF(SUM(I33:I35)<>0,SUM(I33:I35),\"- €\")","v":"- €"},{"$f":"IF(SUM(J33:J35)<>0,SUM(J33:J35),\"- €\")","v":"- €"}]
[null,{"$f":"ListesDeroulantes!A112","v":"Personnels sans financement ANR (uniquement pour les partenaires organismes de recherche)"}]
[]
[null,null,{"$f":"ListesDeroulantes!A$113","v":"OR/ES/\nMixte"},{"$f":"ListesDeroulantes!A$117","v":"Catégorie de personnel"},{"$f":"ListesDeroulantes!A$124","v":"Descriptif et commentaires éventuels"},{"$f":"ListesDeroulantes!A$107","v":"WP(s) ET tâche(s) concernés"},{"$f":"ListesDeroulantes!A$125","v":"Coût mensuel (en €)"},{"$f":"ListesDeroulantes!A$126","v":"Personne. Mois"},{"$f":"ListesDeroulantes!A$110","v":"Coût total\n(en €)"}]
[]
[]
[null,{"$f":"B41+1","v":1},{"$nulls":6},{"$f":"IF(G42*H42<>0,G42*H42,\"\")","v":""},{"$nulls":3},{"$f":"IF(AND(OR(C42<>\"\",D42<>\"\",E42<>\"\",F42<>\"\",G42<>\"\",H42<>\"\"),COUNTIF(ListesDeroulantes!$B$74:$C$74,$F$10)>0),ListesDeroulantes!A$193,\"\")","v":""}]
[null,{"$f":"B42+1","v":2},{"$nulls":6},{"$f":"IF(G43*H43<>0,G43*H43,\"\")","v":""},{"$nulls":3},{"$f":"IF(AND(OR(C43<>\"\",D43<>\"\",E43<>\"\",F43<>\"\",G43<>\"\",H43<>\"\"),COUNTIF(ListesDeroulantes!$B$74:$C$74,$F$10)>0),ListesDeroulantes!A$193,\"\")","v":""}]
[null,{"$f":"B43+1","v":3},{"$nulls":6},{"$f":"IF(G44*H44<>0,G44*H44,\"\")","v":""},{"$nulls":3},{"$f":"IF(AND(OR(C44<>\"\",D44<>\"\",E44<>\"\",F44<>\"\",G44<>\"\",H44<>\"\"),COUNTIF(ListesDeroulantes!$B$74:$C$74,$F$10)>0),ListesDeroulantes!A$193,\"\")","v":""}]
[{"$nulls":4},"Total",null,null,{"$f":"IF(COUNTIF(ListesDeroulantes!$B$74:$C$74,$F$10)>0,\"-\",IF(SUM(H42:H44)<>0,SUM(H42:H44),\"-\"))","v":"-"},{"$f":"IF(COUNTIF(ListesDeroulantes!$B$74:$C$74,$F$10)>0,\"- €\",IF(SUM(I42:I44)<>0,SUM(I42:I44),\"- €\"))","v":"- €"}]
[null,{"$f":"ListesDeroulantes!A127","v":"Personnels avec financement ANR en contrat à durée déterminée"}]
[]
[null,null,{"$f":"ListesDeroulantes!A$113","v":"OR/ES/\nMixte"},{"$f":"ListesDeroulantes!A$117","v":"Catégorie de personnel"},{"$f":"ListesDeroulantes!A$124","v":"Descriptif et commentaires éventuels"},{"$f":"ListesDeroulantes!A$107","v":"WP(s) ET tâche(s) concernés"},{"$f":"ListesDeroulantes!A$125","v":"Coût mensuel (en €)"},{"$f":"ListesDeroulantes!A$126","v":"Personne. Mois"},{"$f":"ListesDeroulantes!A$110","v":"Coût total\n(en €)"},{"$f":"ListesDeroulantes!A$111","v":"Assiette de l'aide (en €) "},null,{"$f":"H39&\" financés\"","v":"Personne. Mois financés"}]
[]
[]
[null,{"$f":"B50+1","v":1},{"$nulls":6},{"$f":"IF(G51*H51<>0,G51*H51,\"\")","v":""},null,null,{"$f":"IF(AND(H51>0,I51<>0,J51>0),J51/I51*H51,\"\")","v":""},{"$f":"IF(AND(ISNUMBER(J51),ISNUMBER(I51)),IF(J51>I51,ListesDeroulantes!A$194,\"\"),IF(AND(ISNUMBER(J51),NOT(ISNUMBER(I51))),ListesDeroulantes!A$194,\"\"))","v":""}]
[null,{"$f":"B51+1","v":2},{"$nulls":6},{"$f":"IF(G52*H52<>0,G52*H52,\"\")","v":""},null,null,{"$f":"IF(AND(H52>0,I52<>0,J52>0),J52/I52*H52,\"\")","v":""},{"$f":"IF(AND(ISNUMBER(J52),ISNUMBER(I52)),IF(J52>I52,ListesDeroulantes!A$194,\"\"),IF(AND(ISNUMBER(J52),NOT(ISNUMBER(I52))),ListesDeroulantes!A$194,\"\"))","v":""}]
[null,{"$f":"B52+1","v":3},{"$nulls":6},{"$f":"IF(G53*H53<>0,G53*H53,\"\")","v":""},null,null,"",{"$f":"IF(AND(ISNUMBER(J53),ISNUMBER(I53)),IF(J53>I53,ListesDeroulantes!A$194,\"\"),IF(AND(ISNUMBER(J53),NOT(ISNUMBER(I53))),ListesDeroulantes!A$194,\"\"))","v":""}]
[{"$nulls":4},"Total",null,null,{"$f":"IF(SUM(H51:H53)<>0,SUM(H51:H53),\"-\")","v":"-"},{"$f":"IF(SUM(I51:I53)<>0,SUM(I51:I53),\"- €\")","v":"- €"},{"$f":"IF(SUM(J51:J53)<>0,SUM(J51:J53),\"- €\")","v":"- €"},null,{"$f":"IF(SUM(L51:L53)<>0,SUM(L51:L53),\"\")","v":""}]
[null,{"$f":"ListesDeroulantes!A139","v":"Personnels avec financement ANR en contrat à durée indéterminée"}]
[]
[null,null,{"$f":"ListesDeroulantes!A$113","v":"OR/ES/\nMixte"},{"$f":"ListesDeroulantes!A$117","v":"Catégorie de personnel"},{"$f":"ListesDeroulantes!A$124","v":"Descriptif et commentaires éventuels"},{"$f":"ListesDeroulantes!A$107","v":"WP(s) ET tâche(s) concernés"},{"$f":"ListesDeroulantes!A$125","v":"Coût mensuel (en €)"},{"$f":"ListesDeroulantes!A$126","v":"Personne. Mois"},{"$f":"ListesDeroulantes!A$110","v":"Coût total\n(en €)"},{"$f":"ListesDeroulantes!A$111","v":"Assiette de l'aide (en €) "},null,{"$f":"H48&\" financés\"","v":"Personne. Mois financés"}]
[]
[]
[null,{"$f":"B59+1","v":1},{"$nulls":6},{"$f":"IF(G60*H60<>0,G60*H60,\"\")","v":""},null,null,{"$f":"IF(AND(H60>0,I60<>0,J60>0),J60/I60*H60,\"\")","v":""},{"$f":"IF(AND(ISNUMBER(J60),ISNUMBER(I60)),IF(J60>I60,ListesDeroulantes!A$194,\"\"),IF(AND(ISNUMBER(J60),NOT(ISNUMBER(I60))),ListesDeroulantes!A$194,\"\"))","v":""}]
[null,{"$f":"B60+1","v":2},{"$nulls":6},{"$f":"IF(G61*H61<>0,G61*H61,\"\")","v":""},null,null,{"$f":"IF(AND(H61>0,I61<>0,J61>0),J61/I61*H61,\"\")","v":""},{"$f":"IF(AND(ISNUMBER(J61),ISNUMBER(I61)),IF(J61>I61,ListesDeroulantes!A$194,\"\"),IF(AND(ISNUMBER(J61),NOT(ISNUMBER(I61))),ListesDeroulantes!A$194,\"\"))","v":""}]
[null,{"$f":"B61+1","v":3},{"$nulls":6},{"$f":"IF(G62*H62<>0,G62*H62,\"\")","v":""},null,null,"",{"$f":"IF(AND(ISNUMBER(J62),ISNUMBER(I62)),IF(J62>I62,ListesDeroulantes!A$194,\"\"),IF(AND(ISNUMBER(J62),NOT(ISNUMBER(I62))),ListesDeroulantes!A$194,\"\"))","v":""}]
[{"$nulls":4},"Total",null,null,{"$f":"IF(SUM(H60:H62)<>0,SUM(H60:H62),\"-\")","v":"-"},{"$f":"IF(SUM(I60:I62)<>0,SUM(I60:I62),\"- €\")","v":"- €"},{"$f":"IF(SUM(J60:J62)<>0,SUM(J60:J62),\"- €\")","v":"- €"},null,{"$f":"IF(SUM(L60:L62)<>0,SUM(L60:L62),\"\")","v":""}]
[null,{"$f":"ListesDeroulantes!A140","v":"Prestations de service externes"}]
[]
[{"$nulls":4},{"$f":"ListesDeroulantes!A$106","v":"Descriptif"},{"$f":"ListesDeroulantes!A$107","v":"WP(s) ET tâche(s) concernés"},null,null,{"$f":"ListesDeroulantes!A$110","v":"Coût total\n(en €)"},{"$f":"ListesDeroulantes!A$111","v":"Assiette de l'aide (en €) "}]
[]
[]
[null,{"$f":"B68+1","v":1},{"$nulls":10},{"$f":"IF(AND(ISNUMBER(J69),ISNUMBER(I69)),IF(J69>I69,ListesDeroulantes!A$194,\"\"),IF(AND(ISNUMBER(J69),NOT(ISNUMBER(I69))),ListesDeroulantes!A$194,\"\"))","v":""}]
[null,{"$f":"B69+1","v":2},{"$nulls":10},{"$f":"IF(AND(ISNUMBER(J70),ISNUMBER(I70)),IF(J70>I70,ListesDeroulantes!A$194,\"\"),IF(AND(ISNUMBER(J70),NOT(ISNUMBER(I70))),ListesDeroulantes!A$194,\"\"))","v":""}]
[null,{"$f":"B70+1","v":3},{"$nulls":10},{"$f":"IF(AND(ISNUMBER(J71),ISNUMBER(I71)),IF(J71>I71,ListesDeroulantes!A$194,\"\"),IF(AND(ISNUMBER(J71),NOT(ISNUMBER(I71))),ListesDeroulantes!A$194,\"\"))","v":""}]
[{"$nulls":4},"Total",{"$nulls":3},{"$f":"IF(SUM(I69:I71)<>0,SUM(I69:I71),\"- €\")","v":"- €"},{"$f":"IF(SUM(J69:J71)<>0,SUM(J69:J71),\"- €\")","v":"- €"}]
[null,{"$f":"ListesDeroulantes!A141","v":"Missions"}]
[]
[{"$nulls":4},{"$f":"ListesDeroulantes!A$106","v":"Descriptif"},{"$f":"ListesDeroulantes!A$107","v":"WP(s) ET tâche(s) concernés"},null,null,{"$f":"ListesDeroulantes!A$110","v":"Coût total\n(en €)"},{"$f":"ListesDeroulantes!A$111","v":"Assiette de l'aide (en €) "}]
[]
[]
[null,{"$f":"B77+1","v":1},{"$nulls":10},{"$f":"IF(AND(ISNUMBER(J78),ISNUMBER(I78)),IF(J78>I78,ListesDeroulantes!A$194,\"\"),IF(AND(ISNUMBER(J78),NOT(ISNUMBER(I78))),ListesDeroulantes!A$194,\"\"))","v":""}]
[null,{"$f":"B78+1","v":2},{"$nulls":10},{"$f":"IF(AND(ISNUMBER(J79),ISNUMBER(I79)),IF(J79>I79,ListesDeroulantes!A$194,\"\"),IF(AND(ISNUMBER(J79),NOT(ISNUMBER(I79))),ListesDeroulantes!A$194,\"\"))","v":""}]
[null,{"$f":"B79+1","v":3},{"$nulls":10},{"$f":"IF(AND(ISNUMBER(J80),ISNUMBER(I80)),IF(J80>I80,ListesDeroulantes!A$194,\"\"),IF(AND(ISNUMBER(J80),NOT(ISNUMBER(I80))),ListesDeroulantes!A$194,\"\"))","v":""}]
[{"$nulls":4},"Total",{"$nulls":3},{"$f":"IF(SUM(I78:I80)<>0,SUM(I78:I80),\"- €\")","v":"- €"},{"$f":"IF(SUM(J78:J80)<>0,SUM(J78:J80),\"- €\")","v":"- €"}]
[null,{"$f":"ListesDeroulantes!A142","v":"Autres dépenses externes (consommables, petits matériels …)"}]
[]
[{"$nulls":4},{"$f":"ListesDeroulantes!A$106","v":"Descriptif"},{"$f":"ListesDeroulantes!A$107","v":"WP(s) ET tâche(s) concernés"},null,null,{"$f":"ListesDeroulantes!A$110","v":"Coût total\n(en €)"},{"$f":"ListesDeroulantes!A$111","v":"Assiette de l'aide (en €) "}]
[]
[]
[null,{"$f":"B86+1","v":1},{"$nulls":10},{"$f":"IF(AND(ISNUMBER(J87),ISNUMBER(I87)),IF(J87>I87,ListesDeroulantes!A$194,\"\"),IF(AND(ISNUMBER(J87),NOT(ISNUMBER(I87))),ListesDeroulantes!A$194,\"\"))","v":""}]
[null,{"$f":"B87+1","v":2},{"$nulls":10},{"$f":"IF(AND(ISNUMBER(J88),ISNUMBER(I88)),IF(J88>I88,ListesDeroulantes!A$194,\"\"),IF(AND(ISNUMBER(J88),NOT(ISNUMBER(I88))),ListesDeroulantes!A$194,\"\"))","v":""}]
[null,{"$f":"B88+1","v":3},{"$nulls":10},{"$f":"IF(AND(ISNUMBER(J89),ISNUMBER(I89)),IF(J89>I89,ListesDeroulantes!A$194,\"\"),IF(AND(ISNUMBER(J89),NOT(ISNUMBER(I89))),ListesDeroulantes!A$194,\"\"))","v":""}]
[{"$nulls":4},"Total",{"$nulls":3},{"$f":"IF(SUM(I87:I89)<>0,SUM(I87:I89),\"- €\")","v":"- €"},{"$f":"IF(SUM(J87:J89)<>0,SUM(J87:J89),\"- €\")","v":"- €"}]
[null,{"$f":"ListesDeroulantes!A143","v":"Autres dépenses justifiées par une procédure de facturation interne"}]
[]
[{"$nulls":4},{"$f":"ListesDeroulantes!A$106","v":"Descriptif"},{"$f":"ListesDeroulantes!A$107","v":"WP(s) ET tâche(s) concernés"},{"$f":"ListesDeroulantes!A144","v":"Coût unitaire (en €)"},{"$f":"ListesDeroulantes!A145","v":"Nombre"},{"$f":"ListesDeroulantes!A$110","v":"Coût total\n(en €)"},{"$f":"ListesDeroulantes!A$111","v":"Assiette de l'aide (en €) "}]
[]
[]
[null,{"$f":"B95+1","v":1},{"$nulls":6},{"$f":"IF(G96*H96<>0,G96*H96,\"\")","v":""},{"$nulls":3},{"$f":"IF(AND(ISNUMBER(J96),ISNUMBER(I96)),IF(J96>I96,ListesDeroulantes!A$194,\"\"),IF(AND(ISNUMBER(J96),NOT(ISNUMBER(I96))),ListesDeroulantes!A$194,\"\"))","v":""}]
[null,{"$f":"B96+1","v":2},{"$nulls":6},{"$f":"IF(G97*H97<>0,G97*H97,\"\")","v":""},{"$nulls":3},{"$f":"IF(AND(ISNUMBER(J97),ISNUMBER(I97)),IF(J97>I97,ListesDeroulantes!A$194,\"\"),IF(AND(ISNUMBER(J97),NOT(ISNUMBER(I97))),ListesDeroulantes!A$194,\"\"))","v":""}]
[null,{"$f":"B97+1","v":3},{"$nulls":6},{"$f":"IF(G98*H98<>0,G98*H98,\"\")","v":""},{"$nulls":3},{"$f":"IF(AND(ISNUMBER(J98),ISNUMBER(I98)),IF(J98>I98,ListesDeroulantes!A$194,\"\"),IF(AND(ISNUMBER(J98),NOT(ISNUMBER(I98))),ListesDeroulantes!A$194,\"\"))","v":""}]
[{"$nulls":4},"Total",{"$nulls":3},{"$f":"IF(SUM(I96:I98)<>0,SUM(I96:I98),\"- €\")","v":"- €"},{"$f":"IF(SUM(J96:J98)<>0,SUM(J96:J98),\"- €\")","v":"- €"}]
[null,{"$f":"IF(OR($F$10=ListesDeroulantes!$B$75,$F$10=ListesDeroulantes!$C$75),ListesDeroulantes!A149,IF(OR($F$10=ListesDeroulantes!$B$74,$F$10=ListesDeroulantes!$C$74),ListesDeroulantes!A152,ListesDeroulantes!A146))","v":"Veuillez choisir la base de calcul pour l'assiette de l'aide au préalable."},{"$nulls":10},{"$f":"IF(F10=\"\",ListesDeroulantes!A199,\"\")","v":"Erreur : la méthode de calcul de l'assiette de l'aide (coût marginal ou coûts complets) n'est pas renseignée. Merci de remonter en haut de cet onglet pour faire ce choix au préalable."}]
[]
[{"$nulls":4},{"$f":"ListesDeroulantes!A106","v":"Descriptif"},null,{"$f":"ListesDeroulantes!A148","v":"Taux (en %)"},null,{"$f":"ListesDeroulantes!A110","v":"Coût total\n(en €)"},{"$f":"ListesDeroulantes!A111","v":"Assiette de l'aide (en €) "}]
[]
[]
[{"$f":"IF(OR($F$10=ListesDeroulantes!$B$75,F$10=ListesDeroulantes!$C$75),100,IF(OR($F$10=ListesDeroulantes!$B$74,F$10=ListesDeroulantes!$C$74),68,0))","v":0},{"$f":"B104+1","v":1},null,null,{"$f":"IF(OR($F$10=ListesDeroulantes!$B$75,F$10=ListesDeroulantes!$C$75),ListesDeroulantes!A150,IF(OR($F$10=ListesDeroulantes!$B$74,F$10=ListesDeroulantes!$C$74),ListesDeroulantes!A154,\"\"))","v":""},{"$nulls":3},{"$f":"IF(OR($F$10=ListesDeroulantes!$B$75,F$10=ListesDeroulantes!$C$75),IF(ISNUMBER(G105),MIN(A105,G105)*SUM(I45,I54,I63)/100,\"- €\"),IF(OR($F$10=ListesDeroulantes!$B$74,F$10=ListesDeroulantes!$C$74),IF(ISNUMBER($G105),MIN(A105,G105)*SUM(I45,I54,I63)/100,\"\"),\"- €\"))","v":"- €"},{"$f":"IF(OR($F$10=ListesDeroulantes!$B$75,F$10=ListesDeroulantes!$C$75),\"- €\",IF(OR($F$10=ListesDeroulantes!$B$74,F$10=ListesDeroulantes!$C$74),IF(ISNUMBER($G105),MIN(A105,G105)*SUM(J45,J54,J63)/100,\"- €\"),\"- €\"))","v":"- €"},null,null,{"$f":"IF(ISNUMBER(G105),IF(G105>A105,ListesDeroulantes!B$195&A105,\"\"),ListesDeroulantes!A196)","v":"Erreur : le taux n'est pas renseigné."}]
[]
[{"$f":"IF(OR($F$10=ListesDeroulantes!$B$75,F$10=ListesDeroulantes!$C$75),20,IF(OR($F$10=ListesDeroulantes!$B$74,F$10=ListesDeroulantes!$C$74),7,0))","v":0},{"$f":"B105+1","v":2},null,null,{"$f":"IF(OR($F$10=ListesDeroulantes!$B$75,F$10=ListesDeroulantes!$C$75),ListesDeroulantes!A151,IF(OR($F$10=ListesDeroulantes!$B$74,F$10=ListesDeroulantes!$C$74),ListesDeroulantes!A155,\"\"))","v":""},{"$nulls":3},{"$f":"IF(OR($F$10=ListesDeroulantes!$B$75,F$10=ListesDeroulantes!$C$75),\"- €\",IF(OR($F$10=ListesDeroulantes!$B$74,F$10=ListesDeroulantes!$C$74),IF(ISNUMBER($G107),MIN(A107,G107)/100*SUM(I90,I81,I72,I36),\"- €\"),\"- €\"))","v":"- €"},{"$f":"IF(OR($F$10=ListesDeroulantes!$B$75,F$10=ListesDeroulantes!$C$75),IF(ISNUMBER($G107),MIN(A107,G107)/100*SUM(J99,J90,J81,J72,J63,J54,J36),\"- €\"),IF(OR($F$10=ListesDeroulantes!$B$74,F$10=ListesDeroulantes!$C$74),IF(ISNUMBER($G107),MIN(A107,G107)/100*SUM(J90,J81,J72,J36),\"- €\"),\"- €\"))","v":"- €"},null,null,{"$f":"IF(ISNUMBER(G107),IF(G107>A107,ListesDeroulantes!B$195&A107,\"\"),ListesDeroulantes!A196)","v":"Erreur : le taux n'est pas renseigné."}]
[]
[{"$nulls":4},"Total",{"$nulls":3},{"$f":"IF(SUM(I105:I108)<>0,SUM(I105:I108),\"- €\")","v":"- €"},{"$f":"IF(SUM(J105:J108)<>0,SUM(J105:J108),\"- €\")","v":"- €"}]
[]
[]
[{"$nulls":4},{"$f":"ListesDeroulantes!A156","v":"Coût complet, du projet (en €)"},null,{"$f":"IF(SUM(I109,I99,I90,I81,I72,I63,I54,I45,I36)+IF(AND(OR(F10=ListesDeroulantes!B75,F10=ListesDeroulantes!C75),ISNUMBER(J107)),J107,0)<>0,SUM(I109,I99,I90,I81,I72,I63,I54,I45,I36)+IF(AND(OR(F10=ListesDeroulantes!B75,F10=ListesDeroulantes!C75),ISNUMBER(J107)),J107,0),\"- €\")","v":"- €"}]
[]
[{"$nulls":4},{"$f":"ListesDeroulantes!A157","v":"Total coûts éligibles pour le calcul de l'aide : Total assiette de l'aide (en €)"},{"$nulls":3},{"$f":"IF(SUM(J36,J54,J63,J72,J81,J90,J99,J109)<>0,SUM(J36,J54,J63,J72,J81,J90,J99,J109),\"- €\")","v":"- €"}]
[]
[{"$nulls":3},{"$f":"IF(OR(F10=ListesDeroulantes!B75,F10=ListesDeroulantes!C75),100,IF(OR(F10=ListesDeroulantes!B74,F10=ListesDeroulantes!C74),50,0))","v":0},{"$f":"ListesDeroulantes!A159&IF(F10=ListesDeroulantes!A74,CHAR(10)&ListesDeroulantes!A161,\"\")&IF(F10=ListesDeroulantes!A75,CHAR(10)&ListesDeroulantes!A162,\"\")","v":"Taux d'aide demandé (%)"},{"$nulls":7},{"$f":"IF(ISNUMBER(I116),\"\",ListesDeroulantes!A196)","v":"Erreur : le taux n'est pas renseigné."}]
[]
[{"$nulls":4},{"$f":"ListesDeroulantes!A163","v":"Aide demandée (en €)"},{"$nulls":3},{"$f":"IF(AND(ISNUMBER(I114),ISNUMBER(I116)),I114*I116/100,\"- €\")","v":"- €"}]
[]
[]
[null,{"$f":"ListesDeroulantes!A164","v":"Participations au projet et autres soutiens financiers (sollicités ou obtenus par le partenaire pour le projet)"}]
[null,{"$f":"ListesDeroulantes!A165","v":"Préciser les mises à disposition de locaux, équipements, personnels, etc. pour le projet et, le cas échéant, indiquer le(s) WP(s) et la(les) tâche(s) concernées"}]
[]
[null,{"$f":"ListesDeroulantes!A166","v":"Identification des financeurs (nom, adresse) (Obligatoire)"},null,null,{"$f":"ListesDeroulantes!A167","v":"Nature et objet du financement et, le cas échéant, WP(s) et tâche(s) concernés"},{"$f":"ListesDeroulantes!A168","v":"Montant sollicité"},null,{"$f":"ListesDeroulantes!A169","v":"Montant obtenu"},null,{"$f":"ListesDeroulantes!A170","v":"Date effective ou prévue du co-financement"}]
{"$rows_empty":7}
[{"$nulls":4},"Total",{"$f":"IF(SUM(F129:G131)<>0,SUM(F129:G131),\"- €\")","v":"- €"},null,{"$f":"IF(SUM(H129:I131)<>0,SUM(H129:I131),\"- €\")","v":"- €"}]
[]
[null,{"$f":"ListesDeroulantes!A171","v":"Publication d'informations relatives au projet"}]
[]
[null,{"$f":"ListesDeroulantes!A172","v":"Si le projet est retenu pour financement, l'ANR se réserve la possibilité de rendre publiques les informations suivantes : nom du correpondant scientifique et technique et adresse électronique, dénominations des partenaires qu'ils soient des entreprises ou qu'ils appartiennent à un organisme de recherche.\r\nToutefois, pour un projet de recherche partenariale organisme de recherche / entreprise retenu pour financement, l'ANR ne rendra pas publiques les informations sur les personnes ou les partenaires qui en auront fait le demande."}]
[]
[]
[]
[]
[null,{"$f":"ListesDeroulantes!A173","v":"En cas de refus de publication d'un ou de plusieurs de ces éléments, remplacer ci-dessous la mention \"Oui\" par \"Non\" : "}]
[null,{"$f":"ListesDeroulantes!A176","v":"Nom et prénom du correspondant scientifique :"},{"$nulls":5},{"$f":"ListesDeroulantes!A$174","v":"Oui"}]
[null,{"$f":"ListesDeroulantes!A177","v":"Adresse électronique du correspondant scientifique : "},{"$nulls":5},{"$f":"ListesDeroulantes!A$174","v":"Oui"}]
[null,{"$f":"ListesDeroulantes!A178","v":"Dénomination du partenaire (si \"Non\", celle-ci sera remplacée par la mention générique \"Entreprise\" ou \"Organisme de recherche\") : "},{"$nulls":5},{"$f":"ListesDeroulantes!A$174","v":"Oui"}]
[]
[null,{"$f":"ListesDeroulantes!A179","v":"Nota : en déposant un projet, les partenaires ont accepté que l'ANR publie l'acronyme, le titre, le résumé, l'aide accordée au projet, la date de début de projet et la durée."}]
[]
[null,{"$f":"ListesDeroulantes!A180","v":"Commentaires (le cas échéant)"}]
[]
[]
[]
[]
[]
[]
[null,{"$f":"ListesDeroulantes!A181","v":"Les informations personnelles transmises dans ces documents sont obligatoires et seront conservées en fichiers par l'ANR pour assurer la conduite opérationnelle de l'évaluation et l'administration des dossiers.\nConformément à la loi n° 78-17 du 6 janvier 1978 modifiée, relative à l'Informatique, aux Fichiers et aux Libertés, les personnes concernées disposent d'un droit d'accès et de rectification des données personnelles les concernant. Les personnes concernées peuvent exercer ce droit en s'adressant à l'ANR (voir coordonnées dans le texte de l’appel à projets)."}]
[]
[]
[]
[null,{"$f":"ListesDeroulantes!A182","v":"Engagement de l'établissement partenaire (les signatures sont à apposer obligatoirement sur le document papier) "}]
[]
["Lettre d’engagement / Commitment letter"]
[]
["Le présent engagement est à compléter, signer, viser par la personne habilitée à engager l’Etablissement Coordinateur ou l’Etablissement Partenaire impliqué  et à scanner/déposer avant le 13 avril 2023 à 11 heures (heure de Paris), sur le site de soumission ",{"$nulls":4},"This present commitment letter must be filled in, signed and stamped by a legal representative of the Leading Institution or Partner Institution1 and scanned/uploaded by  April, 13th 2023 at 11h (Paris time) on the submission website:"]
[]
["LIEN DU SITE DE SOUMISSION"]
["https://france2030.agencerecherche.fr/RHU-V6"]
[]
["Ayant le pouvoir d'engager juridiquement l'établissement ci-dessus, je déclare :",{"$nulls":4},"Having the authority to legally bind the abovementioned Partner Institution:"]
["▪ avoir pris connaissance du dossier complet de soumission (document scientifique, y compris son annexe, et document administratif et financier) tel que déposé sur le site de l’ANR et du règlement relatif aux modalités d'attribution des aides au titre de l’appel à projets « Recherche Hospitalo-Universitaire en santé » - RHU 6   ;",{"$nulls":4},"▪ I declare having taken notice of the complete project application (the scientific document, including its appendix, and the administrative and financial document) as submitted on the ANR website, as well as of the funding modalities relative to the call « Recherche Hospitalo-Universitaire en santé » - RHU 6  ;"]
["▪ m'engager à négocier et signer un accord de consortium (ou équivalent) et mettre en œuvre tous les moyens nécessaires pour finaliser ce document dans les conditions et délais prévus par le règlement relatif aux modalités d'attribution des aides précité ;",{"$nulls":4},"▪ I commit to negotiate and sign the consortium agreement (or equivalent), and to meet all the necessary requirements to finalise this document within the expected conditions and delays;"]
["▪ m'engager à mettre en œuvre tous les moyens nécessaires à la réalisation du projet tels que décrits dans le dossier de soumission, dans les conditions prévues par le règlement relatif aux modalités d'attribution des aides précité;",{"$nulls":4},"▪ I commit to provide all necessary means to ensure the realization of the project as described in the submitted application and according to the conditions of the call;"]
["▪ m'engager à respecter les engagements financiers tels que détaillés dans le document administratif et financier du document de soumission déposé;",{"$nulls":4},"▪ I commit to meet the financial commitments as detailed in the administrative and financial document of the uploaded submission document;"]
["▪ m’engager à mettre en œuvre les recrutements sur contrat des personnels nécessaires à la réalisation de la proposition déposée et cela en conformité avec tous les lois et règlements en vigueur applicables ; à mettre à disposition des personnels engagés dans la réalisation du projet les surfaces de travail nécessaires à l’accomplissement de leurs missions pendant la durée du projet;",{"$nulls":4},"▪ I commit to implement all fixed-term employment contracts necessary to the execution of the project, in accordance with all applicable laws and regulations, and to ensure the ability to provide the space needed to carry out their duties;"]
["▪ souscrire aux obligations qui découlent du financement du projet par l’ANR, notamment à des fins d'évaluation globale de l'action;",{"$nulls":4},"▪ I certify to be able to comply with all the obligations resulting from the funding of the project by ANR, in particular for evaluation purposes;"]
["▪ que le projet ne cause pas un préjudice important du point de vue de l’environnement (application du principe DNSH – Do No Significant Harm ou « absence de préjudice important ») au sens de l’article 17 du règlement européen sur la taxonomie.\n",{"$nulls":4},"▪ that the project does not cause significant harm to the environment (application of the DNSH principle - Do No Significant Harm) within the meaning of Article 17 of the European Taxonomy Regulation.\n"]
[{"$f":"IF(F10=\"Coût complet\", \"▪ m’engager à ne pas avoir initié de travaux liés au projet déposé.\", \"\")","v":""},{"$nulls":4},{"$f":"IF(F10=\"Coût complet\", \"▪ I commit not to have initiated any work related to the submitted project.\", \"\")","v":""}]
[]
[null,{"$f":"ListesDeroulantes!A183","v":"Correspondant scientifique et technique"},{"$nulls":3},{"$f":"ListesDeroulantes!A184","v":"Personne habilitée à engager l'établissement partenaire (EP)"}]
[]
[null,{"$f":"ListesDeroulantes!A58","v":"Prénom"},null,{"$f":"ListesDeroulantes!A59","v":"Nom"},null,{"$f":"ListesDeroulantes!A58","v":"Prénom"},null,{"$f":"ListesDeroulantes!A59","v":"Nom"},{"$nulls":4},{"$f":"IF(OR(B181=\"\",D181=\"\"),ListesDeroulantes!A201,\"\")","v":"Erreur : les données concernant le correspondant scientifique et technique ne sont pas toutes renseignées."}]
[{"$nulls":5},{"$f":"IF(D22<>\"\",D22,\"\")","v":""},null,{"$f":"IF(D23<>\"\",D23,\"\")","v":""}]
[{"$nulls":5},{"$f":"ListesDeroulantes!A60","v":"Qualité"}]
[null,"Signature",{"$nulls":3},{"$f":"IF(D24<>\"\",D24,\"\")","v":""}]
[]
[{"$nulls":5},"Signature & Visa"]

{"sheet":"Part3","index":5,"n_rows":184,"n_cols":16,"rows_kept":184,"merged":[[0,0,2,4],[0,5,0,9],[0,12,4,12],[1,5,1,6],[1,7,1,9],[2,5,2,6],[2,7,2,9],[4,1,4,9],[6,0,7,2],[6,3,7,9],[6,12,7,12],[9,0,9,2],[9,5,9,9],[10,0,10,2],[11,0,12,2],[11,3,12,3],[11,5,12,9],[13,0,13,2],[14,0,15,2],[14,4,16,4],[14,5,16,9],[14,12,16,12],[16,0,16,2],[18,1,18,9],[20,0,20,2],[20,12,23,12],[21,0,21,2],[21,3,21,9],[22,0,22,2],[22,3,22,9],[23,0,23,2],[23,3,23,9],[25,1,25,9],[26,1,27,9],[28,1,31,1],[28,2,31,2],[28,3,31,3],[28,4,31,4],[28,5,31,5],[28,6,31,6],[28,7,31,7],[28,8,31,8],[28,9,31,9],[28,12,31,12],[36,1,37,9],[38,1,40,1],[38,2,40,2],[38,3,40,3],[38,4,40,4],[38,5,40,5],[38,6,40,6],[38,7,40,7],[38,8,40,8],[38,9,40,9],[45,1,46,9],[47,1,49,1],[47,2,49,2],[47,3,49,3],[47,4,49,4],[47,5,49,5],[47,6,49,6],[47,7,49,7],[47,8,49,8],[47,9,49,9],[47,11,49,11],[54,1,55,9],[56,1,58,1],[56,2,58,2],[56,3,58,3],[56,4,58,4],[56,5,58,5],[56,6,58,6],[56,7,58,7],[56,8,58,8],[56,9,58,9],[56,11,58,11],[63,1,64,9],[65,1,67,1],[65,2,67,2],[65,3,67,3],[65,4,67,4],[65,5,67,5],[65,6,67,6],[65,7,67,7],[65,8,67,8],[65,9,67,9],[72,1,73,9],[74,1,76,1],[74,2,76,2],[74,3,76,3],[74,4,76,4],[74,5,76,5],[74,6,76,6],[74,7,76,7],[74,8,76,8],[74,9,76,9],[81,1,82,9],[83,1,85,1],[83,2,85,2],[83,3,85,3],[83,4,85,4],[83,5,85,5],[83,6,85,6],[83,7,85,7],[83,8,85,8],[83,9,85,9],[90,1,91,9],[92,1,94,1],[92,2,94,2],[92,3,94,3],[92,4,94,4],[92,5,94,5],[92,6,94,6],[92,7,94,7],[92,8,94,8],[92,9,94,9],[99,1,100,9],[99,12,100,12],[101,2,103,2],[101,3,103,3],[101,4,103,4],[101,5,103,5],[101,6,103,6],[101,7,103,7],[101,8,103,8],[101,9,103,9],[104,0,105,0],[104,1,105,1],[104,2,105,2],[104,3,105,3],[104,4,105,4],[104,5,105,5],[104,6,105,6],[104,7,105,7],[104,8,105,8],[104,9,105,9],[104,12,105,12],[106,0,107,0],[106,1,107,1],[106,2,107,2],[106,3,107,3],[106,4,107,4],[106,5,107,5],[106,6,107,6],[106,7,107,7],[106,8,107,8],[106,9,107,9],[106,12,107,12],[109,1,110,9],[111,4,112,5],[111,6,112,7],[111,8,112,9],[113,4,114,5],[113,6,114,7],[113,8,114,9],[115,4,116,5],[115,6,116,7],[115,8,116,9],[115,12,116,12],[117,4,118,5],[117,6,118,7],[117,8,118,9],[120,1,120,9],[121,1,121,9],[123,1,127,3],[123,4,127,4],[123,5,127,6],[123,7,127,8],[123,9,127,9],[128,1,128,3],[128,5,128,6],[128,7,128,8],[129,1,129,3],[129,5,129,6],[129,7,129,8],[130,1,130,3],[130,5,130,6],[130,7,130,8],[131,5,131,6],[131,7,131,8],[133,1,133,9],[135,1,138,9],[140,1,140,9],[141,1,141,6],[142,1,142,6],[143,1,143,6],[145,1,145,9],[147,1,147,9],[149,1,152,9],[154,1,156,9],[158,1,158,9],[160,0,160,9],[162,0,162,3],[162,5,162,9],[164,0,164,9],[165,0,165,9],[167,0,167,4],[167,5,167,9],[168,0,168,4],[168,5,168,9],[169,0,169,4],[169,5,169,9],[170,0,170,4],[170,5,170,9],[171,0,171,4],[171,5,171,9],[172,0,172,4],[172,5,172,9],[173,0,173,4],[173,5,173,9],[174,0,174,4],[174,5,174,9],[175,0,175,4],[175,5,175,9],[176,1,176,3],[176,5,176,8],[178,1,178,2],[178,5,178,6],[178,7,178,8],[178,12,181,12],[179,1,179,2],[179,5,179,6],[179,7,179,8],[180,5,180,8],[181,1,181,3],[181,5,181,8],[182,1,185,3],[183,5,183,8],[184,5,187,8]]}
[{"$f":"ListesDeroulantes!A68&IF(ISNUMBER(RIGHT(CELL(\"filename\",$A$1),2)*1),RIGHT(CELL(\"filename\",$A$1),2)*1,IF(ISNUMBER(RIGHT(CELL(\"filename\",$A$1),1)*1),RIGHT(CELL(\"filename\",$A$1),1)*1,\"N/A\"))&ListesDeroulantes!A69","v":"Fiche partenaire n°3 : Identification et budget"},{"$nulls":4},{"$f":"ListesDeroulantes!A5","v":"Réservé à l'organisme gestionnaire du programme"},{"$nulls":6},{"$f":"IF(COUNTIF(M6:M1605,\"Err*\")>0,COUNTIF(M6:M1605,\"Err*\")&\" \"&ListesDeroulantes!A188&IF(COUNTIF(M6:M1605,\"Err*\")>1,\"s\",\"\"),\"\")","v":"10 erreurs"}]
[{"$nulls":5},{"$f":"ListesDeroulantes!A6","v":"N° de partenaire"},null,{"$f":"Volet_general!$N$2 & \"-\" &IF(IF(ISNUMBER(RIGHT(CELL(\"filename\",$A$1),2)*1),RIGHT(CELL(\"filename\",$A$1),2)*1,IF(ISNUMBER(RIGHT(CELL(\"filename\",$A$1),1)*1),RIGHT(CELL(\"filename\",$A$1),1)*1,\"#N/A\"))<10,\"0\",\"\")&IF(ISNUMBER(RIGHT(CELL(\"filename\",$A$1),2)*1),RIGHT(CELL(\"filename\",$A$1),2)*1,IF(ISNUMBER(RIGHT(CELL(\"filename\",$A$1),1)*1),RIGHT(CELL(\"filename\",$A$1),1)*1,\"#N/A\"))","v":"0-03"}]
[{"$nulls":5},{"$f":"ListesDeroulantes!A7","v":"Acronyme"},null,{"$f":"Volet_general!D12","v":0}]
[{"$nulls":13},{"$f":"IF(COUNTIF(ListesDeroulantes!B81:C81,D12)+COUNTIF(ListesDeroulantes!B83:C85,D12)>0,ListesDeroulantes!A75,ListesDeroulantes!A74)","v":"Coût complet"},{"$f":"IF(COUNTIF(ListesDeroulantes!B81:C81,D12)+COUNTIF(ListesDeroulantes!B83:C85,D12)>0,ListesDeroulantes!B75,ListesDeroulantes!B74)","v":"Coût complet"},{"$f":"IF(COUNTIF(ListesDeroulantes!B81:C81,D12)+COUNTIF(ListesDeroulantes!B83:C85,D12)>0,ListesDeroulantes!C75,ListesDeroulantes!C74)","v":"Full costs"}]
[null,{"$f":"ListesDeroulantes!A70","v":"Identification de l'établissement partenaire"},{"$nulls":11},{"$f":"IF(OR(D12=ListesDeroulantes!B86,D12=ListesDeroulantes!C86,D12=\"\"),ListesDeroulantes!A75,\"\")","v":"Coût marginal"},{"$f":"IF(OR(D12=ListesDeroulantes!B86,D12=ListesDeroulantes!C86,D12=\"\"),ListesDeroulantes!B75,\"\")","v":"Coût marginal"},{"$f":"IF(OR(D12=ListesDeroulantes!B86,D12=ListesDeroulantes!C86,D12=\"\"),ListesDeroulantes!C75,\"\")","v":"Marginal cost"}]
[]
[{"$f":"ListesDeroulantes!A71","v":"Nom complet du partenaire"},{"$nulls":11},{"$f":"IF(OR(D7=\"\",D10=\"\",D11=\"\",D12=\"\",D16=\"\",D17=\"\",F10=\"\"),ListesDeroulantes!A189,\"\")","v":"Erreur : les données concernant l'établissement partenaire ne sont pas toutes renseignées."},{"$f":"IF(D16=\"\",ListesDeroulantes!A96,IF(OR(D16=ListesDeroulantes!B96,D16=ListesDeroulantes!C96),ListesDeroulantes!A96,(IF(LEFT(D16,9)=356000000,356000000,(IF(LEN(D16)=9,MOD(MID(D16,1,1)+IF(MID(D16,2,1)*2<10,MID(D16,2,1)*2,MID(D16,2,1)*2-9)+MID(D16,3,1)+IF(MID(D16,4,1)*2<10,MID(D16,4,1)*2,MID(D16,4,1)*2-9)+MID(D16,5,1)+IF(MID(D16,6,1)*2<10,MID(D16,6,1)*2,MID(D16,6,1)*2-9)+MID(D16,7,1)+IF(MID(D16,8,1)*2<10,MID(D16,8,1)*2,MID(D16,8,1)*2-9)+MID(D16,9,1),10)=0,IF(LEN(D16)=14,IF(MOD(IF(MID(D16,1,1)*2<10,MID(D16,1,1)*2,MID(D16,1,1)*2-9)+MID(D16,2,1)+IF(MID(D16,3,1)*2<10,MID(D16,3,1)*2,MID(D16,3,1)*2-9)+MID(D16,4,1)+IF(MID(D16,5,1)*2<10,MID(D16,5,1)*2,MID(D16,5,1)*2-9)+MID(D16,6,1)+IF(MID(D16,7,1)*2<10,MID(D16,7,1)*2,MID(D16,7,1)*2-9)+MID(D16,8,1)+IF(MID(D16,9,1)*2<10,MID(D16,9,1)*2,MID(D16,9,1)*2-9)+MID(D16,10,1)+IF(MID(D16,11,1)*2<10,MID(D16,11,1)*2,MID(D16,11,1)*2-9)+MID(D16,12,1)+IF(MID(D16,13,1)*2<10,MID(D16,13,1)*2,MID(D16,13,1)*2-9)+MID(D16,14,1),10)=0,D16,FALSE),FALSE)))))))","v":"Entreprise étrangère"}]
[{"$nulls":13},{"$f":"IF(AND(N7<>ListesDeroulantes!B96,N7<>ListesDeroulantes!C96),ListesDeroulantes!A96,\"\")","v":""}]
[]
[{"$f":"ListesDeroulantes!A72","v":"Sigle du partenaire "},{"$nulls":3},{"$f":"ListesDeroulantes!A73","v":"Base de calcul de l'assiette de l'aide "},{"$nulls":7},{"$f":"IF(F10=\"\",ListesDeroulantes!A$190,IF(AND(F12=\"\",F10<>O4,F10<>P4),ListesDeroulantes!A191,\"\"))","v":"Erreur : veuillez choisir au préalable la méthode de calcul de l'assiette de l'aide (coût marginal ou coûts complets)."}]
[{"$f":"ListesDeroulantes!A77","v":"Catégorie de partenaire"}]
[{"$f":"ListesDeroulantes!A80","v":"Forme juridique"},{"$nulls":4},{"$f":"IF(OR(D12=ListesDeroulantes!B86,D12=ListesDeroulantes!C86),ListesDeroulantes!A76,\"\")","v":""},{"$nulls":6},{"$f":"IF(OR(D11=ListesDeroulantes!B79,D11=ListesDeroulantes!C79),IF(COUNTIF(ListesDeroulantes!B81:C86,D12)>0,ListesDeroulantes!A192,\"\"),\"\")&IF(OR(D11=ListesDeroulantes!B78,D11=ListesDeroulantes!C78),IF(COUNTIF(ListesDeroulantes!B87:C91,D12)>0,ListesDeroulantes!A192,\"\"),\"\")","v":""},{"$f":"IF(OR(D$11=ListesDeroulantes!B$78,D$11=ListesDeroulantes!C$78),ListesDeroulantes!A81,IF(OR(D$11=ListesDeroulantes!B$79,D$11=ListesDeroulantes!C$79),ListesDeroulantes!A87,ListesDeroulantes!A81))","v":"EPST : Établissement public à caractère scientifique et technologique"}]
[{"$nulls":13},{"$f":"IF(OR(D$11=ListesDeroulantes!B$78,D$11=ListesDeroulantes!C$78),ListesDeroulantes!A82,IF(OR(D$11=ListesDeroulantes!B$79,D$11=ListesDeroulantes!C$79),ListesDeroulantes!A88,ListesDeroulantes!A82))","v":"EPIC : Établissement public à caractère industriel et commercial"}]
[{"$nulls":13},{"$f":"IF(OR(D$11=ListesDeroulantes!B$78,D$11=ListesDeroulantes!C$78),ListesDeroulantes!A83,IF(OR(D$11=ListesDeroulantes!B$79,D$11=ListesDeroulantes!C$79),ListesDeroulantes!A89,ListesDeroulantes!A83))","v":"Établissement de santé"}]
[{"$f":"ListesDeroulantes!A94","v":"N° de SIRET"},null,null,{"$f":"ListesDeroulantes!A95","v":"Saisir un n°SIRET de 14digits"},{"$f":"ListesDeroulantes!A92","v":"Catégorie de recherche R&D"},{"$f":"IF(Volet_general!D16<>\"\",Volet_general!D16,\"\")","v":""},{"$nulls":6},{"$f":"IF(F15=\"\",ListesDeroulantes!A198,\"\")","v":"Erreur : la catégorie de recherche R&D n'est pas renseignée. Merci de revenir au volet général pour le completer pour poursuivre."},{"$f":"IF(OR(D$11=ListesDeroulantes!B$78,D$11=ListesDeroulantes!C$78),ListesDeroulantes!A84,IF(OR(D$11=ListesDeroulantes!B$79,D$11=ListesDeroulantes!C$79),ListesDeroulantes!A90,ListesDeroulantes!A84))","v":"Fondation de recherche (FR)"}]
[{"$nulls":13},{"$f":"IF(OR(D$11=ListesDeroulantes!B$78,D$11=ListesDeroulantes!C$78),ListesDeroulantes!A85,IF(OR(D$11=ListesDeroulantes!B$79,D$11=ListesDeroulantes!C$79),ListesDeroulantes!A91,ListesDeroulantes!A85))","v":"Université"}]
[{"$f":"ListesDeroulantes!A97","v":"Assujetti à la TVA "},{"$nulls":12},{"$f":"IF(OR(D$11=ListesDeroulantes!B$78,D$11=ListesDeroulantes!C$78),ListesDeroulantes!A86,IF(OR(D$11=ListesDeroulantes!B$79,D$11=ListesDeroulantes!C$79),\" \",ListesDeroulantes!A86))","v":"Autre public"}]
[{"$nulls":13},{"$f":"IF(OR(D$11=ListesDeroulantes!B$78,D$11=ListesDeroulantes!C$78),\" \",IF(OR(D$11=ListesDeroulantes!B$79,D$11=ListesDeroulantes!C$79),\" \",ListesDeroulantes!A87))","v":"Micro PME\n(≤ 9 employés)"}]
[null,{"$f":"ListesDeroulantes!A100","v":"Personne habilitée à représenter juridiquement l'établissement partenaire (pour signature de la convention attributive d'aide ou de reversement)"},{"$nulls":11},{"$f":"IF(OR(D$11=ListesDeroulantes!B$78,D$11=ListesDeroulantes!C$78),\" \",IF(OR(D$11=ListesDeroulantes!B$79,D$11=ListesDeroulantes!C$79),\" \",ListesDeroulantes!A88))","v":"Petite PME\n(10 ≤ employés ≤ 50)"}]
[{"$nulls":13},{"$f":"IF(OR(D$11=ListesDeroulantes!B$78,D$11=ListesDeroulantes!C$78),\" \",IF(OR(D$11=ListesDeroulantes!B$79,D$11=ListesDeroulantes!C$79),\" \",ListesDeroulantes!A89))","v":"Moyenne PME\n(51 < employés ≤ 250)"}]
[{"$f":"ListesDeroulantes!A101","v":"Genre"},{"$nulls":11},{"$f":"IF(OR(D21=\"\",D22=\"\",D23=\"\",D24=\"\"),ListesDeroulantes!A202,\"\")","v":"Erreur : les données concernant la personne habilitée à engager le partenaire ne sont pas toutes renseignées."},{"$f":"IF(OR(D$11=ListesDeroulantes!B$78,D$11=ListesDeroulantes!C$78),\" \",IF(OR(D$11=ListesDeroulantes!B$79,D$11=ListesDeroulantes!C$79),\" \",ListesDeroulantes!A90))","v":"Entreprise autre que PME"}]
[{"$f":"ListesDeroulantes!A58","v":"Prénom"},{"$nulls":12},{"$f":"IF(OR(D$11=ListesDeroulantes!B$78,D$11=ListesDeroulantes!C$78),\" \",IF(OR(D$11=ListesDeroulantes!B$79,D$11=ListesDeroulantes!C$79),\" \",ListesDeroulantes!A91))","v":"Autre privé"}]
[{"$f":"ListesDeroulantes!A59","v":"Nom"}]
[{"$f":"ListesDeroulantes!A60","v":"Qualité"}]
[]
[null,{"$f":"ListesDeroulantes!A104","v":"Demande financière ANR détaillée du projet (montant HT en €, incluant la TVA non récupérable le cas échéant)"}]
[null,{"$f":"ListesDeroulantes!A105","v":"Equipements ou amortissement d'équipements de R&D (supérieur à 4 000 € HT)"}]
[]
[{"$nulls":4},{"$f":"ListesDeroulantes!A$106","v":"Descriptif"},{"$f":"ListesDeroulantes!A$107","v":"WP(s) ET tâche(s) concernés"},{"$f":"ListesDeroulantes!A$108","v":"Coût d'achat\n(en €)"},{"$f":"ListesDeroulantes!A$109","v":"Pourcentage d'utilisation (en %)"},{"$f":"ListesDeroulantes!A$110","v":"Coût total\n(en €)"},{"$f":"ListesDeroulantes!A$111","v":"Assiette de l'aide (en €) "},null,null,{"$f":"IF(F10=\"\",ListesDeroulantes!A199,\"\")","v":"Erreur : la méthode de calcul de l'assiette de l'aide (coût marginal ou coûts complets) n'est pas renseignée. Merci de remonter en haut de cet onglet pour faire ce choix au préalable."}]
[]
[]
[]
[null,{"$f":"B32+1","v":1},{"$nulls":6},{"$f":"IF(AND($F$10<>ListesDeroulantes!B$75,$F$10<>ListesDeroulantes!C$75,$F$10<>ListesDeroulantes!B$74,$F$10<>ListesDeroulantes!C$74),\"\",IF(OR($F$10=ListesDeroulantes!B$74,$F$10=ListesDeroulantes!C$74),IF(AND(G33<>0,H33<>0),G33*H33/100,\"\"),IF(ISNUMBER(G33),G33,\"\")))","v":""},{"$nulls":3},{"$f":"IF(AND(ISNUMBER(J33),ISNUMBER(I33)),IF(J33>I33,ListesDeroulantes!A$194,\"\"),IF(AND(ISNUMBER(J33),NOT(ISNUMBER(I33))),ListesDeroulantes!A$194,\"\"))","v":""}]
[null,{"$f":"B33+1","v":2},{"$nulls":6},{"$f":"IF(AND($F$10<>ListesDeroulantes!B$75,$F$10<>ListesDeroulantes!C$75,$F$10<>ListesDeroulantes!B$74,$F$10<>ListesDeroulantes!C$74),\"\",IF(OR($F$10=ListesDeroulantes!B$74,$F$10=ListesDeroulantes!C$74),IF(AND(G34<>0,H34<>0),G34*H34/100,\"\"),IF(ISNUMBER(G34),G34,\"\")))","v":""},{"$nulls":3},{"$f":"IF(AND(ISNUMBER(J34),ISNUMBER(I34)),IF(J34>I34,ListesDeroulantes!A$194,\"\"),IF(AND(ISNUMBER(J34),NOT(ISNUMBER(I34))),ListesDeroulantes!A$194,\"\"))","v":""}]
[null,{"$f":"B34+1","v":3},{"$nulls":6},{"$f":"IF(AND($F$10<>ListesDeroulantes!B$75,$F$10<>ListesDeroulantes!C$75,$F$10<>ListesDeroulantes!B$74,$F$10<>ListesDeroulantes!C$74),\"\",IF(OR($F$10=ListesDeroulantes!B$74,$F$10=ListesDeroulantes!C$74),IF(AND(G35<>0,H35<>0),G35*H35/100,\"\"),IF(ISNUMBER(G35),G35,\"\")))","v":""},{"$nulls":3},{"$f":"IF(AND(ISNUMBER(J35),ISNUMBER(I35)),IF(J35>I35,ListesDeroulantes!A$194,\"\"),IF(AND(ISNUMBER(J35),NOT(ISNUMBER(I35))),ListesDeroulantes!A$194,\"\"))","v":""}]
[{"$nulls":4},"Total",{"$nulls":3},{"$f":"IF(SUM(I33:I35)<>0,SUM(I33:I35),\"- €\")","v":"- €"},{"$f":"IF(SUM(J33:J35)<>0,SUM(J33:J35),\"- €\")","v":"- €"}]
[null,{"$f":"ListesDeroulantes!A112","v":"Personnels sans financement ANR (uniquement pour les partenaires organismes de recherche)"}]
[]
[null,null,{"$f":"ListesDeroulantes!A$113","v":"OR/ES/\nMixte"},{"$f":"ListesDeroulantes!A$117","v":"Catégorie de personnel"},{"$f":"ListesDeroulantes!A$124","v":"Descriptif et commentaires éventuels"},{"$f":"ListesDeroulantes!A$107","v":"WP(s) ET tâche(s) concernés"},{"$f":"ListesDeroulantes!A$125","v":"Coût mensuel (en €)"},{"$f":"ListesDeroulantes!A$126","v":"Personne. Mois"},{"$f":"ListesDeroulantes!A$110","v":"Coût total\n(en €)"}]
[]
[]
[null,{"$f":"B41+1","v":1},{"$nulls":6},{"$f":"IF(G42*H42<>0,G42*H42,\"\")","v":""},{"$nulls":3},{"$f":"IF(AND(OR(C42<>\"\",D42<>\"\",E42<>\"\",F42<>\"\",G42<>\"\",H42<>\"\"),COUNTIF(ListesDeroulantes!$B$74:$C$74,$F$10)>0),ListesDeroulantes!A$193,\"\")","v":""}]
[null,{"$f":"B42+1","v":2},{"$nulls":6},{"$f":"IF(G43*H43<>0,G43*H43,\"\")","v":""},{"$nulls":3},{"$f":"IF(AND(OR(C43<>\"\",D43<>\"\",E43<>\"\",F43<>\"\",G43<>\"\",H43<>\"\"),COUNTIF(ListesDeroulantes!$B$74:$C$74,$F$10)>0),ListesDeroulantes!A$193,\"\")","v":""}]
[null,{"$f":"B43+1","v":3},{"$nulls":6},{"$f":"IF(G44*H44<>0,G44*H44,\"\")","v":""},{"$nulls":3},{"$f":"IF(AND(OR(C44<>\"\",D44<>\"\",E44<>\"\",F44<>\"\",G44<>\"\",H44<>\"\"),COUNTIF(ListesDeroulantes!$B$74:$C$74,$F$10)>0),ListesDeroulantes!A$193,\"\")","v":""}]
[{"$nulls":4},"Total",null,null,{"$f":"IF(COUNTIF(ListesDeroulantes!$B$74:$C$74,$F$10)>0,\"-\",IF(SUM(H42:H44)<>0,SUM(H42:H44),\"-\"))","v":"-"},{"$f":"IF(COUNTIF(ListesDeroulantes!$B$74:$C$74,$F$10)>0,\"- €\",IF(SUM(I42:I44)<>0,SUM(I42:I44),\"- €\"))","v":"- €"}]
[null,{"$f":"ListesDeroulantes!A127","v":"Personnels avec financement ANR en contrat à durée déterminée"}]
[]
[null,null,{"$f":"ListesDeroulantes!A$113","v":"OR/ES/\nMixte"},{"$f":"ListesDeroulantes!A$117","v":"Catégorie de personnel"},{"$f":"ListesDeroulantes!A$124","v":"Descriptif et commentaires éventuels"},{"$f":"ListesDeroulantes!A$107","v":"WP(s) ET tâche(s) concernés"},{"$f":"ListesDeroulantes!A$125","v":"Coût mensuel (en €)"},{"$f":"ListesDeroulantes!A$126","v":"Personne. Mois"},{"$f":"ListesDeroulantes!A$110","v":"Coût total\n(en €)"},{"$f":"ListesDeroulantes!A$111","v":"Assiette de l'aide (en €) "},null,{"$f":"H39&\" financés\"","v":"Personne. Mois financés"}]
[]
[]
[null,{"$f":"B50+1","v":1},{"$nulls":6},{"$f":"IF(G51*H51<>0,G51*H51,\"\")","v":""},null,null,{"$f":"IF(AND(H51>0,I51<>0,J51>0),J51/I51*H51,\"\")","v":""},{"$f":"IF(AND(ISNUMBER(J51),ISNUMBER(I51)),IF(J51>I51,ListesDeroulantes!A$194,\"\"),IF(AND(ISNUMBER(J51),NOT(ISNUMBER(I51))),ListesDeroulantes!A$194,\"\"))","v":""}]
[null,{"$f":"B51+1","v":2},{"$nulls":6},{"$f":"IF(G52*H52<>0,G52*H52,\"\")","v":""},null,null,{"$f":"IF(AND(H52>0,I52<>0,J52>0),J52/I52*H52,\"\")","v":""},{"$f":"IF(AND(ISNUMBER(J52),ISNUMBER(I52)),IF(J52>I52,ListesDeroulantes!A$194,\"\"),IF(AND(ISNUMBER(J52),NOT(ISNUMBER(I52))),ListesDeroulantes!A$194,\"\"))","v":""}]
[null,{"$f":"B52+1","v":3},{"$nulls":6},{"$f":"IF(G53*H53<>0,G53*H53,\"\")","v":""},null,null,"",{"$f":"IF(AND(ISNUMBER(J53),ISNUMBER(I53)),IF(J53>I53,ListesDeroulantes!A$194,\"\"),IF(AND(ISNUMBER(J53),NOT(ISNUMBER(I53))),ListesDeroulantes!A$194,\"\"))","v":""}]
[{"$nulls":4},"Total",null,null,{"$f":"IF(SUM(H51:H53)<>0,SUM(H51:H53),\"-\")","v":"-"},{"$f":"IF(SUM(I51:I53)<>0,SUM(I51:I53),\"- €\")","v":"- €"},{"$f":"IF(SUM(J51:J53)<>0,SUM(J51:J53),\"- €\")","v":"- €"},null,{"$f":"IF(SUM(L51:L53)<>0,SUM(L51:L53),\"\")","v":""}]
[null,{"$f":"ListesDeroulantes!A139","v":"Personnels avec financement ANR en contrat à durée indéterminée"}]
[]
[null,null,{"$f":"ListesDeroulantes!A$113","v":"OR/ES/\nMixte"},{"$f":"ListesDeroulantes!A$117","v":"Catégorie de personnel"},{"$f":"ListesDeroulantes!A$124","v":"Descriptif et commentaires éventuels"},{"$f":"ListesDeroulantes!A$107","v":"WP(s) ET tâche(s) concernés"},{"$f":"ListesDeroulantes!A$125","v":"Coût mensuel (en €)"},{"$f":"ListesDeroulantes!A$126","v":"Personne. Mois"},{"$f":"ListesDeroulantes!A$110","v":"Coût total\n(en €)"},{"$f":"ListesDeroulantes!A$111","v":"Assiette de l'aide (en €) "},null,{"$f":"H48&\" financés\"","v":"Personne. Mois financés"}]
[]
[]
[null,{"$f":"B59+1","v":1},{"$nulls":6},{"$f":"IF(G60*H60<>0,G60*H60,\"\")","v":""},null,null,{"$f":"IF(AND(H60>0,I60<>0,J60>0),J60/I60*H60,\"\")","v":""},{"$f":"IF(AND(ISNUMBER(J60),ISNUMBER(I60)),IF(J60>I60,ListesDeroulantes!A$194,\"\"),IF(AND(ISNUMBER(J60),NOT(ISNUMBER(I60))),ListesDeroulantes!A$194,\"\"))","v":""}]
[null,{"$f":"B60+1","v":2},{"$nulls":6},{"$f":"IF(G61*H61<>0,G61*H61,\"\")","v":""},null,null,{"$f":"IF(AND(H61>0,I61<>0,J61>0),J61/I61*H61,\"\")","v":""},{"$f":"IF(AND(ISNUMBER(J61),ISNUMBER(I61)),IF(J61>I61,ListesDeroulantes!A$194,\"\"),IF(AND(ISNUMBER(J61),NOT(ISNUMBER(I61))),ListesDeroulantes!A$194,\"\"))","v":""}]
[null,{"$f":"B61+1","v":3},{"$nulls":6},{"$f":"IF(G62*H62<>0,G62*H62,\"\")","v":""},null,null,"",{"$f":"IF(AND(ISNUMBER(J62),ISNUMBER(I62)),IF(J62>I62,ListesDeroulantes!A$194,\"\"),IF(AND(ISNUMBER(J62),NOT(ISNUMBER(I62))),ListesDeroulantes!A$194,\"\"))","v":""}]
[{"$nulls":4},"Total",null,null,{"$f":"IF(SUM(H60:H62)<>0,SUM(H60:H62),\"-\")","v":"-"},{"$f":"IF(SUM(I60:I62)<>0,SUM(I60:I62),\"- €\")","v":"- €"},{"$f":"IF(SUM(J60:J62)<>0,SUM(J60:J62),\"- €\")","v":"- €"},null,{"$f":"IF(SUM(L60:L62)<>0,SUM(L60:L62),\"\")","v":""}]
[null,{"$f":"ListesDeroulantes!A140","v":"Prestations de service externes"}]
[]
[{"$nulls":4},{"$f":"ListesDeroulantes!A$106","v":"Descriptif"},{"$f":"ListesDeroulantes!A$107","v":"WP(s) ET tâche(s) concernés"},null,null,{"$f":"ListesDeroulantes!A$110","v":"Coût total\n(en €)"},{"$f":"ListesDeroulantes!A$111","v":"Assiette de l'aide (en €) "}]
[]
[]
[null,{"$f":"B68+1","v":1},{"$nulls":10},{"$f":"IF(AND(ISNUMBER(J69),ISNUMBER(I69)),IF(J69>I69,ListesDeroulantes!A$194,\"\"),IF(AND(ISNUMBER(J69),NOT(ISNUMBER(I69))),ListesDeroulantes!A$194,\"\"))","v":""}]
[null,{"$f":"B69+1","v":2},{"$nulls":10},{"$f":"IF(AND(ISNUMBER(J70),ISNUMBER(I70)),IF(J70>I70,ListesDeroulantes!A$194,\"\"),IF(AND(ISNUMBER(J70),NOT(ISNUMBER(I70))),ListesDeroulantes!A$194,\"\"))","v":""}]
[null,{"$f":"B70+1","v":3},{"$nulls":10},{"$f":"IF(AND(ISNUMBER(J71),ISNUMBER(I71)),IF(J71>I71,ListesDeroulantes!A$194,\"\"),IF(AND(ISNUMBER(J71),NOT(ISNUMBER(I71))),ListesDeroulantes!A$194,\"\"))","v":""}]
[{"$nulls":4},"Total",{"$nulls":3},{"$f":"IF(SUM(I69:I71)<>0,SUM(I69:I71),\"- €\")","v":"- €"},{"$f":"IF(SUM(J69:J71)<>0,SUM(J69:J71),\"- €\")","v":"- €"}]
[null,{"$f":"ListesDeroulantes!A141","v":"Missions"}]
[]
[{"$nulls":4},{"$f":"ListesDeroulantes!A$106","v":"Descriptif"},{"$f":"ListesDeroulantes!A$107","v":"WP(s) ET tâche(s) concernés"},null,null,{"$f":"ListesDeroulantes!A$110","v":"Coût total\n(en €)"},{"$f":"ListesDeroulantes!A$111","v":"Assiette de l'aide (en €) "}]
[]
[]
[null,{"$f":"B77+1","v":1},{"$nulls":10},{"$f":"IF(AND(ISNUMBER(J78),ISNUMBER(I78)),IF(J78>I78,ListesDeroulantes!A$194,\"\"),IF(AND(ISNUMBER(J78),NOT(ISNUMBER(I78))),ListesDeroulantes!A$194,\"\"))","v":""}]
[null,{"$f":"B78+1","v":2},{"$nulls":10},{"$f":"IF(AND(ISNUMBER(J79),ISNUMBER(I79)),IF(J79>I79,ListesDeroulantes!A$194,\"\"),IF(AND(ISNUMBER(J79),NOT(ISNUMBER(I79))),ListesDeroulantes!A$194,\"\"))","v":""}]
[null,{"$f":"B79+1","v":3},{"$nulls":10},{"$f":"IF(AND(ISNUMBER(J80),ISNUMBER(I80)),IF(J80>I80,ListesDeroulantes!A$194,\"\"),IF(AND(ISNUMBER(J80),NOT(ISNUMBER(I80))),ListesDeroulantes!A$194,\"\"))","v":""}]
[{"$nulls":4},"Total",{"$nulls":3},{"$f":"IF(SUM(I78:I80)<>0,SUM(I78:I80),\"- €\")","v":"- €"},{"$f":"IF(SUM(J78:J80)<>0,SUM(J78:J80),\"- €\")","v":"- €"}]
[null,{"$f":"ListesDeroulantes!A142","v":"Autres dépenses externes (consommables, petits matériels …)"}]
[]
[{"$nulls":4},{"$f":"ListesDeroulantes!A$106","v":"Descriptif"},{"$f":"ListesDeroulantes!A$107","v":"WP(s) ET tâche(s) concernés"},null,null,{"$f":"ListesDeroulantes!A$110","v":"Coût total\n(en €)"},{"$f":"ListesDeroulantes!A$111","v":"Assiette de l'aide (en €) "}]
[]
[]
[null,{"$f":"B86+1","v":1},{"$nulls":10},{"$f":"IF(AND(ISNUMBER(J87),ISNUMBER(I87)),IF(J87>I87,ListesDeroulantes!A$194,\"\"),IF(AND(ISNUMBER(J87),NOT(ISNUMBER(I87))),ListesDeroulantes!A$194,\"\"))","v":""}]
[null,{"$f":"B87+1","v":2},{"$nulls":10},{"$f":"IF(AND(ISNUMBER(J88),ISNUMBER(I88)),IF(J88>I88,ListesDeroulantes!A$194,\"\"),IF(AND(ISNUMBER(J88),NOT(ISNUMBER(I88))),ListesDeroulantes!A$194,\"\"))","v":""}]
[null,{"$f":"B88+1","v":3},{"$nulls":10},{"$f":"IF(AND(ISNUMBER(J89),ISNUMBER(I89)),IF(J89>I89,ListesDeroulantes!A$194,\"\"),IF(AND(ISNUMBER(J89),NOT(ISNUMBER(I89))),ListesDeroulantes!A$194,\"\"))","v":""}]
[{"$nulls":4},"Total",{"$nulls":3},{"$f":"IF(SUM(I87:I89)<>0,SUM(I87:I89),\"- €\")","v":"- €"},{"$f":"IF(SUM(J87:J89)<>0,SUM(J87:J89),\"- €\")","v":"- €"}]
[null,{"$f":"ListesDeroulantes!A143","v":"Autres dépenses justifiées par une procédure de facturation interne"}]
[]
[{"$nulls":4},{"$f":"ListesDeroulantes!A$106","v":"Descriptif"},{"$f":"ListesDeroulantes!A$107","v":"WP(s) ET tâche(s) concernés"},{"$f":"ListesDeroulantes!A144","v":"Coût unitaire (en €)"},{"$f":"ListesDeroulantes!A145","v":"Nombre"},{"$f":"ListesDeroulantes!A$110","v":"Coût total\n(en €)"},{"$f":"ListesDeroulantes!A$111","v":"Assiette de l'aide (en €) "}]
[]
[]
[null,{"$f":"B95+1","v":1},{"$nulls":6},{"$f":"IF(G96*H96<>0,G96*H96,\"\")","v":""},{"$nulls":3},{"$f":"IF(AND(ISNUMBER(J96),ISNUMBER(I96)),IF(J96>I96,ListesDeroulantes!A$194,\"\"),IF(AND(ISNUMBER(J96),NOT(ISNUMBER(I96))),ListesDeroulantes!A$194,\"\"))","v":""}]
[null,{"$f":"B96+1","v":2},{"$nulls":6},{"$f":"IF(G97*H97<>0,G97*H97,\"\")","v":""},{"$nulls":3},{"$f":"IF(AND(ISNUMBER(J97),ISNUMBER(I97)),IF(J97>I97,ListesDeroulantes!A$194,\"\"),IF(AND(ISNUMBER(J97),NOT(ISNUMBER(I97))),ListesDeroulantes!A$194,\"\"))","v":""}]
[null,{"$f":"B97+1","v":3},{"$nulls":6},{"$f":"IF(G98*H98<>0,G98*H98,\"\")","v":""},{"$nulls":3},{"$f":"IF(AND(ISNUMBER(J98),ISNUMBER(I98)),IF(J98>I98,ListesDeroulantes!A$194,\"\"),IF(AND(ISNUMBER(J98),NOT(ISNUMBER(I98))),ListesDeroulantes!A$194,\"\"))","v":""}]
[{"$nulls":4},"Total",{"$nulls":3},{"$f":"IF(SUM(I96:I98)<>0,SUM(I96:I98),\"- €\")","v":"- €"},{"$f":"IF(SUM(J96:J98)<>0,SUM(J96:J98),\"- €\")","v":"- €"}]
[null,{"$f":"IF(OR($F$10=ListesDeroulantes!$B$75,$F$10=ListesDeroulantes!$C$75),ListesDeroulantes!A149,IF(OR($F$10=ListesDeroulantes!$B$74,$F$10=ListesDeroulantes!$C$74),ListesDeroulantes!A152,ListesDeroulantes!A146))","v":"Veuillez choisir la base de calcul pour l'assiette de l'aide au préalable."},{"$nulls":10},{"$f":"IF(F10=\"\",ListesDeroulantes!A199,\"\")","v":"Erreur : la méthode de calcul de l'assiette de l'aide (coût marginal ou coûts complets) n'est pas renseignée. Merci de remonter en haut de cet onglet pour faire ce choix au préalable."}]
[]
[{"$nulls":4},{"$f":"ListesDeroulantes!A106","v":"Descriptif"},null,{"$f":"ListesDeroulantes!A148","v":"Taux (en %)"},null,{"$f":"ListesDeroulantes!A110","v":"Coût total\n(en €)"},{"$f":"ListesDeroulantes!A111","v":"Assiette de l'aide (en €) "}]
[]
[]
[{"$f":"IF(OR($F$10=ListesDeroulantes!$B$75,F$10=ListesDeroulantes!$C$75),100,IF(OR($F$10=ListesDeroulantes!$B$74,F$10=ListesDeroulantes!$C$74),68,0))","v":0},{"$f":"B104+1","v":1},null,null,{"$f":"IF(OR($F$10=ListesDeroulantes!$B$75,F$10=ListesDeroulantes!$C$75),ListesDeroulantes!A150,IF(OR($F$10=ListesDeroulantes!$B$74,F$10=ListesDeroulantes!$C$74),ListesDeroulantes!A154,\"\"))","v":""},{"$nulls":3},{"$f":"IF(OR($F$10=ListesDeroulantes!$B$75,F$10=ListesDeroulantes!$C$75),IF(ISNUMBER(G105),MIN(A105,G105)*SUM(I45,I54,I63)/100,\"- €\"),IF(OR($F$10=ListesDeroulantes!$B$74,F$10=ListesDeroulantes!$C$74),IF(ISNUMBER($G105),MIN(A105,G105)*SUM(I45,I54,I63)/100,\"\"),\"- €\"))","v":"- €"},{"$f":"IF(OR($F$10=ListesDeroulantes!$B$75,F$10=ListesDeroulantes!$C$75),\"- €\",IF(OR($F$10=ListesDeroulantes!$B$74,F$10=ListesDeroulantes!$C$74),IF(ISNUMBER($G105),MIN(A105,G105)*SUM(J45,J54,J63)/100,\"- €\"),\"- €\"))","v":"- €"},null,null,{"$f":"IF(ISNUMBER(G105),IF(G105>A105,ListesDeroulantes!B$195&A105,\"\"),ListesDeroulantes!A196)","v":"Erreur : le taux n'est pas renseigné."}]
[]
[{"$f":"IF(OR($F$10=ListesDeroulantes!$B$75,F$10=ListesDeroulantes!$C$75),20,IF(OR($F$10=ListesDeroulantes!$B$74,F$10=ListesDeroulantes!$C$74),7,0))","v":0},{"$f":"B105+1","v":2},null,null,{"$f":"IF(OR($F$10=ListesDeroulantes!$B$75,F$10=ListesDeroulantes!$C$75),ListesDeroulantes!A151,IF(OR($F$10=ListesDeroulantes!$B$74,F$10=ListesDeroulantes!$C$74),ListesDeroulantes!A155,\"\"))","v":""},{"$nulls":3},{"$f":"IF(OR($F$10=ListesDeroulantes!$B$75,F$10=ListesDeroulantes!$C$75),\"- €\",IF(OR($F$10=ListesDeroulantes!$B$74,F$10=ListesDeroulantes!$C$74),IF(ISNUMBER($G107),MIN(A107,G107)/100*SUM(I90,I81,I72,I36),\"- €\"),\"- €\"))","v":"- €"},{"$f":"IF(OR($F$10=ListesDeroulantes!$B$75,F$10=ListesDeroulantes!$C$75),IF(ISNUMBER($G107),MIN(A107,G107)/100*SUM(J99,J90,J81,J72,J63,J54,J36),\"- €\"),IF(OR($F$10=ListesDeroulantes!$B$74,F$10=ListesDeroulantes!$C$74),IF(ISNUMBER($G107),MIN(A107,G107)/100*SUM(J90,J81,J72,J36),\"- €\"),\"- €\"))","v":"- €"},null,null,{"$f":"IF(ISNUMBER(G107),IF(G107>A107,ListesDeroulantes!B$195&A107,\"\"),ListesDeroulantes!A196)","v":"Erreur : le taux n'est pas renseigné."}]
[]
[{"$nulls":4},"Total",{"$nulls":3},{"$f":"IF(SUM(I105:I108)<>0,SUM(I105:I108),\"- €\")","v":"- €"},{"$f":"IF(SUM(J105:J108)<>0,SUM(J105:J108),\"- €\")","v":"- €"}]
[]
[]
[{"$nulls":4},{"$f":"ListesDeroulantes!A156","v":"Coût complet, du projet (en €)"},null,{"$f":"IF(SUM(I109,I99,I90,I81,I72,I63,I54,I45,I36)+IF(AND(OR(F10=ListesDeroulantes!B75,F10=ListesDeroulantes!C75),ISNUMBER(J107)),J107,0)<>0,SUM(I109,I99,I90,I81,I72,I63,I54,I45,I36)+IF(AND(OR(F10=ListesDeroulantes!B75,F10=ListesDeroulantes!C75),ISNUMBER(J107)),J107,0),\"- €\")","v":"- €"}]
[]
[{"$nulls":4},{"$f":"ListesDeroulantes!A157","v":"Total coûts éligibles pour le calcul de l'aide : Total assiette de l'aide (en €)"},{"$nulls":3},{"$f":"IF(SUM(J36,J54,J63,J72,J81,J90,J99,J109)<>0,SUM(J36,J54,J63,J72,J81,J90,J99,J109),\"- €\")","v":"- €"}]
[]
[{"$nulls":3},{"$f":"IF(OR(F10=ListesDeroulantes!B75,F10=ListesDeroulantes!C75),100,IF(OR(F10=ListesDeroulantes!B74,F10=ListesDeroulantes!C74),50,0))","v":0},{"$f":"ListesDeroulantes!A159&IF(F10=ListesDeroulantes!A74,CHAR(10)&ListesDeroulantes!A161,\"\")&IF(F10=ListesDeroulantes!A75,CHAR(10)&ListesDeroulantes!A162,\"\")","v":"Taux d'aide demandé (%)"},{"$nulls":7},{"$f":"IF(ISNUMBER(I116),\"\",ListesDeroulantes!A196)","v":"Erreur : le taux n'est pas renseigné."}]
[]
[{"$nulls":4},{"$f":"ListesDeroulantes!A163","v":"Aide demandée (en €)"},{"$nulls":3},{"$f":"IF(AND(ISNUMBER(I114),ISNUMBER(I116)),I114*I116/100,\"- €\")","v":"- €"}]
[]
[]
[null,{"$f":"ListesDeroulantes!A164","v":"Participations au projet et autres soutiens financiers (sollicités ou obtenus par le partenaire pour le projet)"}]
[null,{"$f":"ListesDeroulantes!A165","v":"Préciser les mises à disposition de locaux, équipements, personnels, etc. pour le projet et, le cas échéant, indiquer le(s) WP(s) et la(les) tâche(s) concernées"}]
[]
[null,{"$f":"ListesDeroulantes!A166","v":"Identification des financeurs (nom, adresse) (Obligatoire)"},null,null,{"$f":"ListesDeroulantes!A167","v":"Nature et objet du financement et, le cas échéant, WP(s) et tâche(s) concernés"},{"$f":"ListesDeroulantes!A168","v":"Montant sollicité"},null,{"$f":"ListesDeroulantes!A169","v":"Montant obtenu"},null,{"$f":"ListesDeroulantes!A170","v":"Date effective ou prévue du co-financement"}]
{"$rows_empty":7}
[{"$nulls":4},"Total",{"$f":"IF(SUM(F129:G131)<>0,SUM(F129:G131),\"- €\")","v":"- €"},null,{"$f":"IF(SUM(H129:I131)<>0,SUM(H129:I131),\"- €\")","v":"- €"}]
[]
[null,{"$f":"ListesDeroulantes!A171","v":"Publication d'informations relatives au projet"}]
[]
[null,{"$f":"ListesDeroulantes!A172","v":"Si le projet est retenu pour financement, l'ANR se réserve la possibilité de rendre publiques les informations suivantes : nom du correpondant scientifique et technique et adresse électronique, dénominations des partenaires qu'ils soient des entreprises ou qu'ils appartiennent à un organisme de recherche.\r\nToutefois, pour un projet de recherche partenariale organisme de recherche / entreprise retenu pour financement, l'ANR ne rendra pas publiques les informations sur les personnes ou les partenaires qui en auront fait le demande."}]
[]
[]
[]
[]
[null,{"$f":"ListesDeroulantes!A173","v":"En cas de refus de publication d'un ou de plusieurs de ces éléments, remplacer ci-dessous la mention \"Oui\" par \"Non\" : "}]
[null,{"$f":"ListesDeroulantes!A176","v":"Nom et prénom du correspondant scientifique :"},{"$nulls":5},{"$f":"ListesDeroulantes!A$174","v":"Oui"}]
[null,{"$f":"ListesDeroulantes!A177","v":"Adresse électronique du correspondant scientifique : "},{"$nulls":5},{"$f":"ListesDeroulantes!A$174","v":"Oui"}]
[null,{"$f":"ListesDeroulantes!A178","v":"Dénomination du partenaire (si \"Non\", celle-ci sera remplacée par la mention générique \"Entreprise\" ou \"Organisme de recherche\") : "},{"$nulls":5},{"$f":"ListesDeroulantes!A$174","v":"Oui"}]
[]
[null,{"$f":"ListesDeroulantes!A179","v":"Nota : en déposant un projet, les partenaires ont accepté que l'ANR publie l'acronyme, le titre, le résumé, l'aide accordée au projet, la date de début de projet et la durée."}]
[]
[null,{"$f":"ListesDeroulantes!A180","v":"Commentaires (le cas échéant)"}]
[]
[]
[]
[]
[]
[]
[null,{"$f":"ListesDeroulantes!A181","v":"Les informations personnelles transmises dans ces documents sont obligatoires et seront conservées en fichiers par l'ANR pour assurer la conduite opérationnelle de l'évaluation et l'administration des dossiers.\nConformément à la loi n° 78-17 du 6 janvier 1978 modifiée, relative à l'Informatique, aux Fichiers et aux Libertés, les personnes concernées disposent d'un droit d'accès et de rectification des données personnelles les concernant. Les personnes concernées peuvent exercer ce droit en s'adressant à l'ANR (voir coordonnées dans le texte de l’appel à projets)."}]
[]
[]
[]
[null,{"$f":"ListesDeroulantes!A182","v":"Engagement de l'établissement partenaire (les signatures sont à apposer obligatoirement sur le document papier) "}]
[]
["Lettre d’engagement / Commitment letter"]
[]
["Le présent engagement est à compléter, signer, viser par la personne habilitée à engager l’Etablissement Coordinateur ou l’Etablissement Partenaire impliqué  et à scanner/déposer avant le 13 avril 2023 à 11 heures (heure de Paris), sur le site de soumission ",{"$nulls":4},"This present commitment letter must be filled in, signed and stamped by a legal representative of the Leading Institution or Partner Institution1 and scanned/uploaded by  April, 13th 2023 at 11h (Paris time) on the submission website:"]
[]
["LIEN DU SITE DE SOUMISSION"]
["https://france2030.agencerecherche.fr/RHU-V6"]
[]
["Ayant le pouvoir d'engager juridiquement l'établissement ci-dessus, je déclare :",{"$nulls":4},"Having the authority to legally bind the abovementioned Partner Institution:"]
["▪ avoir pris connaissance du dossier complet de soumission (document scientifique, y compris son annexe, et document administratif et financier) tel que déposé sur le site de l’ANR et du règlement relatif aux modalités d'attribution des aides au titre de l’appel à projets « Recherche Hospitalo-Universitaire en santé » - RHU 6   ;",{"$nulls":4},"▪ I declare having taken notice of the complete project application (the scientific document, including its appendix, and the administrative and financial document) as submitted on the ANR website, as well as of the funding modalities relative to the call « Recherche Hospitalo-Universitaire en santé » - RHU 6  ;"]
["▪ m'engager à négocier et signer un accord de consortium (ou équivalent) et mettre en œuvre tous les moyens nécessaires pour finaliser ce document dans les conditions et délais prévus par le règlement relatif aux modalités d'attribution des aides précité ;",{"$nulls":4},"▪ I commit to negotiate and sign the consortium agreement (or equivalent), and to meet all the necessary requirements to finalise this document within the expected conditions and delays;"]
["▪ m'engager à mettre en œuvre tous les moyens nécessaires à la réalisation du projet tels que décrits dans le dossier de soumission, dans les conditions prévues par le règlement relatif aux modalités d'attribution des aides précité;",{"$nulls":4},"▪ I commit to provide all necessary means to ensure the realization of the project as described in the submitted application and according to the conditions of the call;"]
["▪ m'engager à respecter les engagements financiers tels que détaillés dans le document administratif et financier du document de soumission déposé;",{"$nulls":4},"▪ I commit to meet the financial commitments as detailed in the administrative and financial document of the uploaded submission document;"]
["▪ m’engager à mettre en œuvre les recrutements sur contrat des personnels nécessaires à la réalisation de la proposition déposée et cela en conformité avec tous les lois et règlements en vigueur applicables ; à mettre à disposition des personnels engagés dans la réalisation du projet les surfaces de travail nécessaires à l’accomplissement de leurs missions pendant la durée du projet;",{"$nulls":4},"▪ I commit to implement all fixed-term employment contracts necessary to the execution of the project, in accordance with all applicable laws and regulations, and to ensure the ability to provide the space needed to carry out their duties;"]
["▪ souscrire aux obligations qui découlent du financement du projet par l’ANR, notamment à des fins d'évaluation globale de l'action;",{"$nulls":4},"▪ I certify to be able to comply with all the obligations resulting from the funding of the project by ANR, in particular for evaluation purposes;"]
["▪ que le projet ne cause pas un préjudice important du point de vue de l’environnement (application du principe DNSH – Do No Significant Harm ou « absence de préjudice important ») au sens de l’article 17 du règlement européen sur la taxonomie.\n",{"$nulls":4},"▪ that the project does not cause significant harm to the environment (application of the DNSH principle - Do No Significant Harm) within the meaning of Article 17 of the European Taxonomy Regulation.\n"]
[{"$f":"IF(F10=\"Coût complet\", \"▪ m’engager à ne pas avoir initié de travaux liés au projet déposé.\", \"\")","v":""},{"$nulls":4},{"$f":"IF(F10=\"Coût complet\", \"▪ I commit not to have initiated any work related to the submitted project.\", \"\")","v":""}]
[null,{"$f":"ListesDeroulantes!A183","v":"Correspondant scientifique et technique"},{"$nulls":3},{"$f":"ListesDeroulantes!A184","v":"Personne habilitée à engager l'établissement partenaire (EP)"}]
[]
[null,{"$f":"ListesDeroulantes!A58","v":"Prénom"},null,{"$f":"ListesDeroulantes!A59","v":"Nom"},null,{"$f":"ListesDeroulantes!A58","v":"Prénom"},null,{"$f":"ListesDeroulantes!A59","v":"Nom"},{"$nulls":4},{"$f":"IF(OR(B180=\"\",D180=\"\"),ListesDeroulantes!A201,\"\")","v":"Erreur : les données concernant le correspondant scientifique et technique ne sont pas toutes renseignées."}]
[{"$nulls":5},{"$f":"IF(D22<>\"\",D22,\"\")","v":""},null,{"$f":"IF(D23<>\"\",D23,\"\")","v":""}]
[{"$nulls":5},{"$f":"ListesDeroulantes!A60","v":"Qualité"}]
[null,"Signature",{"$nulls":3},{"$f":"IF(D24<>\"\",D24,\"\")","v":""}]
[]
[{"$nulls":5},"Signature & visa"]

{"sheet":"Partenaire vide","index":6,"n_rows":185,"n_cols":16,"rows_kept":185,"hidden":true,"merged":[[0,0,2,4],[0,5,0,9],[0,12,4,12],[1,5,1,6],[1,7,1,9],[2,5,2,6],[2,7,2,9],[4,1,4,9],[6,0,7,2],[6,3,7,9],[6,12,7,12],[9,0,9,2],[9,5,9,9],[10,0,10,2],[11,0,12,2],[11,3,12,3],[11,5,12,9],[13,0,13,2],[14,0,15,2],[14,4,16,4],[14,5,16,9],[14,12,16,12],[16,0,16,2],[18,1,18,9],[20,0,20,2],[20,12,23,12],[21,0,21,2],[21,3,21,9],[22,0,22,2],[22,3,22,9],[23,0,23,2],[23,3,23,9],[25,1,25,9],[26,1,27,9],[28,1,31,1],[28,2,31,2],[28,3,31,3],[28,4,31,4],[28,5,31,5],[28,6,31,6],[28,7,31,7],[28,8,31,8],[28,9,31,9],[28,12,31,12],[36,1,37,9],[38,1,40,1],[38,2,40,2],[38,3,40,3],[38,4,40,4],[38,5,40,5],[38,6,40,6],[38,7,40,7],[38,8,40,8],[38,9,40,9],[45,1,46,9],[47,1,49,1],[47,2,49,2],[47,3,49,3],[47,4,49,4],[47,5,49,5],[47,6,49,6],[47,7,49,7],[47,8,49,8],[47,9,49,9],[47,11,49,11],[54,1,55,9],[56,1,58,1],[56,2,58,2],[56,3,58,3],[56,4,58,4],[56,5,58,5],[56,6,58,6],[56,7,58,7],[56,8,58,8],[56,9,58,9],[56,11,58,11],[63,1,64,9],[65,1,67,1],[65,2,67,2],[65,3,67,3],[65,4,67,4],[65,5,67,5],[65,6,67,6],[65,7,67,7],[65,8,67,8],[65,9,67,9],[72,1,73,9],[74,1,76,1],[74,2,76,2],[74,3,76,3],[74,4,76,4],[74,5,76,5],[74,6,76,6],[74,7,76,7],[74,8,76,8],[74,9,76,9],[81,1,82,9],[83,1,85,1],[83,2,85,2],[83,3,85,3],[83,4,85,4],[83,5,85,5],[83,6,85,6],[83,7,85,7],[83,8,85,8],[83,9,85,9],[90,1,91,9],[92,1,94,1],[92,2,94,2],[92,3,94,3],[92,4,94,4],[92,5,94,5],[92,6,94,6],[92,7,94,7],[92,8,94,8],[92,9,94,9],[99,1,100,9],[99,12,100,12],[101,2,103,2],[101,3,103,3],[101,4,103,4],[101,5,103,5],[101,6,103,6],[101,7,103,7],[101,8,103,8],[101,9,103,9],[104,0,105,0],[104,1,105,1],[104,2,105,2],[104,3,105,3],[104,4,105,4],[104,5,105,5],[104,6,105,6],[104,7,105,7],[104,8,105,8],[104,9,105,9],[104,12,105,12],[106,0,107,0],[106,1,107,1],[106,2,107,2],[106,3,107,3],[106,4,107,4],[106,5,107,5],[106,6,107,6],[106,7,107,7],[106,8,107,8],[106,9,107,9],[106,12,107,12],[109,1,110,9],[111,4,112,5],[111,6,112,7],[111,8,112,9],[113,4,114,5],[113,6,114,7],[113,8,114,9],[115,4,116,5],[115,6,116,7],[115,8,116,9],[115,12,116,12],[117,4,118,5],[117,6,118,7],[117,8,118,9],[120,1,120,9],[121,1,121,9],[123,1,127,3],[123,4,127,4],[123,5,127,6],[123,7,127,8],[123,9,127,9],[128,1,128,3],[128,5,128,6],[128,7,128,8],[129,1,129,3],[129,5,129,6],[129,7,129,8],[130,1,130,3],[130,5,130,6],[130,7,130,8],[131,5,131,6],[131,7,131,8],[133,1,133,9],[135,1,138,9],[140,1,140,9],[141,1,141,6],[142,1,142,6],[143,1,143,6],[145,1,145,9],[147,1,147,9],[149,1,152,9],[154,1,156,9],[158,1,158,9],[160,0,160,9],[162,0,162,3],[162,5,162,9],[164,0,164,9],[165,0,165,9],[167,0,167,4],[167,5,167,9],[168,0,168,4],[168,5,168,9],[169,0,169,4],[169,5,169,9],[170,0,170,4],[170,5,170,9],[171,0,171,4],[171,5,171,9],[172,0,172,4],[172,5,172,9],[173,0,173,4],[173,5,173,9],[174,0,174,4],[174,5,174,9],[175,0,175,4],[175,5,175,9],[177,1,177,3],[177,5,177,8],[179,1,179,2],[179,5,179,6],[179,7,179,8],[179,12,182,12],[180,1,180,2],[180,5,180,6],[180,7,180,8],[181,5,181,8],[182,1,182,3],[182,5,182,8],[183,1,186,3],[184,5,184,8],[185,5,188,8]]}
[{"$f":"ListesDeroulantes!A68&IF(ISNUMBER(RIGHT(CELL(\"filename\",$A$1),2)*1),RIGHT(CELL(\"filename\",$A$1),2)*1,IF(ISNUMBER(RIGHT(CELL(\"filename\",$A$1),1)*1),RIGHT(CELL(\"filename\",$A$1),1)*1,\"N/A\"))&ListesDeroulantes!A69","v":"Fiche partenaire n°N/A : Identification et budget"},{"$nulls":4},{"$f":"ListesDeroulantes!A5","v":"Réservé à l'organisme gestionnaire du programme"},{"$nulls":6},{"$f":"IF(COUNTIF(M6:M1606,\"Err*\")>0,COUNTIF(M6:M1606,\"Err*\")&\" \"&ListesDeroulantes!A188&IF(COUNTIF(M6:M1606,\"Err*\")>1,\"s\",\"\"),\"\")","v":"10 erreurs"}]
[{"$nulls":5},{"$f":"ListesDeroulantes!A6","v":"N° de partenaire"},null,{"$f":"Volet_general!$N$2 & \"-\" &IF(IF(ISNUMBER(RIGHT(CELL(\"filename\",$A$1),2)*1),RIGHT(CELL(\"filename\",$A$1),2)*1,IF(ISNUMBER(RIGHT(CELL(\"filename\",$A$1),1)*1),RIGHT(CELL(\"filename\",$A$1),1)*1,\"#N/A\"))<10,\"0\",\"\")&IF(ISNUMBER(RIGHT(CELL(\"filename\",$A$1),2)*1),RIGHT(CELL(\"filename\",$A$1),2)*1,IF(ISNUMBER(RIGHT(CELL(\"filename\",$A$1),1)*1),RIGHT(CELL(\"filename\",$A$1),1)*1,\"#N/A\"))","v":"0-#N/A"}]
[{"$nulls":5},{"$f":"ListesDeroulantes!A7","v":"Acronyme"},null,{"$f":"Volet_general!D12","v":0}]
[{"$nulls":13},{"$f":"IF(COUNTIF(ListesDeroulantes!B81:C81,D12)+COUNTIF(ListesDeroulantes!B83:C85,D12)>0,ListesDeroulantes!A75,ListesDeroulantes!A74)","v":"Coût complet"},{"$f":"IF(COUNTIF(ListesDeroulantes!B81:C81,D12)+COUNTIF(ListesDeroulantes!B83:C85,D12)>0,ListesDeroulantes!B75,ListesDeroulantes!B74)","v":"Coût complet"},{"$f":"IF(COUNTIF(ListesDeroulantes!B81:C81,D12)+COUNTIF(ListesDeroulantes!B83:C85,D12)>0,ListesDeroulantes!C75,ListesDeroulantes!C74)","v":"Full costs"}]
[null,{"$f":"ListesDeroulantes!A70","v":"Identification de l'établissement partenaire"},{"$nulls":11},{"$f":"IF(OR(D12=ListesDeroulantes!B86,D12=ListesDeroulantes!C86,D12=\"\"),ListesDeroulantes!A75,\"\")","v":"Coût marginal"},{"$f":"IF(OR(D12=ListesDeroulantes!B86,D12=ListesDeroulantes!C86,D12=\"\"),ListesDeroulantes!B75,\"\")","v":"Coût marginal"},{"$f":"IF(OR(D12=ListesDeroulantes!B86,D12=ListesDeroulantes!C86,D12=\"\"),ListesDeroulantes!C75,\"\")","v":"Marginal cost"}]
[]
[{"$f":"ListesDeroulantes!A71","v":"Nom complet du partenaire"},{"$nulls":11},{"$f":"IF(OR(D7=\"\",D10=\"\",D11=\"\",D12=\"\",D16=\"\",D17=\"\",F10=\"\"),ListesDeroulantes!A189,\"\")","v":"Erreur : les données concernant l'établissement partenaire ne sont pas toutes renseignées."},{"$f":"IF(D16=\"\",ListesDeroulantes!A96,IF(OR(D16=ListesDeroulantes!B96,D16=ListesDeroulantes!C96),ListesDeroulantes!A96,(IF(LEFT(D16,9)=356000000,356000000,(IF(LEN(D16)=9,MOD(MID(D16,1,1)+IF(MID(D16,2,1)*2<10,MID(D16,2,1)*2,MID(D16,2,1)*2-9)+MID(D16,3,1)+IF(MID(D16,4,1)*2<10,MID(D16,4,1)*2,MID(D16,4,1)*2-9)+MID(D16,5,1)+IF(MID(D16,6,1)*2<10,MID(D16,6,1)*2,MID(D16,6,1)*2-9)+MID(D16,7,1)+IF(MID(D16,8,1)*2<10,MID(D16,8,1)*2,MID(D16,8,1)*2-9)+MID(D16,9,1),10)=0,IF(LEN(D16)=14,IF(MOD(IF(MID(D16,1,1)*2<10,MID(D16,1,1)*2,MID(D16,1,1)*2-9)+MID(D16,2,1)+IF(MID(D16,3,1)*2<10,MID(D16,3,1)*2,MID(D16,3,1)*2-9)+MID(D16,4,1)+IF(MID(D16,5,1)*2<10,MID(D16,5,1)*2,MID(D16,5,1)*2-9)+MID(D16,6,1)+IF(MID(D16,7,1)*2<10,MID(D16,7,1)*2,MID(D16,7,1)*2-9)+MID(D16,8,1)+IF(MID(D16,9,1)*2<10,MID(D16,9,1)*2,MID(D16,9,1)*2-9)+MID(D16,10,1)+IF(MID(D16,11,1)*2<10,MID(D16,11,1)*2,MID(D16,11,1)*2-9)+MID(D16,12,1)+IF(MID(D16,13,1)*2<10,MID(D16,13,1)*2,MID(D16,13,1)*2-9)+MID(D16,14,1),10)=0,D16,FALSE),FALSE)))))))","v":"Entreprise étrangère"}]
[{"$nulls":13},{"$f":"IF(AND(N7<>ListesDeroulantes!B96,N7<>ListesDeroulantes!C96),ListesDeroulantes!A96,\"\")","v":""}]
[]
[{"$f":"ListesDeroulantes!A72","v":"Sigle du partenaire "},{"$nulls":3},{"$f":"ListesDeroulantes!A73","v":"Base de calcul de l'assiette de l'aide "},{"$nulls":7},{"$f":"IF(F10=\"\",ListesDeroulantes!A$190,IF(AND(F12=\"\",F10<>O4,F10<>P4),ListesDeroulantes!A191,\"\"))","v":"Erreur : veuillez choisir au préalable la méthode de calcul de l'assiette de l'aide (coût marginal ou coûts complets)."}]
[{"$f":"ListesDeroulantes!A77","v":"Catégorie de partenaire"}]
[{"$f":"ListesDeroulantes!A80","v":"Forme juridique"},{"$nulls":4},{"$f":"IF(OR(D12=ListesDeroulantes!B86,D12=ListesDeroulantes!C86),ListesDeroulantes!A76,\"\")","v":""},{"$nulls":6},{"$f":"IF(OR(D11=ListesDeroulantes!B79,D11=ListesDeroulantes!C79),IF(COUNTIF(ListesDeroulantes!B81:C86,D12)>0,ListesDeroulantes!A192,\"\"),\"\")&IF(OR(D11=ListesDeroulantes!B78,D11=ListesDeroulantes!C78),IF(COUNTIF(ListesDeroulantes!B87:C91,D12)>0,ListesDeroulantes!A192,\"\"),\"\")","v":""},{"$f":"IF(OR(D$11=ListesDeroulantes!B$78,D$11=ListesDeroulantes!C$78),ListesDeroulantes!A81,IF(OR(D$11=ListesDeroulantes!B$79,D$11=ListesDeroulantes!C$79),ListesDeroulantes!A87,ListesDeroulantes!A81))","v":"EPST : Établissement public à caractère scientifique et technologique"}]
[{"$nulls":13},{"$f":"IF(OR(D$11=ListesDeroulantes!B$78,D$11=ListesDeroulantes!C$78),ListesDeroulantes!A82,IF(OR(D$11=ListesDeroulantes!B$79,D$11=ListesDeroulantes!C$79),ListesDeroulantes!A88,ListesDeroulantes!A82))","v":"EPIC : Établissement public à caractère industriel et commercial"}]
[{"$nulls":13},{"$f":"IF(OR(D$11=ListesDeroulantes!B$78,D$11=ListesDeroulantes!C$78),ListesDeroulantes!A83,IF(OR(D$11=ListesDeroulantes!B$79,D$11=ListesDeroulantes!C$79),ListesDeroulantes!A89,ListesDeroulantes!A83))","v":"Établissement de santé"}]
[{"$f":"ListesDeroulantes!A94","v":"N° de SIRET"},null,null,{"$f":"ListesDeroulantes!A95","v":"Saisir un n°SIRET de 14digits"},{"$f":"ListesDeroulantes!A92","v":"Catégorie de recherche R&D"},{"$f":"IF(Volet_general!D16<>\"\",Volet_general!D16,\"\")","v":""},{"$nulls":6},{"$f":"IF(F15=\"\",ListesDeroulantes!A198,\"\")","v":"Erreur : la catégorie de recherche R&D n'est pas renseignée. Merci de revenir au volet général pour le completer pour poursuivre."},{"$f":"IF(OR(D$11=ListesDeroulantes!B$78,D$11=ListesDeroulantes!C$78),ListesDeroulantes!A84,IF(OR(D$11=ListesDeroulantes!B$79,D$11=ListesDeroulantes!C$79),ListesDeroulantes!A90,ListesDeroulantes!A84))","v":"Fondation de recherche (FR)"}]
[{"$nulls":13},{"$f":"IF(OR(D$11=ListesDeroulantes!B$78,D$11=ListesDeroulantes!C$78),ListesDeroulantes!A85,IF(OR(D$11=ListesDeroulantes!B$79,D$11=ListesDeroulantes!C$79),ListesDeroulantes!A91,ListesDeroulantes!A85))","v":"Université"}]
[{"$f":"ListesDeroulantes!A97","v":"Assujetti à la TVA "},{"$nulls":12},{"$f":"IF(OR(D$11=ListesDeroulantes!B$78,D$11=ListesDeroulantes!C$78),ListesDeroulantes!A86,IF(OR(D$11=ListesDeroulantes!B$79,D$11=ListesDeroulantes!C$79),\" \",ListesDeroulantes!A86))","v":"Autre public"}]
[{"$nulls":13},{"$f":"IF(OR(D$11=ListesDeroulantes!B$78,D$11=ListesDeroulantes!C$78),\" \",IF(OR(D$11=ListesDeroulantes!B$79,D$11=ListesDeroulantes!C$79),\" \",ListesDeroulantes!A87))","v":"Micro PME\n(≤ 9 employés)"}]
[null,{"$f":"ListesDeroulantes!A100","v":"Personne habilitée à représenter juridiquement l'établissement partenaire (pour signature de la convention attributive d'aide ou de reversement)"},{"$nulls":11},{"$f":"IF(OR(D$11=ListesDeroulantes!B$78,D$11=ListesDeroulantes!C$78),\" \",IF(OR(D$11=ListesDeroulantes!B$79,D$11=ListesDeroulantes!C$79),\" \",ListesDeroulantes!A88))","v":"Petite PME\n(10 ≤ employés ≤ 50)"}]
[{"$nulls":13},{"$f":"IF(OR(D$11=ListesDeroulantes!B$78,D$11=ListesDeroulantes!C$78),\" \",IF(OR(D$11=ListesDeroulantes!B$79,D$11=ListesDeroulantes!C$79),\" \",ListesDeroulantes!A89))","v":"Moyenne PME\n(51 < employés ≤ 250)"}]
[{"$f":"ListesDeroulantes!A101","v":"Genre"},{"$nulls":11},{"$f":"IF(OR(D21=\"\",D22=\"\",D23=\"\",D24=\"\"),ListesDeroulantes!A202,\"\")","v":"Erreur : les données concernant la personne habilitée à engager le partenaire ne sont pas toutes renseignées."},{"$f":"IF(OR(D$11=ListesDeroulantes!B$78,D$11=ListesDeroulantes!C$78),\" \",IF(OR(D$11=ListesDeroulantes!B$79,D$11=ListesDeroulantes!C$79),\" \",ListesDeroulantes!A90))","v":"Entreprise autre que PME"}]
[{"$f":"ListesDeroulantes!A58","v":"Prénom"},{"$nulls":12},{"$f":"IF(OR(D$11=ListesDeroulantes!B$78,D$11=ListesDeroulantes!C$78),\" \",IF(OR(D$11=ListesDeroulantes!B$79,D$11=ListesDeroulantes!C$79),\" \",ListesDeroulantes!A91))","v":"Autre privé"}]
[{"$f":"ListesDeroulantes!A59","v":"Nom"}]
[{"$f":"ListesDeroulantes!A60","v":"Qualité"}]
[]
[null,{"$f":"ListesDeroulantes!A104","v":"Demande financière ANR détaillée du projet (montant HT en €, incluant la TVA non récupérable le cas échéant)"}]
[null,{"$f":"ListesDeroulantes!A105","v":"Equipements ou amortissement d'équipements de R&D (supérieur à 4 000 € HT)"}]
[]
[{"$nulls":4},{"$f":"ListesDeroulantes!A$106","v":"Descriptif"},{"$f":"ListesDeroulantes!A$107","v":"WP(s) ET tâche(s) concernés"},{"$f":"ListesDeroulantes!A$108","v":"Coût d'achat\n(en €)"},{"$f":"ListesDeroulantes!A$109","v":"Pourcentage d'utilisation (en %)"},{"$f":"ListesDeroulantes!A$110","v":"Coût total\n(en €)"},{"$f":"ListesDeroulantes!A$111","v":"Assiette de l'aide (en €) "},null,null,{"$f":"IF(F10=\"\",ListesDeroulantes!A199,\"\")","v":"Erreur : la méthode de calcul de l'assiette de l'aide (coût marginal ou coûts complets) n'est pas renseignée. Merci de remonter en haut de cet onglet pour faire ce choix au préalable."}]
[]
[]
[]
[null,{"$f":"B32+1","v":1},{"$nulls":6},{"$f":"IF(AND($F$10<>ListesDeroulantes!B$75,$F$10<>ListesDeroulantes!C$75,$F$10<>ListesDeroulantes!B$74,$F$10<>ListesDeroulantes!C$74),\"\",IF(OR($F$10=ListesDeroulantes!B$74,$F$10=ListesDeroulantes!C$74),IF(AND(G33<>0,H33<>0),G33*H33/100,\"\"),IF(ISNUMBER(G33),G33,\"\")))","v":""},{"$nulls":3},{"$f":"IF(AND(ISNUMBER(J33),ISNUMBER(I33)),IF(J33>I33,ListesDeroulantes!A$194,\"\"),IF(AND(ISNUMBER(J33),NOT(ISNUMBER(I33))),ListesDeroulantes!A$194,\"\"))","v":""}]
[null,{"$f":"B33+1","v":2},{"$nulls":6},{"$f":"IF(AND($F$10<>ListesDeroulantes!B$75,$F$10<>ListesDeroulantes!C$75,$F$10<>ListesDeroulantes!B$74,$F$10<>ListesDeroulantes!C$74),\"\",IF(OR($F$10=ListesDeroulantes!B$74,$F$10=ListesDeroulantes!C$74),IF(AND(G34<>0,H34<>0),G34*H34/100,\"\"),IF(ISNUMBER(G34),G34,\"\")))","v":""},{"$nulls":3},{"$f":"IF(AND(ISNUMBER(J34),ISNUMBER(I34)),IF(J34>I34,ListesDeroulantes!A$194,\"\"),IF(AND(ISNUMBER(J34),NOT(ISNUMBER(I34))),ListesDeroulantes!A$194,\"\"))","v":""}]
[null,{"$f":"B34+1","v":3},{"$nulls":6},{"$f":"IF(AND($F$10<>ListesDeroulantes!B$75,$F$10<>ListesDeroulantes!C$75,$F$10<>ListesDeroulantes!B$74,$F$10<>ListesDeroulantes!C$74),\"\",IF(OR($F$10=ListesDeroulantes!B$74,$F$10=ListesDeroulantes!C$74),IF(AND(G35<>0,H35<>0),G35*H35/100,\"\"),IF(ISNUMBER(G35),G35,\"\")))","v":""},{"$nulls":3},{"$f":"IF(AND(ISNUMBER(J35),ISNUMBER(I35)),IF(J35>I35,ListesDeroulantes!A$194,\"\"),IF(AND(ISNUMBER(J35),NOT(ISNUMBER(I35))),ListesDeroulantes!A$194,\"\"))","v":""}]
[{"$nulls":4},"Total",{"$nulls":3},{"$f":"IF(SUM(I33:I35)<>0,SUM(I33:I35),\"- €\")","v":"- €"},{"$f":"IF(SUM(J33:J35)<>0,SUM(J33:J35),\"- €\")","v":"- €"}]
[null,{"$f":"ListesDeroulantes!A112","v":"Personnels sans financement ANR (uniquement pour les partenaires organismes de recherche)"}]
[]
[null,null,{"$f":"ListesDeroulantes!A$113","v":"OR/ES/\nMixte"},{"$f":"ListesDeroulantes!A$117","v":"Catégorie de personnel"},{"$f":"ListesDeroulantes!A$124","v":"Descriptif et commentaires éventuels"},{"$f":"ListesDeroulantes!A$107","v":"WP(s) ET tâche(s) concernés"},{"$f":"ListesDeroulantes!A$125","v":"Coût mensuel (en €)"},{"$f":"ListesDeroulantes!A$126","v":"Personne. Mois"},{"$f":"ListesDeroulantes!A$110","v":"Coût total\n(en €)"}]
[]
[]
[null,{"$f":"B41+1","v":1},{"$nulls":6},{"$f":"IF(G42*H42<>0,G42*H42,\"\")","v":""},{"$nulls":3},{"$f":"IF(AND(OR(C42<>\"\",D42<>\"\",E42<>\"\",F42<>\"\",G42<>\"\",H42<>\"\"),COUNTIF(ListesDeroulantes!$B$74:$C$74,$F$10)>0),ListesDeroulantes!A$193,\"\")","v":""}]
[null,{"$f":"B42+1","v":2},{"$nulls":6},{"$f":"IF(G43*H43<>0,G43*H43,\"\")","v":""},{"$nulls":3},{"$f":"IF(AND(OR(C43<>\"\",D43<>\"\",E43<>\"\",F43<>\"\",G43<>\"\",H43<>\"\"),COUNTIF(ListesDeroulantes!$B$74:$C$74,$F$10)>0),ListesDeroulantes!A$193,\"\")","v":""}]
[null,{"$f":"B43+1","v":3},{"$nulls":6},{"$f":"IF(G44*H44<>0,G44*H44,\"\")","v":""},{"$nulls":3},{"$f":"IF(AND(OR(C44<>\"\",D44<>\"\",E44<>\"\",F44<>\"\",G44<>\"\",H44<>\"\"),COUNTIF(ListesDeroulantes!$B$74:$C$74,$F$10)>0),ListesDeroulantes!A$193,\"\")","v":""}]
[{"$nulls":4},"Total",null,null,{"$f":"IF(COUNTIF(ListesDeroulantes!$B$74:$C$74,$F$10)>0,\"-\",IF(SUM(H42:H44)<>0,SUM(H42:H44),\"-\"))","v":"-"},{"$f":"IF(COUNTIF(ListesDeroulantes!$B$74:$C$74,$F$10)>0,\"- €\",IF(SUM(I42:I44)<>0,SUM(I42:I44),\"- €\"))","v":"- €"}]
[null,{"$f":"ListesDeroulantes!A127","v":"Personnels avec financement ANR en contrat à durée déterminée"}]
[]
[null,null,{"$f":"ListesDeroulantes!A$113","v":"OR/ES/\nMixte"},{"$f":"ListesDeroulantes!A$117","v":"Catégorie de personnel"},{"$f":"ListesDeroulantes!A$124","v":"Descriptif et commentaires éventuels"},{"$f":"ListesDeroulantes!A$107","v":"WP(s) ET tâche(s) concernés"},{"$f":"ListesDeroulantes!A$125","v":"Coût mensuel (en €)"},{"$f":"ListesDeroulantes!A$126","v":"Personne. Mois"},{"$f":"ListesDeroulantes!A$110","v":"Coût total\n(en €)"},{"$f":"ListesDeroulantes!A$111","v":"Assiette de l'aide (en €) "},null,{"$f":"H39&\" financés\"","v":"Personne. Mois financés"}]
[]
[]
[null,{"$f":"B50+1","v":1},{"$nulls":6},{"$f":"IF(G51*H51<>0,G51*H51,\"\")","v":""},null,null,{"$f":"IF(AND(H51>0,I51<>0,J51>0),J51/I51*H51,\"\")","v":""},{"$f":"IF(AND(ISNUMBER(J51),ISNUMBER(I51)),IF(J51>I51,ListesDeroulantes!A$194,\"\"),IF(AND(ISNUMBER(J51),NOT(ISNUMBER(I51))),ListesDeroulantes!A$194,\"\"))","v":""}]
[null,{"$f":"B51+1","v":2},{"$nulls":6},{"$f":"IF(G52*H52<>0,G52*H52,\"\")","v":""},null,null,{"$f":"IF(AND(H52>0,I52<>0,J52>0),J52/I52*H52,\"\")","v":""},{"$f":"IF(AND(ISNUMBER(J52),ISNUMBER(I52)),IF(J52>I52,ListesDeroulantes!A$194,\"\"),IF(AND(ISNUMBER(J52),NOT(ISNUMBER(I52))),ListesDeroulantes!A$194,\"\"))","v":""}]
[null,{"$f":"B52+1","v":3},{"$nulls":6},{"$f":"IF(G53*H53<>0,G53*H53,\"\")","v":""},null,null,"",{"$f":"IF(AND(ISNUMBER(J53),ISNUMBER(I53)),IF(J53>I53,ListesDeroulantes!A$194,\"\"),IF(AND(ISNUMBER(J53),NOT(ISNUMBER(I53))),ListesDeroulantes!A$194,\"\"))","v":""}]
[{"$nulls":4},"Total",null,null,{"$f":"IF(SUM(H51:H53)<>0,SUM(H51:H53),\"-\")","v":"-"},{"$f":"IF(SUM(I51:I53)<>0,SUM(I51:I53),\"- €\")","v":"- €"},{"$f":"IF(SUM(J51:J53)<>0,SUM(J51:J53),\"- €\")","v":"- €"},null,{"$f":"IF(SUM(L51:L53)<>0,SUM(L51:L53),\"\")","v":""}]
[null,{"$f":"ListesDeroulantes!A139","v":"Personnels avec financement ANR en contrat à durée indéterminée"}]
[]
[null,null,{"$f":"ListesDeroulantes!A$113","v":"OR/ES/\nMixte"},{"$f":"ListesDeroulantes!A$117","v":"Catégorie de personnel"},{"$f":"ListesDeroulantes!A$124","v":"Descriptif et commentaires éventuels"},{"$f":"ListesDeroulantes!A$107","v":"WP(s) ET tâche(s) concernés"},{"$f":"ListesDeroulantes!A$125","v":"Coût mensuel (en €)"},{"$f":"ListesDeroulantes!A$126","v":"Personne. Mois"},{"$f":"ListesDeroulantes!A$110","v":"Coût total\n(en €)"},{"$f":"ListesDeroulantes!A$111","v":"Assiette de l'aide (en €) "},null,{"$f":"H48&\" financés\"","v":"Personne. Mois financés"}]
[]
[]
[null,{"$f":"B59+1","v":1},{"$nulls":6},{"$f":"IF(G60*H60<>0,G60*H60,\"\")","v":""},null,null,{"$f":"IF(AND(H60>0,I60<>0,J60>0),J60/I60*H60,\"\")","v":""},{"$f":"IF(AND(ISNUMBER(J60),ISNUMBER(I60)),IF(J60>I60,ListesDeroulantes!A$194,\"\"),IF(AND(ISNUMBER(J60),NOT(ISNUMBER(I60))),ListesDeroulantes!A$194,\"\"))","v":""}]
[null,{"$f":"B60+1","v":2},{"$nulls":6},{"$f":"IF(G61*H61<>0,G61*H61,\"\")","v":""},null,null,{"$f":"IF(AND(H61>0,I61<>0,J61>0),J61/I61*H61,\"\")","v":""},{"$f":"IF(AND(ISNUMBER(J61),ISNUMBER(I61)),IF(J61>I61,ListesDeroulantes!A$194,\"\"),IF(AND(ISNUMBER(J61),NOT(ISNUMBER(I61))),ListesDeroulantes!A$194,\"\"))","v":""}]
[null,{"$f":"B61+1","v":3},{"$nulls":6},{"$f":"IF(G62*H62<>0,G62*H62,\"\")","v":""},null,null,"",{"$f":"IF(AND(ISNUMBER(J62),ISNUMBER(I62)),IF(J62>I62,ListesDeroulantes!A$194,\"\"),IF(AND(ISNUMBER(J62),NOT(ISNUMBER(I62))),ListesDeroulantes!A$194,\"\"))","v":""}]
[{"$nulls":4},"Total",null,null,{"$f":"IF(SUM(H60:H62)<>0,SUM(H60:H62),\"-\")","v":"-"},{"$f":"IF(SUM(I60:I62)<>0,SUM(I60:I62),\"- €\")","v":"- €"},{"$f":"IF(SUM(J60:J62)<>0,SUM(J60:J62),\"- €\")","v":"- €"},null,{"$f":"IF(SUM(L60:L62)<>0,SUM(L60:L62),\"\")","v":""}]
[null,{"$f":"ListesDeroulantes!A140","v":"Prestations de service externes"}]
[]
[{"$nulls":4},{"$f":"ListesDeroulantes!A$106","v":"Descriptif"},{"$f":"ListesDeroulantes!A$107","v":"WP(s) ET tâche(s) concernés"},null,null,{"$f":"ListesDeroulantes!A$110","v":"Coût total\n(en €)"},{"$f":"ListesDeroulantes!A$111","v":"Assiette de l'aide (en €) "}]
[]
[]
[null,{"$f":"B68+1","v":1},{"$nulls":10},{"$f":"IF(AND(ISNUMBER(J69),ISNUMBER(I69)),IF(J69>I69,ListesDeroulantes!A$194,\"\"),IF(AND(ISNUMBER(J69),NOT(ISNUMBER(I69))),ListesDeroulantes!A$194,\"\"))","v":""}]
[null,{"$f":"B69+1","v":2},{"$nulls":10},{"$f":"IF(AND(ISNUMBER(J70),ISNUMBER(I70)),IF(J70>I70,ListesDeroulantes!A$194,\"\"),IF(AND(ISNUMBER(J70),NOT(ISNUMBER(I70))),ListesDeroulantes!A$194,\"\"))","v":""}]
[null,{"$f":"B70+1","v":3},{"$nulls":10},{"$f":"IF(AND(ISNUMBER(J71),ISNUMBER(I71)),IF(J71>I71,ListesDeroulantes!A$194,\"\"),IF(AND(ISNUMBER(J71),NOT(ISNUMBER(I71))),ListesDeroulantes!A$194,\"\"))","v":""}]
[{"$nulls":4},"Total",{"$nulls":3},{"$f":"IF(SUM(I69:I71)<>0,SUM(I69:I71),\"- €\")","v":"- €"},{"$f":"IF(SUM(J69:J71)<>0,SUM(J69:J71),\"- €\")","v":"- €"}]
[null,{"$f":"ListesDeroulantes!A141","v":"Missions"}]
[]
[{"$nulls":4},{"$f":"ListesDeroulantes!A$106","v":"Descriptif"},{"$f":"ListesDeroulantes!A$107","v":"WP(s) ET tâche(s) concernés"},null,null,{"$f":"ListesDeroulantes!A$110","v":"Coût total\n(en €)"},{"$f":"ListesDeroulantes!A$111","v":"Assiette de l'aide (en €) "}]
[]
[]
[null,{"$f":"B77+1","v":1},{"$nulls":10},{"$f":"IF(AND(ISNUMBER(J78),ISNUMBER(I78)),IF(J78>I78,ListesDeroulantes!A$194,\"\"),IF(AND(ISNUMBER(J78),NOT(ISNUMBER(I78))),ListesDeroulantes!A$194,\"\"))","v":""}]
[null,{"$f":"B78+1","v":2},{"$nulls":10},{"$f":"IF(AND(ISNUMBER(J79),ISNUMBER(I79)),IF(J79>I79,ListesDeroulantes!A$194,\"\"),IF(AND(ISNUMBER(J79),NOT(ISNUMBER(I79))),ListesDeroulantes!A$194,\"\"))","v":""}]
[null,{"$f":"B79+1","v":3},{"$nulls":10},{"$f":"IF(AND(ISNUMBER(J80),ISNUMBER(I80)),IF(J80>I80,ListesDeroulantes!A$194,\"\"),IF(AND(ISNUMBER(J80),NOT(ISNUMBER(I80))),ListesDeroulantes!A$194,\"\"))","v":""}]
[{"$nulls":4},"Total",{"$nulls":3},{"$f":"IF(SUM(I78:I80)<>0,SUM(I78:I80),\"- €\")","v":"- €"},{"$f":"IF(SUM(J78:J80)<>0,SUM(J78:J80),\"- €\")","v":"- €"}]
[null,{"$f":"ListesDeroulantes!A142","v":"Autres dépenses externes (consommables, petits matériels …)"}]
[]
[{"$nulls":4},{"$f":"ListesDeroulantes!A$106","v":"Descriptif"},{"$f":"ListesDeroulantes!A$107","v":"WP(s) ET tâche(s) concernés"},null,null,{"$f":"ListesDeroulantes!A$110","v":"Coût total\n(en €)"},{"$f":"ListesDeroulantes!A$111","v":"Assiette de l'aide (en €) "}]
[]
[]
[null,{"$f":"B86+1","v":1},{"$nulls":10},{"$f":"IF(AND(ISNUMBER(J87),ISNUMBER(I87)),IF(J87>I87,ListesDeroulantes!A$194,\"\"),IF(AND(ISNUMBER(J87),NOT(ISNUMBER(I87))),ListesDeroulantes!A$194,\"\"))","v":""}]
[null,{"$f":"B87+1","v":2},{"$nulls":10},{"$f":"IF(AND(ISNUMBER(J88),ISNUMBER(I88)),IF(J88>I88,ListesDeroulantes!A$194,\"\"),IF(AND(ISNUMBER(J88),NOT(ISNUMBER(I88))),ListesDeroulantes!A$194,\"\"))","v":""}]
[null,{"$f":"B88+1","v":3},{"$nulls":10},{"$f":"IF(AND(ISNUMBER(J89),ISNUMBER(I89)),IF(J89>I89,ListesDeroulantes!A$194,\"\"),IF(AND(ISNUMBER(J89),NOT(ISNUMBER(I89))),ListesDeroulantes!A$194,\"\"))","v":""}]
[{"$nulls":4},"Total",{"$nulls":3},{"$f":"IF(SUM(I87:I89)<>0,SUM(I87:I89),\"- €\")","v":"- €"},{"$f":"IF(SUM(J87:J89)<>0,SUM(J87:J89),\"- €\")","v":"- €"}]
[null,{"$f":"ListesDeroulantes!A143","v":"Autres dépenses justifiées par une procédure de facturation interne"}]
[]
[{"$nulls":4},{"$f":"ListesDeroulantes!A$106","v":"Descriptif"},{"$f":"ListesDeroulantes!A$107","v":"WP(s) ET tâche(s) concernés"},{"$f":"ListesDeroulantes!A144","v":"Coût unitaire (en €)"},{"$f":"ListesDeroulantes!A145","v":"Nombre"},{"$f":"ListesDeroulantes!A$110","v":"Coût total\n(en €)"},{"$f":"ListesDeroulantes!A$111","v":"Assiette de l'aide (en €) "}]
[]
[]
[null,{"$f":"B95+1","v":1},{"$nulls":6},{"$f":"IF(G96*H96<>0,G96*H96,\"\")","v":""},{"$nulls":3},{"$f":"IF(AND(ISNUMBER(J96),ISNUMBER(I96)),IF(J96>I96,ListesDeroulantes!A$194,\"\"),IF(AND(ISNUMBER(J96),NOT(ISNUMBER(I96))),ListesDeroulantes!A$194,\"\"))","v":""}]
[null,{"$f":"B96+1","v":2},{"$nulls":6},{"$f":"IF(G97*H97<>0,G97*H97,\"\")","v":""},{"$nulls":3},{"$f":"IF(AND(ISNUMBER(J97),ISNUMBER(I97)),IF(J97>I97,ListesDeroulantes!A$194,\"\"),IF(AND(ISNUMBER(J97),NOT(ISNUMBER(I97))),ListesDeroulantes!A$194,\"\"))","v":""}]
[null,{"$f":"B97+1","v":3},{"$nulls":6},{"$f":"IF(G98*H98<>0,G98*H98,\"\")","v":""},{"$nulls":3},{"$f":"IF(AND(ISNUMBER(J98),ISNUMBER(I98)),IF(J98>I98,ListesDeroulantes!A$194,\"\"),IF(AND(ISNUMBER(J98),NOT(ISNUMBER(I98))),ListesDeroulantes!A$194,\"\"))","v":""}]
[{"$nulls":4},"Total",{"$nulls":3},{"$f":"IF(SUM(I96:I98)<>0,SUM(I96:I98),\"- €\")","v":"- €"},{"$f":"IF(SUM(J96:J98)<>0,SUM(J96:J98),\"- €\")","v":"- €"}]
[null,{"$f":"IF(OR($F$10=ListesDeroulantes!$B$75,$F$10=ListesDeroulantes!$C$75),ListesDeroulantes!A149,IF(OR($F$10=ListesDeroulantes!$B$74,$F$10=ListesDeroulantes!$C$74),ListesDeroulantes!A152,ListesDeroulantes!A146))","v":"Veuillez choisir la base de calcul pour l'assiette de l'aide au préalable."},{"$nulls":10},{"$f":"IF(F10=\"\",ListesDeroulantes!A199,\"\")","v":"Erreur : la méthode de calcul de l'assiette de l'aide (coût marginal ou coûts complets) n'est pas renseignée. Merci de remonter en haut de cet onglet pour faire ce choix au préalable."}]
[]
[{"$nulls":4},{"$f":"ListesDeroulantes!A106","v":"Descriptif"},null,{"$f":"ListesDeroulantes!A148","v":"Taux (en %)"},null,{"$f":"ListesDeroulantes!A110","v":"Coût total\n(en €)"},{"$f":"ListesDeroulantes!A111","v":"Assiette de l'aide (en €) "}]
[]
[]
[{"$f":"IF(OR($F$10=ListesDeroulantes!$B$75,F$10=ListesDeroulantes!$C$75),100,IF(OR($F$10=ListesDeroulantes!$B$74,F$10=ListesDeroulantes!$C$74),68,0))","v":0},{"$f":"B104+1","v":1},null,null,{"$f":"IF(OR($F$10=ListesDeroulantes!$B$75,F$10=ListesDeroulantes!$C$75),ListesDeroulantes!A150,IF(OR($F$10=ListesDeroulantes!$B$74,F$10=ListesDeroulantes!$C$74),ListesDeroulantes!A154,\"\"))","v":""},{"$nulls":3},{"$f":"IF(OR($F$10=ListesDeroulantes!$B$75,F$10=ListesDeroulantes!$C$75),IF(ISNUMBER(G105),MIN(A105,G105)*SUM(I45,I54,I63)/100,\"- €\"),IF(OR($F$10=ListesDeroulantes!$B$74,F$10=ListesDeroulantes!$C$74),IF(ISNUMBER($G105),MIN(A105,G105)*SUM(I45,I54,I63)/100,\"\"),\"- €\"))","v":"- €"},{"$f":"IF(OR($F$10=ListesDeroulantes!$B$75,F$10=ListesDeroulantes!$C$75),\"- €\",IF(OR($F$10=ListesDeroulantes!$B$74,F$10=ListesDeroulantes!$C$74),IF(ISNUMBER($G105),MIN(A105,G105)*SUM(J45,J54,J63)/100,\"- €\"),\"- €\"))","v":"- €"},null,null,{"$f":"IF(ISNUMBER(G105),IF(G105>A105,ListesDeroulantes!B$195&A105,\"\"),ListesDeroulantes!A196)","v":"Erreur : le taux n'est pas renseigné."}]
[]
[{"$f":"IF(OR($F$10=ListesDeroulantes!$B$75,F$10=ListesDeroulantes!$C$75),20,IF(OR($F$10=ListesDeroulantes!$B$74,F$10=ListesDeroulantes!$C$74),7,0))","v":0},{"$f":"B105+1","v":2},null,null,{"$f":"IF(OR($F$10=ListesDeroulantes!$B$75,F$10=ListesDeroulantes!$C$75),ListesDeroulantes!A151,IF(OR($F$10=ListesDeroulantes!$B$74,F$10=ListesDeroulantes!$C$74),ListesDeroulantes!A155,\"\"))","v":""},{"$nulls":3},{"$f":"IF(OR($F$10=ListesDeroulantes!$B$75,F$10=ListesDeroulantes!$C$75),\"- €\",IF(OR($F$10=ListesDeroulantes!$B$74,F$10=ListesDeroulantes!$C$74),IF(ISNUMBER($G107),MIN(A107,G107)/100*SUM(I90,I81,I72,I36),\"- €\"),\"- €\"))","v":"- €"},{"$f":"IF(OR($F$10=ListesDeroulantes!$B$75,F$10=ListesDeroulantes!$C$75),IF(ISNUMBER($G107),MIN(A107,G107)/100*SUM(J99,J90,J81,J72,J63,J54,J36),\"- €\"),IF(OR($F$10=ListesDeroulantes!$B$74,F$10=ListesDeroulantes!$C$74),IF(ISNUMBER($G107),MIN(A107,G107)/100*SUM(J90,J81,J72,J36),\"- €\"),\"- €\"))","v":"- €"},null,null,{"$f":"IF(ISNUMBER(G107),IF(G107>A107,ListesDeroulantes!B$195&A107,\"\"),ListesDeroulantes!A196)","v":"Erreur : le taux n'est pas renseigné."}]
[]
[{"$nulls":4},"Total",{"$nulls":3},{"$f":"IF(SUM(I105:I108)<>0,SUM(I105:I108),\"- €\")","v":"- €"},{"$f":"IF(SUM(J105:J108)<>0,SUM(J105:J108),\"- €\")","v":"- €"}]
[]
[]
[{"$nulls":4},{"$f":"ListesDeroulantes!A156","v":"Coût complet, du projet (en €)"},null,{"$f":"IF(SUM(I109,I99,I90,I81,I72,I63,I54,I45,I36)+IF(AND(OR(F10=ListesDeroulantes!B75,F10=ListesDeroulantes!C75),ISNUMBER(J107)),J107,0)<>0,SUM(I109,I99,I90,I81,I72,I63,I54,I45,I36)+IF(AND(OR(F10=ListesDeroulantes!B75,F10=ListesDeroulantes!C75),ISNUMBER(J107)),J107,0),\"- €\")","v":"- €"}]
[]
[{"$nulls":4},{"$f":"ListesDeroulantes!A157","v":"Total coûts éligibles pour le calcul de l'aide : Total assiette de l'aide (en €)"},{"$nulls":3},{"$f":"IF(SUM(J36,J54,J63,J72,J81,J90,J99,J109)<>0,SUM(J36,J54,J63,J72,J81,J90,J99,J109),\"- €\")","v":"- €"}]
[]
[{"$nulls":3},{"$f":"IF(OR(F10=ListesDeroulantes!B75,F10=ListesDeroulantes!C75),100,IF(OR(F10=ListesDeroulantes!B74,F10=ListesDeroulantes!C74),50,0))","v":0},{"$f":"ListesDeroulantes!A159&IF(F10=ListesDeroulantes!A74,CHAR(10)&ListesDeroulantes!A161,\"\")&IF(F10=ListesDeroulantes!A75,CHAR(10)&ListesDeroulantes!A162,\"\")","v":"Taux d'aide demandé (%)"},{"$nulls":7},{"$f":"IF(ISNUMBER(I116),\"\",ListesDeroulantes!A196)","v":"Erreur : le taux n'est pas renseigné."}]
[]
[{"$nulls":4},{"$f":"ListesDeroulantes!A163","v":"Aide demandée (en €)"},{"$nulls":3},{"$f":"IF(AND(ISNUMBER(I114),ISNUMBER(I116)),I114*I116/100,\"- €\")","v":"- €"}]
[]
[]
[null,{"$f":"ListesDeroulantes!A164","v":"Participations au projet et autres soutiens financiers (sollicités ou obtenus par le partenaire pour le projet)"}]
[null,{"$f":"ListesDeroulantes!A165","v":"Préciser les mises à disposition de locaux, équipements, personnels, etc. pour le projet et, le cas échéant, indiquer le(s) WP(s) et la(les) tâche(s) concernées"}]
[]
[null,{"$f":"ListesDeroulantes!A166","v":"Identification des financeurs (nom, adresse) (Obligatoire)"},null,null,{"$f":"ListesDeroulantes!A167","v":"Nature et objet du financement et, le cas échéant, WP(s) et tâche(s) concernés"},{"$f":"ListesDeroulantes!A168","v":"Montant sollicité"},null,{"$f":"ListesDeroulantes!A169","v":"Montant obtenu"},null,{"$f":"ListesDeroulantes!A170","v":"Date effective ou prévue du co-financement"}]
{"$rows_empty":7}
[{"$nulls":4},"Total",{"$f":"IF(SUM(F129:G131)<>0,SUM(F129:G131),\"- €\")","v":"- €"},null,{"$f":"IF(SUM(H129:I131)<>0,SUM(H129:I131),\"- €\")","v":"- €"}]
[]
[null,{"$f":"ListesDeroulantes!A171","v":"Publication d'informations relatives au projet"}]
[]
[null,{"$f":"ListesDeroulantes!A172","v":"Si le projet est retenu pour financement, l'ANR se réserve la possibilité de rendre publiques les informations suivantes : nom du correpondant scientifique et technique et adresse électronique, dénominations des partenaires qu'ils soient des entreprises ou qu'ils appartiennent à un organisme de recherche.\r\nToutefois, pour un projet de recherche partenariale organisme de recherche / entreprise retenu pour financement, l'ANR ne rendra pas publiques les informations sur les personnes ou les partenaires qui en auront fait le demande."}]
[]
[]
[]
[]
[null,{"$f":"ListesDeroulantes!A173","v":"En cas de refus de publication d'un ou de plusieurs de ces éléments, remplacer ci-dessous la mention \"Oui\" par \"Non\" : "}]
[null,{"$f":"ListesDeroulantes!A176","v":"Nom et prénom du correspondant scientifique :"},{"$nulls":5},{"$f":"ListesDeroulantes!A$174","v":"Oui"}]
[null,{"$f":"ListesDeroulantes!A177","v":"Adresse électronique du correspondant scientifique : "},{"$nulls":5},{"$f":"ListesDeroulantes!A$174","v":"Oui"}]
[null,{"$f":"ListesDeroulantes!A178","v":"Dénomination du partenaire (si \"Non\", celle-ci sera remplacée par la mention générique \"Entreprise\" ou \"Organisme de recherche\") : "},{"$nulls":5},{"$f":"ListesDeroulantes!A$174","v":"Oui"}]
[]
[null,{"$f":"ListesDeroulantes!A179","v":"Nota : en déposant un projet, les partenaires ont accepté que l'ANR publie l'acronyme, le titre, le résumé, l'aide accordée au projet, la date de début de projet et la durée."}]
[]
[null,{"$f":"ListesDeroulantes!A180","v":"Commentaires (le cas échéant)"}]
[]
[]
[]
[]
[]
[]
[null,{"$f":"ListesDeroulantes!A181","v":"Les informations personnelles transmises dans ces documents sont obligatoires et seront conservées en fichiers par l'ANR pour assurer la conduite opérationnelle de l'évaluation et l'administration des dossiers.\nConformément à la loi n° 78-17 du 6 janvier 1978 modifiée, relative à l'Informatique, aux Fichiers et aux Libertés, les personnes concernées disposent d'un droit d'accès et de rectification des données personnelles les concernant. Les personnes concernées peuvent exercer ce droit en s'adressant à l'ANR (voir coordonnées dans le texte de l’appel à projets)."}]
[]
[]
[]
[null,{"$f":"ListesDeroulantes!A182","v":"Engagement de l'établissement partenaire (les signatures sont à apposer obligatoirement sur le document papier) "}]
[]
["Lettre d’engagement / Commitment letter"]
[]
["Le présent engagement est à compléter, signer, viser par la personne habilitée à engager l’Etablissement Coordinateur ou l’Etablissement Partenaire impliqué  et à scanner/déposer avant le 13 avril 2023 à 11 heures (heure de Paris), sur le site de soumission ",{"$nulls":4},"This present commitment letter must be filled in, signed and stamped by a legal representative of the Leading Institution or Partner Institution1 and scanned/uploaded by  April, 13th 2023 at 11h (Paris time) on the submission website:"]
[]
["LIEN DU SITE DE SOUMISSION"]
["https://france2030.agencerecherche.fr/RHU-V6"]
[]
["Ayant le pouvoir d'engager juridiquement l'établissement ci-dessus, je déclare :",{"$nulls":4},"Having the authority to legally bind the abovementioned Partner Institution:"]
["▪ avoir pris connaissance du dossier complet de soumission (document scientifique, y compris son annexe, et document administratif et financier) tel que déposé sur le site de l’ANR et du règlement relatif aux modalités d'attribution des aides au titre de l’appel à projets « Recherche Hospitalo-Universitaire en santé » - RHU 6   ;",{"$nulls":4},"▪ I declare having taken notice of the complete project application (the scientific document, including its appendix, and the administrative and financial document) as submitted on the ANR website, as well as of the funding modalities relative to the call « Recherche Hospitalo-Universitaire en santé » - RHU ;"]
["▪ m'engager à négocier et signer un accord de consortium (ou équivalent) et mettre en œuvre tous les moyens nécessaires pour finaliser ce document dans les conditions et délais prévus par le règlement relatif aux modalités d'attribution des aides précité ;",{"$nulls":4},"▪ I commit to negotiate and sign the consortium agreement (or equivalent), and to meet all the necessary requirements to finalise this document within the expected conditions and delays;"]
["▪ m'engager à mettre en œuvre tous les moyens nécessaires à la réalisation du projet tels que décrits dans le dossier de soumission, dans les conditions prévues par le règlement relatif aux modalités d'attribution des aides précité;",{"$nulls":4},"▪ I commit to provide all necessary means to ensure the realization of the project as described in the submitted application and according to the conditions of the call;"]
["▪ m'engager à respecter les engagements financiers tels que détaillés dans le document administratif et financier du document de soumission déposé;",{"$nulls":4},"▪ I commit to meet the financial commitments as detailed in the administrative and financial document of the uploaded submission document;"]
["▪ m’engager à mettre en œuvre les recrutements sur contrat des personnels nécessaires à la réalisation de la proposition déposée et cela en conformité avec tous les lois et règlements en vigueur applicables ; à mettre à disposition des personnels engagés dans la réalisation du projet les surfaces de travail nécessaires à l’accomplissement de leurs missions pendant la durée du projet;",{"$nulls":4},"▪ I commit to implement all fixed-term employment contracts necessary to the execution of the project, in accordance with all applicable laws and regulations, and to ensure the ability to provide the space needed to carry out their duties;"]
["▪ souscrire aux obligations qui découlent du financement du projet par l’ANR, notamment à des fins d'évaluation globale de l'action;",{"$nulls":4},"▪ I certify to be able to comply with all the obligations resulting from the funding of the project by ANR, in particular for evaluation purposes;"]
["▪ que le projet ne cause pas un préjudice important du point de vue de l’environnement (application du principe DNSH – Do No Significant Harm ou « absence de préjudice important ») au sens de l’article 17 du règlement européen sur la taxonomie.\n",{"$nulls":4},"▪ that the project does not cause significant harm to the environment (application of the DNSH principle - Do No Significant Harm) within the meaning of Article 17 of the European Taxonomy Regulation.\n"]
[{"$f":"IF(F10=\"Coût complet\", \"▪ m’engager à ne pas avoir initié de travaux liés au projet déposé.\", \"\")","v":""},{"$nulls":4},{"$f":"IF(F10=\"Coût complet\", \"▪ I commit not to have initiated any work related to the submitted project.\", \"\")","v":""}]
[]
[null,{"$f":"ListesDeroulantes!A183","v":"Correspondant scientifique et technique"},{"$nulls":3},{"$f":"ListesDeroulantes!A184","v":"Personne habilitée à engager l'établissement partenaire (EP)"}]
[]
[null,{"$f":"ListesDeroulantes!A58","v":"Prénom"},null,{"$f":"ListesDeroulantes!A59","v":"Nom"},null,{"$f":"ListesDeroulantes!A58","v":"Prénom"},null,{"$f":"ListesDeroulantes!A59","v":"Nom"},{"$nulls":4},{"$f":"IF(OR(B181=\"\",D181=\"\"),ListesDeroulantes!A201,\"\")","v":"Erreur : les données concernant le correspondant scientifique et technique ne sont pas toutes renseignées."}]
[{"$nulls":5},{"$f":"IF(D22<>\"\",D22,\"\")","v":""},null,{"$f":"IF(D23<>\"\",D23,\"\")","v":""}]
[{"$nulls":5},{"$f":"ListesDeroulantes!A60","v":"Qualité"}]
[null,"Signature",{"$nulls":3},{"$f":"IF(D24<>\"\",D24,\"\")","v":""}]
[]
[{"$nulls":5},"Signature & Visa"]

{"sheet":"ListesDeroulantes","index":7,"n_rows":204,"n_cols":4,"rows_kept":204,"hidden":true,"merged":[[0,0,0,2]]}
["Traductions"]
["Trad","Fr","Uk"]
["Onglet Volet général"]
[{"$f":"IF(Volet_general!$N$5=\"En\",ListesDeroulantes!C4,ListesDeroulantes!B4)","v":"Appel à projets RHU"},"Appel à projets RHU","Call for projects RHU"]
[{"$f":"IF(Volet_general!$N$5=\"En\",ListesDeroulantes!C5,ListesDeroulantes!B5)","v":"Réservé à l'organisme gestionnaire du programme"},"Réservé à l'organisme gestionnaire du programme","Reserved for the programme management organization"]
[{"$f":"IF(Volet_general!$N$5=\"En\",ListesDeroulantes!C6,ListesDeroulantes!B6)","v":"N° de partenaire"},"N° de partenaire","Partner nb."]
[{"$f":"IF(Volet_general!$N$5=\"En\",ListesDeroulantes!C7,ListesDeroulantes!B7)","v":"Acronyme"},"Acronyme","Acronym"]
[{"$f":"IF(Volet_general!$N$5=\"En\",ListesDeroulantes!C8,ListesDeroulantes!B8)","v":"Nb de partenaires"},"Nb de partenaires","Number of partners"]
[{"$f":"IF(Volet_general!$N$5=\"En\",ListesDeroulantes!C9,ListesDeroulantes!B9)","v":"Choisir une langue : Fr ou En ?"},"Choisir une langue : Fr ou En ?","Choose a language : Fr or En ?"]
[{"$f":"IF(Volet_general!$N$5=\"En\",ListesDeroulantes!C10,ListesDeroulantes!B10)","v":"Fr"},"Fr","Fr"]
[{"$f":"IF(Volet_general!$N$5=\"En\",ListesDeroulantes!C11,ListesDeroulantes!B11)","v":"En"},"En","En"]
[{"$f":"IF(Volet_general!$N$5=\"En\",ListesDeroulantes!C12,ListesDeroulantes!B12)","v":"Document administratif et financier"},"Document administratif et financier","Adminstrative and financial document"]
[{"$f":"IF(Volet_general!$N$5=\"En\",ListesDeroulantes!C13,ListesDeroulantes!B13)","v":"Volet général"},"Volet général","General section"]
[{"$f":"IF(Volet_general!$N$5=\"En\",ListesDeroulantes!C14,ListesDeroulantes!B14)","v":"Fiche d'identité du projet"},"Fiche d'identité du projet","Identity form of the proposal"]
[{"$f":"IF(Volet_general!$N$5=\"En\",ListesDeroulantes!C15,ListesDeroulantes!B15)","v":"Acronyme du projet"},"Acronyme du projet","Project's acronym"]
[{"$f":"IF(Volet_general!$N$5=\"En\",ListesDeroulantes!C16,ListesDeroulantes!B16)","v":"Titre du projet"},"Titre du projet","Proposal's title"]
[{"$f":"IF(Volet_general!$N$5=\"En\",ListesDeroulantes!C17,ListesDeroulantes!B17)","v":"en francais"},"en francais","in French"]
[{"$f":"IF(Volet_general!$N$5=\"En\",ListesDeroulantes!C18,ListesDeroulantes!B18)","v":"en anglais"},"en anglais","in English"]
[{"$f":"IF(Volet_general!$N$5=\"En\",ListesDeroulantes!C19,ListesDeroulantes!B19)","v":"Catégorie de recherche R&D"},"Catégorie de recherche R&D","R&D category"]
[{"$f":"IF(Volet_general!$N$5=\"En\",ListesDeroulantes!C20,ListesDeroulantes!B20)","v":"Recherche fondamentale"},"Recherche fondamentale","Basic research"]
[{"$f":"IF(Volet_general!$N$5=\"En\",ListesDeroulantes!C21,ListesDeroulantes!B21)","v":"Recherche industrielle"},"Recherche industrielle","Industrial research"]
[{"$f":"IF(Volet_general!$N$5=\"En\",ListesDeroulantes!C22,ListesDeroulantes!B22)","v":"Développement expérimental"},"Développement expérimental","Experimental development"]
[{"$f":"IF(Volet_general!$N$5=\"En\",ListesDeroulantes!C23,ListesDeroulantes!B23)","v":"Durée du projet (en mois)"},"Durée du projet (en mois)","Lenght of the porposal (in Months)"]
[{"$f":"IF(Volet_general!$N$5=\"En\",ListesDeroulantes!C24,ListesDeroulantes!B24)","v":"Date de démarrage souhaitée"},"Date de démarrage souhaitée","Desired proposal's starting date"]
[{"$f":"IF(Volet_general!$N$5=\"En\",ListesDeroulantes!C25,ListesDeroulantes!B25)","v":"Type structure coordinatrice"},"Type structure coordinatrice","Type of the coordinating structure","modification coordinator/coordinating"]
[{"$f":"IF(Volet_general!$N$5=\"En\",ListesDeroulantes!C26,ListesDeroulantes!B26)","v":"DHU"},"DHU","DHU"]
[{"$f":"IF(Volet_general!$N$5=\"En\",ListesDeroulantes!C27,ListesDeroulantes!B27)","v":"FHU"},"FHU","FHU"]
[{"$f":"IF(Volet_general!$N$5=\"En\",ListesDeroulantes!C28,ListesDeroulantes!B28)","v":"Acronyme de la structure coordinatrice"},"Acronyme de la structure coordinatrice","Acronym of the coordinator structure"]
[{"$f":"IF(Volet_general!$N$5=\"En\",ListesDeroulantes!C29,ListesDeroulantes!B29)","v":"Récapitulatif des demandes financières des partenaires"},"Récapitulatif des demandes financières des partenaires","Summary of partners' financial requests"]
[{"$f":"IF(Volet_general!$N$5=\"En\",ListesDeroulantes!C30,ListesDeroulantes!B30)","v":"Mode de calcul des coûts"},"Mode de calcul des coûts","Costs calculation method"]
[{"$f":"IF(Volet_general!$N$5=\"En\",ListesDeroulantes!C31,ListesDeroulantes!B31)","v":"Etablissement partenaire"},"Etablissement partenaire","Partner institution"]
[{"$f":"IF(Volet_general!$N$5=\"En\",ListesDeroulantes!C32,ListesDeroulantes!B32)","v":"Coût complet\n(en €)"},{"$f":"\"Coût complet\"&CHAR(10)&\"(en €)\"","v":"Coût complet\n(en €)"},{"$f":"\"Full cost\"&CHAR(10)&\"(in €)\"","v":"Full cost\n(in €)"}]
[{"$f":"IF(Volet_general!$N$5=\"En\",ListesDeroulantes!C33,ListesDeroulantes!B33)","v":"Ratio Coût complet/\nAide demandée"},"Ratio Coût complet/\nAide demandée","Rate Full cost/\nRequested funding"]
[{"$f":"IF(Volet_general!$N$5=\"En\",ListesDeroulantes!C34,ListesDeroulantes!B34)","v":"Aide demandée\n(en €)"},{"$f":"\"Aide demandée\"&CHAR(10)&\"(en €)\"","v":"Aide demandée\n(en €)"},{"$f":"\"Requested funding\"&CHAR(10)&\"(in €)\"","v":"Requested funding\n(in €)"}]
[{"$f":"IF(Volet_general!$N$5=\"En\",ListesDeroulantes!C35,ListesDeroulantes!B35)","v":"Apports\n(en €)"},{"$f":"\"Apports\"&CHAR(10)&\"(en €)\"","v":"Apports\n(en €)"},{"$f":"\"Contributions\"&CHAR(10)&\"(in €)\"","v":"Contributions\n(in €)"}]
[{"$f":"IF(Volet_general!$N$5=\"En\",ListesDeroulantes!C36,ListesDeroulantes!B36)","v":"Apports au-delà du taux d'aide max (€)"},"Apports au-delà du taux d'aide max (€)","Contributions beyond the maximum Requested funding rate (€)"]
[{"$f":"IF(Volet_general!$N$5=\"En\",ListesDeroulantes!C37,ListesDeroulantes!B37)","v":"Personnel hors financement demandé (personne.mois)"},"Personnel hors financement demandé (personne.mois)","Staff not funded on requested grant (man-months)"]
[{"$f":"IF(Volet_general!$N$5=\"En\",ListesDeroulantes!C38,ListesDeroulantes!B38)","v":"Apport\nAutre personnel  (personne.mois)"},"Apport\nAutre personnel  (personne.mois)","Contribution\nother staff (man-months)"]
[{"$f":"IF(Volet_general!$N$5=\"En\",ListesDeroulantes!C39,ListesDeroulantes!B39)","v":"Budget total\nPersonnel hors financement demandé (€)"},"Budget total\nPersonnel hors financement demandé (€)","Total funding\nStaff not funded on requested grant (€)"]
[{"$f":"IF(Volet_general!$N$5=\"En\",ListesDeroulantes!C40,ListesDeroulantes!B40)","v":"Apport\nAutre personnel  (€)"},"Apport\nAutre personnel  (€)","Contribution\nOther staff (€)"]
[{"$f":"IF(Volet_general!$N$5=\"En\",ListesDeroulantes!C41,ListesDeroulantes!B41)","v":"Personnel financé CDD & CDI (personne.mois)"},"Personnel financé CDD & CDI (personne.mois)","Fixed-term & permanent employees (man-months)"]
[{"$f":"IF(Volet_general!$N$5=\"En\",ListesDeroulantes!C42,ListesDeroulantes!B42)","v":"Budget total\nPersonnel AVEC financement demandé (€)"},"Budget total\nPersonnel AVEC financement demandé (€)","Total funding\nStaff funded on requested grant (€)"]
[{"$f":"IF(Volet_general!$N$5=\"En\",ListesDeroulantes!C43,ListesDeroulantes!B43)","v":"Apport Personnel\nCDD & CDI (€)"},"Apport Personnel\nCDD & CDI (€)","Contributions Fixed-term & permanent employees (€)"]
[{"$f":"IF(Volet_general!$N$5=\"En\",ListesDeroulantes!C44,ListesDeroulantes!B44)","v":"Cofinancements & participations\n(en €)"},{"$f":"\"Cofinancements & participations\"&CHAR(10)&\"(en €)\"","v":"Cofinancements & participations\n(en €)"},{"$f":"\"Cofundings & other participations\"&CHAR(10)&\"(in €)\"","v":"Cofundings & other participations\n(in €)"}]
[{"$f":"IF(Volet_general!$N$5=\"En\",ListesDeroulantes!C45,ListesDeroulantes!B45)","v":"Budget total\nEquipements ou amortissement d'équipements de R&D (supérieur à 4 000 € HT)"},"Budget total\nEquipements ou amortissement d'équipements de R&D (supérieur à 4 000 € HT)","Total funding\nR&D equipment expenditures or depreciations (over € 4,000 excluding VAT)"]
[{"$f":"IF(Volet_general!$N$5=\"En\",ListesDeroulantes!C46,ListesDeroulantes!B46)","v":"Part1 (Coord.)"},"Part1 (Coord.)","Part1 (Leader)"]
[{"$f":"IF(Volet_general!$N$5=\"En\",ListesDeroulantes!C47,ListesDeroulantes!B47)","v":"Part2"},"Part2","Part2"]
["Part3","Part3","Part3"]
[{"$f":"IF(Volet_general!$N$5=\"En\",ListesDeroulantes!C49,ListesDeroulantes!B49)","v":"Totaux"},"Totaux","Totals"]
[{"$f":"IF(Volet_general!$N$5=\"En\",ListesDeroulantes!C50,ListesDeroulantes!B50)","v":"Coût complet du projet (en k€)"},"Coût complet du projet (en k€)","Full cost of the project (in k€)"]
[{"$f":"IF(Volet_general!$N$5=\"En\",ListesDeroulantes!C51,ListesDeroulantes!B51)","v":"Aide totale demandée (en k€)"},"Aide totale demandée (en k€)","Total requested funding (in k€)"]
[{"$f":"IF(Volet_general!$N$5=\"En\",ListesDeroulantes!C52,ListesDeroulantes!B52)","v":"Sigle de l'établissement partenaire"},"Sigle de l'établissement partenaire","Acronym's partner institution"]
[{"$f":"IF(Volet_general!$N$5=\"En\",ListesDeroulantes!C53,ListesDeroulantes!B53)","v":"Nom complet de l'établissement partenaire"},"Nom complet de l'établissement partenaire","Full name of the partner institution - "]
[{"$f":"IF(Volet_general!$N$5=\"En\",ListesDeroulantes!C54,ListesDeroulantes!B54)","v":"NOTA : Toutes les champs de cet onglet \"Volet général\" doivent être renseignés.\nIls seront utilisés par les membres du jury au cours du processus de sélection."},"NOTA : Toutes les champs de cet onglet \"Volet général\" doivent être renseignés.\nIls seront utilisés par les membres du jury au cours du processus de sélection.","NOTE: All fields on this tab \"General Section\" must be completed.\nThey will be used by the jury during the selection process."]
[{"$f":"IF(Volet_general!$N$5=\"En\",ListesDeroulantes!C55,ListesDeroulantes!B55)","v":"Remarque : toutes les informations figurant ci-dessus ont vocation à être publiées si le projet est financé.\nEn déposant un dossier, les partenaires ont accepté la publication de toutes ces informations."},"Remarque : toutes les informations figurant ci-dessus ont vocation à être publiées si le projet est financé.\nEn déposant un dossier, les partenaires ont accepté la publication de toutes ces informations.","Note: All information listed above are intended to be public if the project is funded.\nBy submitting a project, the partners agreed to the publication of all this information."]
[{"$f":"IF(Volet_general!$N$5=\"En\",ListesDeroulantes!C56,ListesDeroulantes!B56)","v":"Responsable scientifique et technique (RST)"},"Responsable scientifique et technique (RST)","Scientific and technical coordinator (PI)","modification Scienitific coordinator/Scientific and technical manager"]
[{"$f":"IF(Volet_general!$N$5=\"En\",ListesDeroulantes!C57,ListesDeroulantes!B57)","v":"Personne habilitée à engager l'établissement coordinateur (EC)"},"Personne habilitée à engager l'établissement coordinateur (EC)","Person authorized to act on behalf of the coordinating institution"]
[{"$f":"IF(Volet_general!$N$5=\"En\",ListesDeroulantes!C58,ListesDeroulantes!B58)","v":"Prénom"},"Prénom","First Name"]
[{"$f":"IF(Volet_general!$N$5=\"En\",ListesDeroulantes!C59,ListesDeroulantes!B59)","v":"Nom"},"Nom","Last Name"]
[{"$f":"IF(Volet_general!$N$5=\"En\",ListesDeroulantes!C60,ListesDeroulantes!B60)","v":"Qualité"},"Qualité","Office"]
["Onglet Echéancier fin prévisionnel"]
[{"$f":"IF(Volet_general!$N$5=\"En\",ListesDeroulantes!C62,ListesDeroulantes!B62)","v":"Echéancier financier prévisionnel"},"Echéancier financier prévisionnel","Estimated Financial Schedule"]
[{"$f":"IF(Volet_general!$N$5=\"En\",ListesDeroulantes!C63,ListesDeroulantes!B63)","v":"WP(s) et tâche(s) concernés"},"WP(s) et tâche(s) concernés","WP (s) and task (s) concerned"]
[{"$f":"IF(Volet_general!$N$5=\"En\",ListesDeroulantes!C64,ListesDeroulantes!B64)","v":"Echéanciers des besoins"},"Echéanciers des besoins","Schedule of needs"]
[{"$f":"IF(Volet_general!$N$5=\"En\",ListesDeroulantes!C65,ListesDeroulantes!B65)","v":"Commentaires"},"Commentaires","Comments"]
[{"$f":"IF(Volet_general!$N$5=\"En\",ListesDeroulantes!C66,ListesDeroulantes!B66)","v":"Exemple"},"Exemple","Example"]
["Onglet Partenaire X"]
[{"$f":"IF(Volet_general!$N$5=\"En\",ListesDeroulantes!C68,ListesDeroulantes!B68)","v":"Fiche partenaire n°"},"Fiche partenaire n°","Partner #"]
[{"$f":"IF(Volet_general!$N$5=\"En\",ListesDeroulantes!C69,ListesDeroulantes!B69)","v":" : Identification et budget"}," : Identification et budget"," form: Identity and budget"]
[{"$f":"IF(Volet_general!$N$5=\"En\",ListesDeroulantes!C70,ListesDeroulantes!B70)","v":"Identification de l'établissement partenaire"},"Identification de l'établissement partenaire","Identity of the partner institution"]
[{"$f":"IF(Volet_general!$N$5=\"En\",ListesDeroulantes!C71,ListesDeroulantes!B71)","v":"Nom complet du partenaire"},"Nom complet du partenaire","Full name of the partner"]
[{"$f":"IF(Volet_general!$N$5=\"En\",ListesDeroulantes!C72,ListesDeroulantes!B72)","v":"Sigle du partenaire "},"Sigle du partenaire ","Acronym of the partner"]
[{"$f":"IF(Volet_general!$N$5=\"En\",ListesDeroulantes!C73,ListesDeroulantes!B73)","v":"Base de calcul de l'assiette de l'aide "},"Base de calcul de l'assiette de l'aide ","Calculation method of the funding base"]
[{"$f":"IF(Volet_general!$N$5=\"En\",ListesDeroulantes!C74,ListesDeroulantes!B74)","v":"Coût complet"},"Coût complet","Full costs"]
[{"$f":"IF(Volet_general!$N$5=\"En\",ListesDeroulantes!C75,ListesDeroulantes!B75)","v":"Coût marginal"},"Coût marginal","Marginal cost"]
[{"$f":"IF(Volet_general!$N$5=\"En\",ListesDeroulantes!C76,ListesDeroulantes!B76)","v":"Veuillez vous référer au règlement financier pour établir quel mode de calcul choisir."},"Veuillez vous référer au règlement financier pour établir quel mode de calcul choisir.","Please refer to the financial regulation to determine the calculation method to be chosen."]
[{"$f":"IF(Volet_general!$N$5=\"En\",ListesDeroulantes!C77,ListesDeroulantes!B77)","v":"Catégorie de partenaire"},"Catégorie de partenaire","Partner category"]
[{"$f":"IF(Volet_general!$N$5=\"En\",ListesDeroulantes!C78,ListesDeroulantes!B78)","v":"Organisme de recherche"},"Organisme de recherche","Research organisation"]
[{"$f":"IF(Volet_general!$N$5=\"En\",ListesDeroulantes!C79,ListesDeroulantes!B79)","v":"Entreprise"},"Entreprise","Company"]
[{"$f":"IF(Volet_general!$N$5=\"En\",ListesDeroulantes!C80,ListesDeroulantes!B80)","v":"Forme juridique"},"Forme juridique","Legal form"]
[{"$f":"IF(Volet_general!$N$5=\"En\",ListesDeroulantes!C81,ListesDeroulantes!B81)","v":"EPST : Établissement public à caractère scientifique et technologique"},"EPST : Établissement public à caractère scientifique et technologique","Non profit public institution with scientific and techniological nature (EPST)"]
[{"$f":"IF(Volet_general!$N$5=\"En\",ListesDeroulantes!C82,ListesDeroulantes!B82)","v":"EPIC : Établissement public à caractère industriel et commercial"},"EPIC : Établissement public à caractère industriel et commercial","For profit public institution with industrial and commercial nature (EPIC)"]
[{"$f":"IF(Volet_general!$N$5=\"En\",ListesDeroulantes!C83,ListesDeroulantes!B83)","v":"Établissement de santé"},"Établissement de santé","Health care institution"]
[{"$f":"IF(Volet_general!$N$5=\"En\",ListesDeroulantes!C84,ListesDeroulantes!B84)","v":"Fondation de recherche (FR)"},"Fondation de recherche (FR)","Research foundation"]
[{"$f":"IF(Volet_general!$N$5=\"En\",ListesDeroulantes!C85,ListesDeroulantes!B85)","v":"Université"},"Université","University"]
[{"$f":"IF(Volet_general!$N$5=\"En\",ListesDeroulantes!C86,ListesDeroulantes!B86)","v":"Autre public"},"Autre public","Other public organisation"]
[{"$f":"IF(Volet_general!$N$5=\"En\",ListesDeroulantes!C87,ListesDeroulantes!B87)","v":"Micro PME\n(≤ 9 employés)"},{"$f":"\"Micro PME\"&CHAR(10)&\"(≤ 9 employés)\"","v":"Micro PME\n(≤ 9 employés)"},{"$f":"\"Micro SME\"&CHAR(10)&\"(≤ 9 employees)\"","v":"Micro SME\n(≤ 9 employees)"}]
[{"$f":"IF(Volet_general!$N$5=\"En\",ListesDeroulantes!C88,ListesDeroulantes!B88)","v":"Petite PME\n(10 ≤ employés ≤ 50)"},{"$f":"\"Petite PME\"&CHAR(10)&\"(10 ≤ employés ≤ 50)\"","v":"Petite PME\n(10 ≤ employés ≤ 50)"},{"$f":"\"Small SME\"&CHAR(10)&\"(10 ≤ employés≤ 5 0)\"","v":"Small SME\n(10 ≤ employés≤ 5 0)"}]
[{"$f":"IF(Volet_general!$N$5=\"En\",ListesDeroulantes!C89,ListesDeroulantes!B89)","v":"Moyenne PME\n(51 < employés ≤ 250)"},{"$f":"\"Moyenne PME\"&CHAR(10)&\"(51 < employés ≤ 250)\"","v":"Moyenne PME\n(51 < employés ≤ 250)"},{"$f":"\"Medium SME\"&CHAR(10)&\"(51 <employés≤250)\"","v":"Medium SME\n(51 <employés≤250)"}]
[{"$f":"IF(Volet_general!$N$5=\"En\",ListesDeroulantes!C90,ListesDeroulantes!B90)","v":"Entreprise autre que PME"},"Entreprise autre que PME","Enterprise other than SME"]
[{"$f":"IF(Volet_general!$N$5=\"En\",ListesDeroulantes!C91,ListesDeroulantes!B91)","v":"Autre privé"},"Autre privé","Other private organisation"]
[{"$f":"IF(Volet_general!$N$5=\"En\",ListesDeroulantes!C92,ListesDeroulantes!B92)","v":"Catégorie de recherche R&D"},"Catégorie de recherche R&D","R&D category"]
[{"$f":"IF(Volet_general!$N$5=\"En\",ListesDeroulantes!C93,ListesDeroulantes!B93)","v":"Membre du DHU ou de la FHU"},"Membre du DHU ou de la FHU","DHU or FHU Team member"]
[{"$f":"IF(Volet_general!$N$5=\"En\",ListesDeroulantes!C94,ListesDeroulantes!B94)","v":"N° de SIRET"},"N° de SIRET","Company registration number (SIRET)"]
[{"$f":"IF(Volet_general!$N$5=\"En\",ListesDeroulantes!C95,ListesDeroulantes!B95)","v":"Saisir un n°SIRET de 14digits"},"Saisir un n°SIRET de 14digits","Enter a 14-digit number"]
[{"$f":"IF(Volet_general!$N$5=\"En\",ListesDeroulantes!C96,ListesDeroulantes!B96)","v":"Entreprise étrangère"},"Entreprise étrangère","Foreign company"]
[{"$f":"IF(Volet_general!$N$5=\"En\",ListesDeroulantes!C97,ListesDeroulantes!B97)","v":"Assujetti à la TVA "},"Assujetti à la TVA ","Liable to VAT"]
[{"$f":"IF(Volet_general!$N$5=\"En\",ListesDeroulantes!C98,ListesDeroulantes!B98)","v":"Oui"},"Oui","Yes"]
[{"$f":"IF(Volet_general!$N$5=\"En\",ListesDeroulantes!C99,ListesDeroulantes!B99)","v":"Non"},"Non","No"]
[{"$f":"IF(Volet_general!$N$5=\"En\",ListesDeroulantes!C100,ListesDeroulantes!B100)","v":"Personne habilitée à représenter juridiquement l'établissement partenaire (pour signature de la convention attributive d'aide ou de reversement)"},"Personne habilitée à représenter juridiquement l'établissement partenaire (pour signature de la convention attributive d'aide ou de reversement)","Person authorized to act on behalf of the partner institution (for the signature of the funding convention or the repayment contracts)"]
[{"$f":"IF(Volet_general!$N$5=\"En\",ListesDeroulantes!C101,ListesDeroulantes!B101)","v":"Genre"},"Genre","Gender "]
[{"$f":"IF(Volet_general!$N$5=\"En\",ListesDeroulantes!C102,ListesDeroulantes!B102)","v":"Mme"},"Mme","Mrs"]
[{"$f":"IF(Volet_general!$N$5=\"En\",ListesDeroulantes!C103,ListesDeroulantes!B103)","v":"M."},"M.","Mr"]
[{"$f":"IF(Volet_general!$N$5=\"En\",ListesDeroulantes!C104,ListesDeroulantes!B104)","v":"Demande financière ANR détaillée du projet (montant HT en €, incluant la TVA non récupérable le cas échéant)"},"Demande financière ANR détaillée du projet (montant HT en €, incluant la TVA non récupérable le cas échéant)","Detailed requested funding to ANR for this proposal (amount in € excluding VAT, including unrecoverable VAT if applicable)"]
[{"$f":"IF(Volet_general!$N$5=\"En\",ListesDeroulantes!C105,ListesDeroulantes!B105)","v":"Equipements ou amortissement d'équipements de R&D (supérieur à 4 000 € HT)"},"Equipements ou amortissement d'équipements de R&D (supérieur à 4 000 € HT)","R&D equipment expenditures or depreciations (over € 4,000 excluding VAT)"]
[{"$f":"IF(Volet_general!$N$5=\"En\",ListesDeroulantes!C106,ListesDeroulantes!B106)","v":"Descriptif"},"Descriptif","Details"]
[{"$f":"IF(Volet_general!$N$5=\"En\",ListesDeroulantes!C107,ListesDeroulantes!B107)","v":"WP(s) ET tâche(s) concernés"},"WP(s) ET tâche(s) concernés","WP(s) and task(s)"]
[{"$f":"IF(Volet_general!$N$5=\"En\",ListesDeroulantes!C108,ListesDeroulantes!B108)","v":"Coût d'achat\n(en €)"},{"$f":"\"Coût d'achat\"&CHAR(10)&\"(en €)\"","v":"Coût d'achat\n(en €)"},"Acquisition cost (in €)"]
[{"$f":"IF(Volet_general!$N$5=\"En\",ListesDeroulantes!C109,ListesDeroulantes!B109)","v":"Pourcentage d'utilisation (en %)"},"Pourcentage d'utilisation (en %)","Pourcentage of use (in %)"]
[{"$f":"IF(Volet_general!$N$5=\"En\",ListesDeroulantes!C110,ListesDeroulantes!B110)","v":"Coût total\n(en €)"},{"$f":"\"Coût total\"&CHAR(10)&\"(en €)\"","v":"Coût total\n(en €)"},{"$f":"\"Total cost\"&CHAR(10)&\"(in €)\"","v":"Total cost\n(in €)"}]
[{"$f":"IF(Volet_general!$N$5=\"En\",ListesDeroulantes!C111,ListesDeroulantes!B111)","v":"Assiette de l'aide (en €) "},"Assiette de l'aide (en €) ","Funding base (in €)"]
[{"$f":"IF(Volet_general!$N$5=\"En\",ListesDeroulantes!C112,ListesDeroulantes!B112)","v":"Personnels sans financement ANR (uniquement pour les partenaires organismes de recherche)"},"Personnels sans financement ANR (uniquement pour les partenaires organismes de recherche)","Satff not funded with ANR grant (only for the research organisations partners)"]
[{"$f":"IF(Volet_general!$N$5=\"En\",ListesDeroulantes!C113,ListesDeroulantes!B113)","v":"OR/ES/\nMixte"},"OR/ES/\nMixte","OR/ES/\nMixed"]
[{"$f":"IF(Volet_general!$N$5=\"En\",ListesDeroulantes!C114,ListesDeroulantes!B114)","v":"OR"},"OR","OR"]
[{"$f":"IF(Volet_general!$N$5=\"En\",ListesDeroulantes!C115,ListesDeroulantes!B115)","v":"ES"},"ES","ES"]
[{"$f":"IF(Volet_general!$N$5=\"En\",ListesDeroulantes!C116,ListesDeroulantes!B116)","v":"Mixte"},"Mixte","Mixed"]
[{"$f":"IF(Volet_general!$N$5=\"En\",ListesDeroulantes!C117,ListesDeroulantes!B117)","v":"Catégorie de personnel"},"Catégorie de personnel","Staff category"]
[{"$f":"IF(Volet_general!$N$5=\"En\",ListesDeroulantes!C118,ListesDeroulantes!B118)","v":"Professeur (PR ou PU-PH,…)"},"Professeur (PR ou PU-PH,…)","Professor"]
[{"$f":"IF(Volet_general!$N$5=\"En\",ListesDeroulantes!C119,ListesDeroulantes!B119)","v":"Maitre de conférence (MCF, MCU-PH, …)"},"Maitre de conférence (MCF, MCU-PH, …)","Lecturer"]
[{"$f":"IF(Volet_general!$N$5=\"En\",ListesDeroulantes!C120,ListesDeroulantes!B120)","v":"Chercheur (DR/CR, ...)"},"Chercheur (DR/CR, ...)","Researcher"]
[{"$f":"IF(Volet_general!$N$5=\"En\",ListesDeroulantes!C121,ListesDeroulantes!B121)","v":"Ingénieur (IR/IE, IRH, IEH, ...)"},"Ingénieur (IR/IE, IRH, IEH, ...)","Engineer"]
[{"$f":"IF(Volet_general!$N$5=\"En\",ListesDeroulantes!C122,ListesDeroulantes!B122)","v":"Technicien/Assistant ingénieur (TEC, AI, TC, …)"},"Technicien/Assistant ingénieur (TEC, AI, TC, …)","Technician / Assistant Engineer"]
[{"$f":"IF(Volet_general!$N$5=\"En\",ListesDeroulantes!C123,ListesDeroulantes!B123)","v":"Autre"},"Autre","Other"]
[{"$f":"IF(Volet_general!$N$5=\"En\",ListesDeroulantes!C124,ListesDeroulantes!B124)","v":"Descriptif et commentaires éventuels"},"Descriptif et commentaires éventuels","Details and optional comments"]
[{"$f":"IF(Volet_general!$N$5=\"En\",ListesDeroulantes!C125,ListesDeroulantes!B125)","v":"Coût mensuel (en €)"},"Coût mensuel (en €)","Monthly cost (in €)"]
[{"$f":"IF(Volet_general!$N$5=\"En\",ListesDeroulantes!C126,ListesDeroulantes!B126)","v":"Personne. Mois"},"Personne. Mois","Man-Months"]
[{"$f":"IF(Volet_general!$N$5=\"En\",ListesDeroulantes!C127,ListesDeroulantes!B127)","v":"Personnels avec financement ANR en contrat à durée déterminée"},"Personnels avec financement ANR en contrat à durée déterminée","Fixed-term staff funded with ANR grant"]
[{"$f":"IF(Volet_general!$N$5=\"En\",ListesDeroulantes!C128,ListesDeroulantes!B128)","v":"Doctorant"},"Doctorant","PhD student"]
[{"$f":"IF(Volet_general!$N$5=\"En\",ListesDeroulantes!C129,ListesDeroulantes!B129)","v":"Doctorant CIFRE"},"Doctorant CIFRE","CIFRE PhD student (industrial research agreements)"]
[{"$f":"IF(Volet_general!$N$5=\"En\",ListesDeroulantes!C130,ListesDeroulantes!B130)","v":"Chercheur / Post doctorant"},"Chercheur / Post doctorant","Researcher / post-doctoral researcher"]
[{"$f":"IF(Volet_general!$N$5=\"En\",ListesDeroulantes!C131,ListesDeroulantes!B131)","v":"Ingénieur (IR/IE, IRH, IEH, ...)"},"Ingénieur (IR/IE, IRH, IEH, ...)","Engineer"]
[{"$f":"IF(Volet_general!$N$5=\"En\",ListesDeroulantes!C132,ListesDeroulantes!B132)","v":"Technicien (TEC, AI, TC, …)"},"Technicien (TEC, AI, TC, …)","Technician"]
[{"$f":"IF(Volet_general!$N$5=\"En\",ListesDeroulantes!C133,ListesDeroulantes!B133)","v":"Assistant de recherche clinique (ARC)"},"Assistant de recherche clinique (ARC)","Clinical trials research assistant"]
[{"$f":"IF(Volet_general!$N$5=\"En\",ListesDeroulantes!C134,ListesDeroulantes!B134)","v":"Personnel infirmier"},"Personnel infirmier","Nursing staff"]
[{"$f":"IF(Volet_general!$N$5=\"En\",ListesDeroulantes!C135,ListesDeroulantes!B135)","v":"Coordinateur(trice) d'études cliniques (CEC)"},"Coordinateur(trice) d'études cliniques (CEC)","Coordinator(s) of clinical trials"]
[{"$f":"IF(Volet_general!$N$5=\"En\",ListesDeroulantes!C136,ListesDeroulantes!B136)","v":"Chef de projet(s) de recherche clinique"},"Chef de projet(s) de recherche clinique","Project leader (s) of clinical trials"]
[{"$f":"IF(Volet_general!$N$5=\"En\",ListesDeroulantes!C137,ListesDeroulantes!B137)","v":"Gestionnaire de données biomédicales"},"Gestionnaire de données biomédicales","Biomedical data manager"]
[{"$f":"IF(Volet_general!$N$5=\"En\",ListesDeroulantes!C138,ListesDeroulantes!B138)","v":"Autre"},"Autre","Other"]
[{"$f":"IF(Volet_general!$N$5=\"En\",ListesDeroulantes!C139,ListesDeroulantes!B139)","v":"Personnels avec financement ANR en contrat à durée indéterminée"},"Personnels avec financement ANR en contrat à durée indéterminée","Permanent staff funded with ANR grant"]
[{"$f":"IF(Volet_general!$N$5=\"En\",ListesDeroulantes!C140,ListesDeroulantes!B140)","v":"Prestations de service externes"},"Prestations de service externes","External service delivery/Outsourcing"]
[{"$f":"IF(Volet_general!$N$5=\"En\",ListesDeroulantes!C141,ListesDeroulantes!B141)","v":"Missions"},"Missions","Missions/Travel"]
[{"$f":"IF(Volet_general!$N$5=\"En\",ListesDeroulantes!C142,ListesDeroulantes!B142)","v":"Autres dépenses externes (consommables, petits matériels …)"},"Autres dépenses externes (consommables, petits matériels …)","Other external expenses (consumables, small equipement...)"]
[{"$f":"IF(Volet_general!$N$5=\"En\",ListesDeroulantes!C143,ListesDeroulantes!B143)","v":"Autres dépenses justifiées par une procédure de facturation interne"},"Autres dépenses justifiées par une procédure de facturation interne","Other expenses justified by an internal billing procedure"]
[{"$f":"IF(Volet_general!$N$5=\"En\",ListesDeroulantes!C144,ListesDeroulantes!B144)","v":"Coût unitaire (en €)"},"Coût unitaire (en €)","Cost per unit (in €)"]
[{"$f":"IF(Volet_general!$N$5=\"En\",ListesDeroulantes!C145,ListesDeroulantes!B145)","v":"Nombre"},"Nombre","Number"]
[{"$f":"IF(Volet_general!$N$5=\"En\",ListesDeroulantes!C146,ListesDeroulantes!B146)","v":"Veuillez choisir la base de calcul pour l'assiette de l'aide au préalable."},"Veuillez choisir la base de calcul pour l'assiette de l'aide au préalable.","Please, first choose the calculation method of the funding base."]
[{"$f":"IF(Volet_general!$N$5=\"En\",ListesDeroulantes!C147,ListesDeroulantes!B147)","v":"Descriptif"},"Descriptif","Overview and additional comments"]
[{"$f":"IF(Volet_general!$N$5=\"En\",ListesDeroulantes!C148,ListesDeroulantes!B148)","v":"Taux (en %)"},"Taux (en %)","Rate (in %)"]
[{"$f":"IF(Volet_general!$N$5=\"En\",ListesDeroulantes!C149,ListesDeroulantes!B149)","v":"Frais de gestion et d'environnement (uniquement pour les organismes publics)"},"Frais de gestion et d'environnement (uniquement pour les organismes publics)","Management fees and environment costs (for public organizations)"]
[{"$f":"IF(Volet_general!$N$5=\"En\",ListesDeroulantes!C150,ListesDeroulantes!B150)","v":"Taux d'environnement (compris entre 0 et 100 %)"},"Taux d'environnement (compris entre 0 et 100 %)","Environment rate (between 0 and 100%)"]
[{"$f":"IF(Volet_general!$N$5=\"En\",ListesDeroulantes!C151,ListesDeroulantes!B151)","v":"Frais de gestion (Max. 20% des coûts entrant dans l'assiette de l'aide)"},"Frais de gestion (Max. 20% des coûts entrant dans l'assiette de l'aide)","Management fees (max. 20% of the costs included in the base for aid)"]
[{"$f":"IF(Volet_general!$N$5=\"En\",ListesDeroulantes!C152,ListesDeroulantes!B152)","v":"Frais de structure"},"Frais de structure","Overhead costs"]
[{"$f":"IF(Volet_general!$N$5=\"En\",ListesDeroulantes!C153,ListesDeroulantes!B153)","v":"Frais de gestion/structure"},"Frais de gestion/structure","Overhead/managment Fees"]
[{"$f":"IF(Volet_general!$N$5=\"En\",ListesDeroulantes!C154,ListesDeroulantes!B154)","v":"Part assise sur les dépenses de personnel (max. 68% des dépenses de personnel)"},"Part assise sur les dépenses de personnel (max. 68% des dépenses de personnel)","Share based on staff costs (max. 68% of staff costs)"]
[{"$f":"IF(Volet_general!$N$5=\"En\",ListesDeroulantes!C155,ListesDeroulantes!B155)","v":"Part assise sur les autres dépenses (max. 7% des autres coûts hors facturation interne)"},"Part assise sur les autres dépenses (max. 7% des autres coûts hors facturation interne)","Share based on other expenses (max. 7% of other costs expected internal billing)"]
[{"$f":"IF(Volet_general!$N$5=\"En\",ListesDeroulantes!C156,ListesDeroulantes!B156)","v":"Coût complet, du projet (en €)"},"Coût complet, du projet (en €)","Total cost of the proposal (in €)"]
[{"$f":"IF(Volet_general!$N$5=\"En\",ListesDeroulantes!C157,ListesDeroulantes!B157)","v":"Total coûts éligibles pour le calcul de l'aide : Total assiette de l'aide (en €)"},"Total coûts éligibles pour le calcul de l'aide : Total assiette de l'aide (en €)","Total qualifying costs for the calculation of the funding request: Total funding base (in €)"]
[{"$f":"IF(Volet_general!$N$5=\"En\",ListesDeroulantes!C158,ListesDeroulantes!B158)","v":"Total assiette de l'aide (en €)"},{"$f":"RIGHT(B157,31)","v":"Total assiette de l'aide (en €)"},{"$f":"RIGHT(C157,25)","v":"Total funding base (in €)"}]
[{"$f":"IF(Volet_general!$N$5=\"En\",ListesDeroulantes!C159,ListesDeroulantes!B159)","v":"Taux d'aide demandé (%)"},"Taux d'aide demandé (%)","Requested funding rate (in %)"]
[{"$f":"IF(Volet_general!$N$5=\"En\",ListesDeroulantes!C160,ListesDeroulantes!B160)","v":"Total aide demandée (€)"},"Total aide demandée (€)","Total funding request (€)"]
[{"$f":"IF(Volet_general!$N$5=\"En\",ListesDeroulantes!C161,ListesDeroulantes!B161)","v":"Veuillez vous référer au règlement financier pour le maximum autorisé."},"Veuillez vous référer au règlement financier pour le maximum autorisé.","Please refer to the financial regulation to determine allowed maximum."]
[{"$f":"IF(Volet_general!$N$5=\"En\",ListesDeroulantes!C162,ListesDeroulantes!B162)","v":"Taux maximum de 100 %"},"Taux maximum de 100 %","Maximal rate of 100 %"]
[{"$f":"IF(Volet_general!$N$5=\"En\",ListesDeroulantes!C163,ListesDeroulantes!B163)","v":"Aide demandée (en €)"},"Aide demandée (en €)","Requested funding (in €)"]
[{"$f":"IF(Volet_general!$N$5=\"En\",ListesDeroulantes!C164,ListesDeroulantes!B164)","v":"Participations au projet et autres soutiens financiers (sollicités ou obtenus par le partenaire pour le projet)"},"Participations au projet et autres soutiens financiers (sollicités ou obtenus par le partenaire pour le projet)","Other financial contributions and participations (requested or obtained by the partner for this proposal)"]
[{"$f":"IF(Volet_general!$N$5=\"En\",ListesDeroulantes!C165,ListesDeroulantes!B165)","v":"Préciser les mises à disposition de locaux, équipements, personnels, etc. pour le projet et, le cas échéant, indiquer le(s) WP(s) et la(les) tâche(s) concernées"},"Préciser les mises à disposition de locaux, équipements, personnels, etc. pour le projet et, le cas échéant, indiquer le(s) WP(s) et la(les) tâche(s) concernées","Specify provisions of premises, equipment, staff, etc. to the proposal and, if applicable, indicate WP(s) and task(s) concerned"]
[{"$f":"IF(Volet_general!$N$5=\"En\",ListesDeroulantes!C166,ListesDeroulantes!B166)","v":"Identification des financeurs (nom, adresse) (Obligatoire)"},"Identification des financeurs (nom, adresse) (Obligatoire)","Funders Identities (name, address) (Required)"]
[{"$f":"IF(Volet_general!$N$5=\"En\",ListesDeroulantes!C167,ListesDeroulantes!B167)","v":"Nature et objet du financement et, le cas échéant, WP(s) et tâche(s) concernés"},"Nature et objet du financement et, le cas échéant, WP(s) et tâche(s) concernés","Nature and purpose of the funding and, if applicable, WP(s) and task(s) concerned"]
[{"$f":"IF(Volet_general!$N$5=\"En\",ListesDeroulantes!C168,ListesDeroulantes!B168)","v":"Montant sollicité"},"Montant sollicité","Amount requested"]
[{"$f":"IF(Volet_general!$N$5=\"En\",ListesDeroulantes!C169,ListesDeroulantes!B169)","v":"Montant obtenu"},"Montant obtenu","Amount obtained"]
[{"$f":"IF(Volet_general!$N$5=\"En\",ListesDeroulantes!C170,ListesDeroulantes!B170)","v":"Date effective ou prévue du co-financement"},"Date effective ou prévue du co-financement","Actual or expected date of co-funding"]
[{"$f":"IF(Volet_general!$N$5=\"En\",ListesDeroulantes!C171,ListesDeroulantes!B171)","v":"Publication d'informations relatives au projet"},"Publication d'informations relatives au projet","Publication of information related to the proposal"]
[{"$f":"IF(Volet_general!$N$5=\"En\",ListesDeroulantes!C172,ListesDeroulantes!B172)","v":"Si le projet est retenu pour financement, l'ANR se réserve la possibilité de rendre publiques les informations suivantes : nom du correpondant scientifique et technique et adresse électronique, dénominations des partenaires qu'ils soient des entreprises ou qu'ils appartiennent à un organisme de recherche.\r\nToutefois, pour un projet de recherche partenariale organisme de recherche / entreprise retenu pour financement, l'ANR ne rendra pas publiques les informations sur les personnes ou les partenaires qui en auront fait le demande."},"Si le projet est retenu pour financement, l'ANR se réserve la possibilité de rendre publiques les informations suivantes : nom du correpondant scientifique et technique et adresse électronique, dénominations des partenaires qu'ils soient des entreprises ou qu'ils appartiennent à un organisme de recherche.\r\nToutefois, pour un projet de recherche partenariale organisme de recherche / entreprise retenu pour financement, l'ANR ne rendra pas publiques les informations sur les personnes ou les partenaires qui en auront fait le demande.","If the project is selected for funding, the ANR reserves the right to publish the following information: the name of the scientific and technical correspondent and his email address, names of each partner whether they are companies or research organisations.\nHowever, for a selected for funding joint-research proposal  between research organisations and companies, the ANR will not make public the information on individuals or partners who will have so requested."]
[{"$f":"IF(Volet_general!$N$5=\"En\",ListesDeroulantes!C173,ListesDeroulantes!B173)","v":"En cas de refus de publication d'un ou de plusieurs de ces éléments, remplacer ci-dessous la mention \"Oui\" par \"Non\" : "},"En cas de refus de publication d'un ou de plusieurs de ces éléments, remplacer ci-dessous la mention \"Oui\" par \"Non\" : ","In case of refusal of the publication of one or more of these elements, please switch below the \"Yes\" option to \"No\" as appropriate:"]
[{"$f":"IF(Volet_general!$N$5=\"En\",ListesDeroulantes!C174,ListesDeroulantes!B174)","v":"Oui"},"Oui","Yes"]
[{"$f":"IF(Volet_general!$N$5=\"En\",ListesDeroulantes!C175,ListesDeroulantes!B175)","v":"Non"},"Non","No"]
[{"$f":"IF(Volet_general!$N$5=\"En\",ListesDeroulantes!C176,ListesDeroulantes!B176)","v":"Nom et prénom du correspondant scientifique :"},"Nom et prénom du correspondant scientifique :","Full name of the scientific and technical correspondent:"]
[{"$f":"IF(Volet_general!$N$5=\"En\",ListesDeroulantes!C177,ListesDeroulantes!B177)","v":"Adresse électronique du correspondant scientifique : "},"Adresse électronique du correspondant scientifique : ","E-mail Scientific and technical correspondent:"]
[{"$f":"IF(Volet_general!$N$5=\"En\",ListesDeroulantes!C178,ListesDeroulantes!B178)","v":"Dénomination du partenaire (si \"Non\", celle-ci sera remplacée par la mention générique \"Entreprise\" ou \"Organisme de recherche\") : "},"Dénomination du partenaire (si \"Non\", celle-ci sera remplacée par la mention générique \"Entreprise\" ou \"Organisme de recherche\") : ","Full name of the partner (if \"no\", it will be replaced by the generic term \"Company\" or \"Research organisation\"):"]
[{"$f":"IF(Volet_general!$N$5=\"En\",ListesDeroulantes!C179,ListesDeroulantes!B179)","v":"Nota : en déposant un projet, les partenaires ont accepté que l'ANR publie l'acronyme, le titre, le résumé, l'aide accordée au projet, la date de début de projet et la durée."},"Nota : en déposant un projet, les partenaires ont accepté que l'ANR publie l'acronyme, le titre, le résumé, l'aide accordée au projet, la date de début de projet et la durée.","Note: by submitting a proposal, the partners agreed to the right of the ANR to make public: the acronym, the title, the abstract, amount of funding granted to the project, project's starting date and its duration."]
[{"$f":"IF(Volet_general!$N$5=\"En\",ListesDeroulantes!C180,ListesDeroulantes!B180)","v":"Commentaires (le cas échéant)"},"Commentaires (le cas échéant)","Comments (if needed)"]
[{"$f":"IF(Volet_general!$N$5=\"En\",ListesDeroulantes!C181,ListesDeroulantes!B181)","v":"Les informations personnelles transmises dans ces documents sont obligatoires et seront conservées en fichiers par l'ANR pour assurer la conduite opérationnelle de l'évaluation et l'administration des dossiers.\nConformément à la loi n° 78-17 du 6 janvier 1978 modifiée, relative à l'Informatique, aux Fichiers et aux Libertés, les personnes concernées disposent d'un droit d'accès et de rectification des données personnelles les concernant. Les personnes concernées peuvent exercer ce droit en s'adressant à l'ANR (voir coordonnées dans le texte de l’appel à projets)."},"Les informations personnelles transmises dans ces documents sont obligatoires et seront conservées en fichiers par l'ANR pour assurer la conduite opérationnelle de l'évaluation et l'administration des dossiers.\nConformément à la loi n° 78-17 du 6 janvier 1978 modifiée, relative à l'Informatique, aux Fichiers et aux Libertés, les personnes concernées disposent d'un droit d'accès et de rectification des données personnelles les concernant. Les personnes concernées peuvent exercer ce droit en s'adressant à l'ANR (voir coordonnées dans le texte de l’appel à projets).","The personal information transmitted in those documents are mandatory and will be stored in files by the ANR to ensure the operational conduct of the assessment and management of files.\nIn accordance with French law No. 78-17 of 6 January 1978 modified, relating to computing, files and liberties, the data subjects have a right to access and correct their personal data. The data subjects can exercise their right by contacting the ANR (see details in the call for projects text)."]
[{"$f":"IF(Volet_general!$N$5=\"En\",ListesDeroulantes!C182,ListesDeroulantes!B182)","v":"Engagement de l'établissement partenaire (les signatures sont à apposer obligatoirement sur le document papier) "},"Engagement de l'établissement partenaire (les signatures sont à apposer obligatoirement sur le document papier) ","Commitment of the partner institution (the signatures must be hand written on a paper version of the document)"]
[{"$f":"IF(Volet_general!$N$5=\"En\",ListesDeroulantes!C183,ListesDeroulantes!B183)","v":"Correspondant scientifique et technique"},"Correspondant scientifique et technique","Scientific and technical correspondent"]
[{"$f":"IF(Volet_general!$N$5=\"En\",ListesDeroulantes!C184,ListesDeroulantes!B184)","v":"Personne habilitée à engager l'établissement partenaire (EP)"},"Personne habilitée à engager l'établissement partenaire (EP)","Person authorized to act on behalf of the partner institution"]
["Contrôle des erreurs"]
[{"$f":"IF(Volet_general!$N$5=\"En\",ListesDeroulantes!C186,ListesDeroulantes!B186)","v":"Erreur :\nles données concernant le projet ne sont pas toutes renseignées."},"Erreur :\nles données concernant le projet ne sont pas toutes renseignées.","Error :\ndetails concerning the proposal are not all filled."]
[{"$f":"IF(Volet_general!$N$5=\"En\",ListesDeroulantes!C187,ListesDeroulantes!B187)","v":" dans l'onglet échéancier finnancier prévisionnel"}," dans l'onglet échéancier finnancier prévisionnel","in tab estimated Financial Schedule"]
[{"$f":"IF(Volet_general!$N$5=\"En\",ListesDeroulantes!C188,ListesDeroulantes!B188)","v":"erreur"},"erreur","error"]
[{"$f":"IF(Volet_general!$N$5=\"En\",ListesDeroulantes!C189,ListesDeroulantes!B189)","v":"Erreur : les données concernant l'établissement partenaire ne sont pas toutes renseignées."},"Erreur : les données concernant l'établissement partenaire ne sont pas toutes renseignées.","Error : details concerning the institution partner are not all filled."]
[{"$f":"IF(Volet_general!$N$5=\"En\",ListesDeroulantes!C190,ListesDeroulantes!B190)","v":"Erreur : veuillez choisir au préalable la méthode de calcul de l'assiette de l'aide (coût marginal ou coûts complets)."},"Erreur : veuillez choisir au préalable la méthode de calcul de l'assiette de l'aide (coût marginal ou coûts complets).","Error: please, first select the calculation method of the funding base (marginal or full costs).","erreur"]
[{"$f":"IF(Volet_general!$N$5=\"En\",ListesDeroulantes!C191,ListesDeroulantes!B191)","v":"Erreur : le mode de calcul des coûts ne correspond pas à la forme juridique choisie."},"Erreur : le mode de calcul des coûts ne correspond pas à la forme juridique choisie.","Error: the costs calculation method does not comply with the chosen legal form."]
[{"$f":"IF(Volet_general!$N$5=\"En\",ListesDeroulantes!C192,ListesDeroulantes!B192)","v":"Erreur : la forme juridique ne correspond pas à la catégorie de partenaire choisie."},"Erreur : la forme juridique ne correspond pas à la catégorie de partenaire choisie.","Error: the legal form does not comply with the chosen partner category."]
[{"$f":"IF(Volet_general!$N$5=\"En\",ListesDeroulantes!C193,ListesDeroulantes!B193)","v":"Erreur : cette rubrique ne concerne que les organismes de recherche, merci de la laisser vide."},"Erreur : cette rubrique ne concerne que les organismes de recherche, merci de la laisser vide.","Error: this section applies only to research organizations, please leave it empty."]
[{"$f":"IF(Volet_general!$N$5=\"En\",ListesDeroulantes!C194,ListesDeroulantes!B194)","v":"Erreur : le montant de l'assiette de l'aide demandé ne peut être supérieur au coût total."},"Erreur : le montant de l'assiette de l'aide demandé ne peut être supérieur au coût total.","Error: the amount of the requested funding base cannot exceed the total cost."]
[{"$f":"IF(Volet_general!$N$5=\"En\",ListesDeroulantes!C195,ListesDeroulantes!B195)","v":"Erreur : le taux choisi est supérieur au maximum autorisé."},"Erreur : le taux choisi est supérieur au maximum autorisé.","Error: chosen rate is superior to allowed maximum."]
[{"$f":"IF(Volet_general!$N$5=\"En\",ListesDeroulantes!C196,ListesDeroulantes!B196)","v":"Erreur : le taux n'est pas renseigné."},"Erreur : le taux n'est pas renseigné.","Error: the rate is not filled."]
[{"$f":"IF(Volet_general!$N$5=\"En\",ListesDeroulantes!C197,ListesDeroulantes!B197)","v":"Erreur de selection du mode de calcul du coût, merci de vérifier ci-dessus, la catégorie de partenaire renseignée."},"Erreur de selection du mode de calcul du coût, merci de vérifier ci-dessus, la catégorie de partenaire renseignée.","Error: Aid basis/Costs, thank to check above, the filled partner category."]
[{"$f":"IF(Volet_general!$N$5=\"En\",ListesDeroulantes!C198,ListesDeroulantes!B198)","v":"Erreur : la catégorie de recherche R&D n'est pas renseignée. Merci de revenir au volet général pour le completer pour poursuivre."},"Erreur : la catégorie de recherche R&D n'est pas renseignée. Merci de revenir au volet général pour le completer pour poursuivre.","Error: R & D research category is not filled. Please return to the general panel to complete it before going further."]
[{"$f":"IF(Volet_general!$N$5=\"En\",ListesDeroulantes!C199,ListesDeroulantes!B199)","v":"Erreur : la méthode de calcul de l'assiette de l'aide (coût marginal ou coûts complets) n'est pas renseignée. Merci de remonter en haut de cet onglet pour faire ce choix au préalable."},"Erreur : la méthode de calcul de l'assiette de l'aide (coût marginal ou coûts complets) n'est pas renseignée. Merci de remonter en haut de cet onglet pour faire ce choix au préalable.","Error:  the calculation method of the funding base (marginal or full costs) is not filled. Please, return to the top of this tab in order to first make this choice."]
[{"$f":"IF(Volet_general!$N$5=\"En\",ListesDeroulantes!C200,ListesDeroulantes!B200)","v":"Erreur : les données concernant le responsable scientifique et technique ne sont pas toutes renseignées."},"Erreur : les données concernant le responsable scientifique et technique ne sont pas toutes renseignées.","Error : details concerning the scientific and technical coordinator are not all filled."]
[{"$f":"IF(Volet_general!$N$5=\"En\",ListesDeroulantes!C201,ListesDeroulantes!B201)","v":"Erreur : les données concernant le correspondant scientifique et technique ne sont pas toutes renseignées."},"Erreur : les données concernant le correspondant scientifique et technique ne sont pas toutes renseignées.","Error : details concerning the scientific and technical correspondent are not all filled."]
[{"$f":"IF(Volet_general!$N$5=\"En\",ListesDeroulantes!C202,ListesDeroulantes!B202)","v":"Erreur : les données concernant la personne habilitée à engager le partenaire ne sont pas toutes renseignées."},"Erreur : les données concernant la personne habilitée à engager le partenaire ne sont pas toutes renseignées.","Error : details concerning the person authorized to act on behalf of the partner are not all filled."]
[{"$f":"IF(Volet_general!$N$5=\"En\",ListesDeroulantes!C203,ListesDeroulantes!B203)","v":"Erreur : le total des besoins du partenaire doit être égal au montant l'aide qu'il demande (cf. onglet "},"Erreur : le total des besoins du partenaire doit être égal au montant l'aide qu'il demande (cf. onglet ","Error: the total needs of the partner does not equal to the funding it requests (cf. tab "]
[{"$f":"IF(Volet_general!$N$5=\"En\",ListesDeroulantes!C204,ListesDeroulantes!B204)","v":"Recommandations : Une fois le document finalisé et imprimé, vérifier la présence de l'ensemble des signatures et visa demandés avant de déposer la copie scannée en ligne."},"Recommandations : Une fois le document finalisé et imprimé, vérifier la présence de l'ensemble des signatures et visa demandés avant de déposer la copie scannée en ligne.","Warning and recommandations: Once the document is finalized and printed, check the presence of all required visas and signatures before uploading the scanned copy online."]